Workbook

Sheet Read This Sheet
A1: SLUOS Construction Cost Calculation Workbook
A3: Description
A5: This Excel workbook contains a costing model for the calculation of SLUOS Capital charges. SLUOS Capital and OPEX charges for the various types of streetlights that Essential Energy constructs.
A7: This workbook is designed to take financial, technical and material inputs to calculate both CAPEX and OPEX charges applicable to assemblies relating to Streetlights. For OPEX this is achieved through a ground up approach by calcualting the forecasted level of maintenance per failure rates and calculating the cost of repairs utilising labour, plant and material rates. For CAPEX this is achieved by calculating the cost of labour, plant and materials and applying a return on investment of a period of time for the economic life of the asset. This model takes into consideration appropriate overheads, oncosts and CPI to establish the final fully loaded SLUOS charges. These charges are based on a P.A charge.
A9: A description of each of the sheets is contained below:
A11: Worksheet | B11: Function
A12: Global Inputs | B12: Contains all inputs from other major workbooks - including overheads, oncosts, pay rates.
A13: CAPEX Inputs | B13: • Contains a list of all stock and their associated costs. This data is extracted from WASP. • Models the design costs associated with streetlights. • Contains components (from stock list) used to construct larger assemblies, giving prices for each. • Models the traffic control costs associated with a streetlight construction.
A14: CAPEX - Stock Costs | B14: Contains all stock costs as per 16/17 dollars as tracked through procurement purchase prices
A15: CAPEX - Hybrid Calcs | B15: Calculates assembly costs where assembly cannot be directly calculated (i.e. insufficient data to distinguish assets)
A16: CAPEX Build Up | B16: • For the assemblies listed in the CAPEX Input (luminaire, bracket, pole) the CAPEX cost for the component is calculated. • This is then calculated as an annual cost based of a given asset lifespan.
A17: OPEX Input | B17: • For a given lamp type, this sheet contains the associated lamp, ballast/igniter and starter/PE cell cost. It also contains the failure rates for these components. • Pole maintenance costs are modelled • Small component usage (fuses, etc) are measured to be able to provide a cost per pole to account for these otherwise unrecovered costs • Bulk Works Additional Material usage is measured to pass on these costs on an average per pole basis • Streetlight Improvement Programs are listed to be able to have these costs passed on, in a per pole cost
A18: Warrenty NPV | B18: • Given that LEDs have parts and labour warranty for the first three years, the average NPV cost of maintenance is calculated across the span of the luminaire’s lifetime
A19: OPEX Calc | B19: • All luminaires and poles now have their associated costs calculated
A20: Mapping & Lookups | B20: • This sheet provides construction information for a given construction code (type of pole, number of luminaires etc) • Because of different naming conventions for a number of the bulbs and luminaire types, this sheet provides a given CAPEX and OPEX code for a given lamp code from the traditional tariff code. This then allows the costs to be found in the CAPEX Calc and OPEX Calc sheets
A21: New Component SLUOS (For New Assets) | B21: • To be able to map to the old lamp tariff codes, the new componentised structure is now collapsed again, such that it can map according allowing direct comparison of the old and new costs for a given assembly type.
A23: Date of Creation | B23: October 4 2017
A24: Updated | B24: -

Sheet Global Inputs
A1: Global Inputs
A2: Description:
A3: This sheet contains all the major inputs for this spreadheet such as overheads and oncosts.
A7: Real 2018-19$
A8: Cost_Type | B8: Source | D8: FY18 | E8: FY19 | F8: FY20 | G8: FY21 | H8: FY22 | I8: FY23 | J8: FY24 | K8: Average 20-24 | M8: To use in model
A10: Labour Rates | C10: 2016/17
A11: R3 Engineering Officer | B11: Ancillary Services Model 19_24 | C11: =[1]Inputs!E24 -> 73.73 | D11: =[1]Inputs!F24 -> 75.2046 | E11: =[1]Inputs!G24 -> 75.93784485 | F11: =E11 -> 75.93784485 | G11: =F11 -> 75.93784485 | H11: 75.93784485 | I11: 75.93784485 | J11: 75.93784485 | M11: =E11 -> 75.93784485
A12: R5 Lineworker 5 Paypoint 19 | B12: Email from Bill Glyde (and Sam Peake) 1pm 26/9/17 | C12: 38.77 | D12: =C12*[1]Inputs!F11 -> 39.26508939 | E12: =C12*[1]Inputs!$G$11 -> 40.03075863 | F12: =E12 -> 40.03075863 | G12: =F12 -> 40.03075863 | H12: 40.03075863 | I12: 40.03075863 | J12: 40.03075863 | M12: =E12 -> 40.03075863
A13: R2a Indoor technical officer | B13: Ancillary Services Model 19_24 | C13: =[1]Inputs!E22 -> 64.19 | D13: =[1]Inputs!F22 -> 65.4738 | E13: =[1]Inputs!G22 -> 66.11216955 | F13: =E13 -> 66.11216955 | G13: =F13 -> 66.11216955 | H13: 66.11216955 | I13: 66.11216955 | J13: 66.11216955 | M13: 66.11216955
A17: Plant Material Type | C17: Hourly Rate $17/18
A18: EWP | B18: Finance rate | C18: 18.87 | E18: =[1]Inputs!$G$51 -> 19.73243629 | F18: =[1]Inputs!$H$51 -> 19.73243629 | G18: =[1]Inputs!$I$51 -> 19.73243629 | H18: =[1]Inputs!$J$51 -> 19.73243629 | I18: =[1]Inputs!$K$51 -> 19.73243629 | J18: =[1]Inputs!$L$51 -> 19.73243629 | M18: =E18 -> 19.73243629
A19: Borer | B19: Finance rate | C19: 18.87 | E19: =E18 -> 19.73243629 | F19: =F18 -> 19.73243629 | G19: 19.73243629 | H19: 19.73243629 | I19: 19.73243629 | J19: 19.73243629 | M19: =E19 -> 19.73243629
A20: Ditchwitch | B20: Finance rate | C20: 18.87 | E20: =E18 -> 19.73243629 | F20: =F18 -> 19.73243629 | G20: 19.73243629 | H20: 19.73243629 | I20: 19.73243629 | J20: 19.73243629 | M20: 19.73243629
A21: Trailer/Jinker | B21: Finance rate | C21: 5.18 | E21: =$C21*(1+[1]Inputs!$G$8) -> 5.28101 | F21: =E21 -> 5.28101 | G21: 5.28101 | H21: 5.28101 | I21: 5.28101 | J21: 5.28101 | M21: 5.28101
A22: Ute / Van | B22: Finance rate | C22: 5.18 | E22: =$C22*(1+[1]Inputs!$G$8) -> 5.28101 | F22: 5.28101 | G22: 5.28101 | H22: 5.28101 | I22: 5.28101 | J22: 5.28101 | M22: 5.28101
A23: 4 tonne truck | B23: Finance rate | C23: 18.87 | E23: =E18 -> 19.73243629 | F23: =F18 -> 19.73243629 | G23: 19.73243629 | H23: 19.73243629 | I23: 19.73243629 | J23: 19.73243629 | M23: 19.73243629
A25: WACC | B25: ACS PTRM Model sheet "WACC"
A26: Nominal Vanilla WACC | B26: Public lighting PTRM | F26: 0.06342 | G26: =F26 -> 0.06342 | H26: =G26 -> 0.06342 | I26: 0.06342 | J26: 0.06342 | M26: =F26 -> 0.06342
A27: Real Vanilla WACC | B27: Public lighting PTRM | F27: 0.03748292683 | G27: =F27 -> 0.03748292683 | H27: =G27 -> 0.03748292683 | I27: 0.03748292683 | J27: 0.03748292683 | M27: =F27 -> 0.03748292683
A28: Post-tax Nominal WACC | B28: Public lighting PTRM | F28: 0.0571884 | G28: 0.0571884 | H28: =G28 -> 0.0571884 | I28: 0.0571884 | J28: 0.0571884 | M28: 0.0571884
A29: Post-tax Real WACC | B29: Public lighting PTRM | F29: 0.03140331707 | G29: 0.03140331707 | H29: =G29 -> 0.03140331707 | I29: 0.03140331707 | J29: 0.03140331707 | M29: 0.03140331707
A30: Pre-tax Nominal WACC | B30: Public lighting PTRM | F30: 0.06800801335 | G30: 0.06800801335 | H30: =G30 -> 0.06800801335 | I30: 0.06800801335 | J30: 0.06800801335 | M30: 0.06800801335
A31: Pre-tax Real WACC | B31: Public lighting PTRM | F31: 0.04195903741 | G31: 0.04195903741 | H31: =G31 -> 0.04195903741 | I31: 0.04195903741 | J31: 0.04195903741 | M31: 0.04195903741
A32: Nominal Tax Allowance | B32: Public lighting PTRM | F32: 0.01081961335 | G32: 0.01081961335 | H32: =G32 -> 0.01081961335 | I32: 0.01081961335 | J32: 0.01081961335 | M32: 0.01081961335
A33: Real Tax Allowance | B33: Public lighting PTRM | F33: 0.01055572034 | G33: 0.01055572034 | H33: =G33 -> 0.01055572034 | I33: 0.01055572034 | J33: 0.01055572034 | M33: 0.01055572034
A35: On-Cost Rates
A36: Materials On-Cost Rate | B36: Ancillary Services Model | E36: =[1]Inputs!G38 -> 0.1031 | F36: =[1]Inputs!H38 -> 0.1031 | G36: =[1]Inputs!I38 -> 0.1031 | H36: =[1]Inputs!J38 -> 0.1031 | I36: =[1]Inputs!K38 -> 0.1031 | J36: =[1]Inputs!L38 -> 0.1031 | M36: =E36 -> 0.1031
A37: Labour Annual Escalator | B37: Not applied - absorbed by efficiency gains | E37: 0 | F37: 0 | G37: 0 | H37: 0 | I37: 0 | J37: 0 | M37: =E37 -> 0
A38: Labour Ordinary On-Cost Rate | B38: Ancillary Services Model | E38: =[1]Inputs!$G$34 -> 0.5619 | F38: =[1]Inputs!$H$34 -> 0.5619 | G38: =[1]Inputs!$I$34 -> 0.5619 | H38: =[1]Inputs!$J$34 -> 0.5619 | I38: =[1]Inputs!$K$34 -> 0.5619 | J38: =[1]Inputs!$L$34 -> 0.5619 | M38: 0.5619
A40: CAPEX Overhead Rates
A41: Corporate | B41: 5. ROMO FP | D41: 0.1860271088 | E41: 0.1680211654 | F41: 0.1540035636 | G41: 0.1445625624 | H41: 0.128649937 | I41: 0.1192769926 | J41: 0.116201754 | K41: =AVERAGE(F41:J41) -> 0.1325389619 | M41: =K41 -> 0.1325389619
A42: Divisional | B42: 5. ROMO FP | D42: 0.3400005643 | E42: 0.3028964782 | F42: 0.3111724308 | G42: 0.282429006 | H42: 0.2820200672 | I42: 0.2807154964 | J42: 0.2836990966 | K42: =AVERAGE(F42:J42) -> 0.2880072194 | M42: =K42 -> 0.2880072194
D43: =SUM(D41:D42) -> 0.5260276732 | E43: =SUM(E41:E42) -> 0.4709176436 | F43: 0.4651759944 | G43: 0.4269915684 | H43: 0.4106700042 | I43: 0.399992489 | J43: 0.3999008505 | K43: =SUM(K41:K42) -> 0.4205461813 | M43: =SUM(M41:M42) -> 0.4205461813
A44: OPEX Overhead Rates
A45: Corporate | B45: 5. ROMO FP | D45: 0.2257077646 | E45: 0.1986148427 | F45: 0.1934707025 | G45: 0.1814465839 | H45: 0.1618326359 | I45: 0.1590064328 | J45: 0.1533190238 | K45: =AVERAGE(F45:J45) -> 0.1698150758 | M45: =K45 -> 0.1698150758
A46: Divisional | B46: 5. ROMO FP | D46: 0.3504918041 | E46: 0.3072783659 | F46: 0.3625664202 | G46: 0.3397821993 | H46: 0.3285997941 | I46: 0.3261326562 | J46: 0.3119150125 | K46: =AVERAGE(F46:J46) -> 0.3337992165 | M46: =K46 -> 0.3337992165
D47: =SUM(D45:D46) -> 0.5761995687 | E47: =SUM(E45:E46) -> 0.5058932087 | F47: 0.5560371228 | G47: 0.5212287832 | H47: 0.49043243 | I47: 0.485139089 | J47: 0.4652340362 | K47: =SUM(K45:K46) -> 0.5036142922 | M47: =SUM(M45:M46) -> 0.5036142922
A48: Non-System Overheads - Given To OPEX
A49: Direct opex Spend Street Lighting | B49: 5. ROMO FP | D49: 8670000 | E49: 10020000 | F49: 6760000 | G49: 7360000 | H49: 8270000 | I49: 7080000 | J49: 8940000
A50: Non-System Spend | B50: 5. ROMO FP | D50: n/a | E50: n/a | F50: 962463.004 | G50: 1524417.711 | H50: 1805433.791 | I50: 2121811.133 | J50: 2186863.009
A51: Non-System Overheads (to be spread over opex only) | B51: Calculation | F51: =F50/F49 -> 0.142376184 | G51: =G50/G49 -> 0.2071219716 | H51: 0.2183112202 | I51: 0.2996908379 | J51: 0.2446155491
A54: LED Warranty NPV Discout Rate
A55: Discount Rate | F55: =F30 -> 0.06800801335 | G55: =G30 -> 0.06800801335 | H55: 0.06800801335 | I55: 0.06800801335 | J55: 0.06800801335 | M55: =F55 -> 0.06800801335
A57: Cumulative weighted average escalation rate(real) | B57: ROMO
A58: Public lighting (capex) | B58: 5. ROMO FP | C58: No escalation applied | E58: 1 | F58: 1 | G58: 1 | H58: 1 | I58: 1 | J58: 1
A59: Public lighting (opex) | B59: 5. ROMO FP | C59: No escalation applied | E59: 1 | F59: 1 | G59: 1 | H59: 1 | I59: 1 | J59: 1
A60: Consumer Price Index | B60: ROMO
A61: Annual CPI Rate | B61: 5. ROMO FP | C61: Not required | F61: n/a | G61: n/a | H61: n/a | I61: n/a | J61: n/a
A62: Cumulative CPI rate Nominal to 18/19 | B62: 5. ROMO FP | E62: 1.032518923 | F62: =E62 -> 1.032518923 | G62: =F62 -> 1.032518923 | H62: 1.032518923 | I62: 1.032518923 | J62: 1.032518923 | M62: =E62 -> 1.032518923

Sheet CAPEX - Input
B1: Section 1: Input Data
B2: Description
B3: This section contains all the relevant inputs from the Global Inputs sheet, along with traffic control assuptions.
B5: Labour Rates | F5: Assuptions
B6: R3 Engineering Officer | C6: $ / hour | D6: 75.93784485 | F6: Number of Light installations in model | G6: 1001
B7: R5 Lineworker 5 Paypoint 19 | C7: $ / hour | D7: 40.03075863
B8: R2a Indoor technical officer | C8: $ / hour | D8: 66.11216955 | F8: Breakdown of Installation Types
F9: Bulk | G9: 0.05
B10: Overheads | F10: Streetlight Upgrade | G10: 0.3
B11: Divisional | D11: 0.2880072194 | F11: Single Column Installation | G11: 0.65
B12: Corporate | D12: 0.1325389619 | F12: Single Light Installation on Existing Pole | G12: 0.25
B13: Total | D13: 0.4205461813 | F13: Single Light Installation on New Pole | G13: 0.75
B15: On-Cost Rates | F15: Base Design Estimates
B16: Materials On-Cost Rate | D16: 0.1031 | F16: Bulk : design of a group of | G16: 5 | H16: streetlights takes | I16: 22 | J16: hours
B17: Labour Ordinary On-Cost Rate | D17: 0.5619 | F17: Bulk : Lantern / Bracket design consumes | G17: 0.25 | H17: of the total design time of | I17: 22 | J17: hours
B18: Labour Escalation Rate (Above CPI) | D18: 0 | F18: Bulk : Pole design consumes | G18: 0.75 | H18: of the total design time of | I18: 22 | J18: hours
B20: Plant Assuptions | F20: Bulk : design of a group of | G20: 5 | H20: streetlights takes | I20: 20 | J20: hours
B21: Plant Material Type | D21: Hourly Rate | F21: Bulk : Lantern / Bracket design consumes | G21: 0.4
B22: EWP | D22: 19.73243629 | F22: Bulk : Pole design consumes | G22: 0.6
B23: Borer | D23: 19.73243629 | F23: Street Upgrade : TRL | G23: 0.8 | H23: require new poles to be constructed
B24: Ditchwitch | D24: 19.73243629 | F24: Street Upgrade : TRL | G24: 0.2 | H24: use existing pole
B25: Trailer/Jinker | D25: 5.28101 | F25: Street Upgrade : Other projects | G25: 0.8 | H25: require new poles to be constructed
B26: Ute / Van | D26: 5.28101 | F26: Street Upgrade : Other projects | G26: 0.2 | H26: use existing pole
B27: 4 tonne truck | D27: 19.73243629
F28: Single Light : design of | G28: 1 | H28: streetlight (lantern, bracket and pole) takes | I28: 14 | J28: hours
B29: Traffic Control Assuptions | F29: Single Light : Lantern / Bracket design | H29: takes | I29: 6 | J29: hours
B30: Number of Controllers Required | D30: 2 | F30: Single Light : Pole design | H30: takes | I30: 8 | J30: hours
B31: Hourly Rate for Controller (EE internal) Oncosted | D31: 62.52404191
B32: Minimum Hours for Controller | D32: 4 | F32: Calculations
B33: % of lights requiring traffic control | D33: 1 | F33: Lantern Bracket Design Proportion | G33: 0.4285714286
B34: Number of Lights maintained per 4 hour stint (bulk) | D34: 1.5 | F34: Pole Design Proportion | G34: 0.5714285714
B35: Number of Brackets Maintained per 4 hour stint | D35: 1 | F35: BulkDesign Hours (Lantern & Bracket) for 1001 lights | G35: 1101.1
B36: Number of Columns Maintained per 4 hour stint | D36: 0.8 | F36: Bulk Design Hours (Pole) for 1001 lights | G36: 3303.3
B37: Base Traffic Control Cost per light | D37: 333.4615568 | F37: Street Upgrade Design Hours (Lantern & Bracket) for 1001 lights | G37: 800.8
B38: Base Traffic Control Cost per bracket | D38: 500.1923353 | F38: Street Upgrade Design Hours (Pole) for 1001 lights | G38: 3203.2
B39: Base Traffic Control Cost per column | D39: 625.2404191 | F39: Single Light Design Hours (Lantern & Bracket) for 1001 lights | G39: 6006
B40: % of P-Category Lights Requiring Traffic Control | C40: 0.1 | D40: 33.34615568 | F40: Single Light Hours (Pole) for 1001 lights | G40: 8008
B41: % of V-Category Lights Requiring Traffic Control | C41: 0.8 | D41: 266.7692455
B42: % of P-Category Brackets Requiring Traffic Control | C42: 0.1 | D42: 50.01923353 | F42: Lantern & Bracket Design Hours / Light | G42: 0
B43: % of V-Category Brackets Requiring Traffic Control | C43: 0.8 | D43: 400.1538682 | F43: Pole Design Hours / Light | G43: 5.025
B44: % of P-Category Columns Requiring Traffic Control | C44: 0.1 | D44: 62.52404191 | F44: Lantern & Bracket Design Cost / Light | G44: 0
B45: % of V-Category Columns Requiring Traffic Control | C45: 0.8 | D45: 500.1923353 | F45: Pole Design Cost / Light | G45: 518.884503
D47: Column and Pole Assemblies | L47: Bracket Assemblies | Y47: Luminaire Assemblies | AI47: Sub-Assemblies
B48: Assembly Code | C48: Assembly Description | D48: Component Type | F48: Stock Item | G48: Qty | H48: Cost | I48: Subtotals | L48: Assembly Code | M48: Assembly Description | N48: Component Type | P48: Stock Item | Q48: Qty | R48: Cost | S48: Subtotals | V48: Assembly Code | W48: Assembly Description | X48: Group | Y48: Component Type | Z48: Stock Item | AA48: Qty | AB48: Cost | AC48: Subtotals | AF48: Assembly Code | AG48: Assembly Description | AH48: Group | AI48: Component Type | AJ48: Stock Item | AK48: Qty | AL48: Cost | AM48: Subtotals
A49: Column | B49: 7.5_Single | C49: 7.5m Steel Column Single Outreach | D49: Materials | E49: 7.5_Single | F49: 7.5m Single Outreach | G49: 1 | I49: 1988.591418 | K49: Bracket | L49: 7107.02.1 | M49: Nightwatch light mounting Wood pole | N49: Materials | O49: 131245 | P49: Bracket Nightvision Mounting Single FloodIight [GWD] | Q49: 1 | S49: 515.1205299 | U49: Luminaire | V49: 7206.05.53 | W49: 42W Decorative Luminaire | X49: Sub-Assemblies | Y49: Lab_And_EWP | Z49: Standard Labour With Plant (EWP) For One Hour | AA49: 0.75 | AC49: 791.3650553 | AE49: Sub-Assemblies | AF49: Bracket_1 | AG49: Streetlight Bracket Assembly | AH49: Labour | AI49: 1001 | AJ49: CE Standard Labour Rate | AK49: 4.5 | AM49: 477.643998
D50: Sub-Assemblies | E50: Column_Install_Minor | F50: Minor Roadway Streetlight Rigid Column Installation | G50: 1 | N50: Sub-Assemblies | O50: Bracket_1 | P50: Streetlight Bracket Assembly | Q50: 1 | X50: Materials | Y50: 42W_CFL_Decorative | Z50: 42W Decorative Luminaire | AA50: 1 | AH50: Materials | AI50: 101780 | AJ50: Coachscrew M12x120mm Galv [GWD] | AK50: 2
A51: Column | B51: 7.5_Double | C51: 7.5m Steel Column Double Outreach | D51: Materials | E51: 7.5_Double | F51: 7.5m Double Outreach | G51: 1 | I51: 2079.524163 | N51: Materials | O51: M10_Bolts_Washers | P51: M10 x 75mm SS bolt, flat & spring washers | Q51: 1 | U51: Luminaire | V51: 7206.05.25 | W51: 70W Decorative Luminaire | X51: Materials | Y51: 70W_HPS_Decorative | Z51: 70W Decorative Luminaire | AA51: 1 | AC51: 567.3942028 | AH51: Materials | AI51: 105800 | AJ51: Bolt M20 X 220mm C/W Nut Galv [GWD] | AK51: 1
D52: Sub-Assemblies | E52: Column_Install_Minor | F52: Minor Roadway Streetlight Rigid Column Installation | G52: 1 | K52: Bracket | L52: Cat_P_Bracket | M52: Streetlight Bracket Category P | N52: Sub-Assemblies | O52: Bracket_1 | P52: Streetlight Bracket Assembly | Q52: 1 | S52: 580.6351801 | X52: Sub-Assemblies | Y52: Lab_And_EWP | Z52: Standard Labour With Plant (EWP) For One Hour | AA52: 0.75 | AH52: Materials | AI52: 109490 | AJ52: Washer 75x75x6mm M22 Hole [GWD] | AK52: 1
A53: Column | B53: 9.0_Single | C53: 9.0m Steel Column Single Outreach | D53: Materials | E53: 9.0_Single | F53: 9.0m Single Outreach | G53: 1 | I53: 2439.582385 | N53: Materials | O53: Cat_P_Bracket | P53: Category P Bracket | Q53: 1 | U53: Luminaire | V53: 7206.05.1 | W53: 80W Mercury Vapour Standard Luminaire | X53: Materials | Y53: 80W_MVA_Standard | Z53: 80W Mercury Vapour Standard Luminaire | AA53: 1 | AC53: 188.4888182 | AH53: Materials | AI53: 110470 | AJ53: Washer M20-M24 Conical S/S [GWD] | AK53: 1
D54: Sub-Assemblies | E54: Column_Install_Minor | F54: Minor Roadway Streetlight Rigid Column Installation | G54: 1 | K54: Bracket | L54: Cat_V_Bracket | M54: Streetlight Bracket Category V | N54: Sub-Assemblies | O54: Bracket_1 | P54: Streetlight Bracket Assembly | Q54: 1 | S54: 645.7330789 | X54: Sub-Assemblies | Y54: Lab_And_EWP | Z54: Standard Labour With Plant (EWP) For One Hour | AA54: 0.75 | AH54: Materials | AI54: 200557 | AJ54: Fuse Holder C/W 6.5A Inline Cartridge 6-6mm2 Cable [GWD] | AK54: 1
A55: Column | B55: 9.0_Double | C55: 9.0m Steel Column Double Outreach | D55: Materials | E55: 9.0_Double | F55: 9.0m Double Outreach | G55: 1 | I55: 2883.227804 | N55: Materials | O55: Cat_V_Bracket | P55: Category V Bracket | Q55: 1 | X55: Materials | Y55: 522620 | Z55: Lamp 80W MV - Elliptical [GWD] | AA55: 1 | AH55: Materials | AI55: 223497 | AJ55: Clamp Service T Al C/W S/S H/W [GWD] | AK55: 2
D56: Sub-Assemblies | E56: Column_Install_Minor | F56: Minor Roadway Streetlight Rigid Column Installation | G56: 1 | U56: Luminaire | V56: Compact_Fluro_32W | W56: 32W C/F Suburban Eco | X56: Sub-Assemblies | Y56: Lab_And_EWP | Z56: Standard Labour With Plant (EWP) For One Hour | AA56: 0.75 | AC56: 759.7036929 | AH56: Materials | AI56: 267600 | AJ56: Batten 3M PVC Earth Cover [GWD] | AK56: 0.5
A57: Column | B57: 10.5_Single | C57: 10.5m Steel Column Single Outreach | D57: Materials | E57: 10.5_Single | F57: 10.5m Single Outreach | G57: 1 | I57: 3115.186689 | X57: Materials | Y57: 500948 | Z57: Lantern 32W Compact Fluo Eco S Bourke Hill [GD] | AA57: 1 | AH57: Materials | AI57: 442820 | AJ57: Cable 6mm 7/1.04 1C Red Sdi Gp 0.6/1Kv Cu PVC/PVC [GWD] | AK57: 6
D58: Sub-Assemblies | E58: Column_Install_Major | F58: Major Roadway Streetlight Rigid Column Installation | G58: 1 | U58: Luminaire | V58: 7107.09.43 | W58: 42W CFL Standard Luminaire | X58: Materials | Y58: 42W_CFL_Standard | Z58: 42W CFL Standard Luminaire | AA58: 1 | AC58: 260.7006468 | AH58: Materials | AI58: 442830 | AJ58: Cable 6mm 7/1.04 1C Black Cu PVC/PVCGp 0.6/1Kv [GWD] | AK58: 6
A59: Column | B59: 10.5_Double | C59: 10.5m Steel Column Double Outreach | D59: Materials | E59: 10.5_Double | F59: 10.5m Double Outreach | G59: 1 | I59: 3758.852708 | X59: Sub-Assemblies | Y59: Lab_And_EWP | Z59: Standard Labour With Plant (EWP) For One Hour | AA59: 0.75 | AH59: Plant | AI59: P20 | AJ59: 4 Tonne Truck 2016 | AK59: 4.5
D60: Sub-Assemblies | E60: Column_Install_Major | F60: Major Roadway Streetlight Rigid Column Installation | G60: 1 | U60: Luminaire | V60: 7107.09.30 | W60: 50W HPS Twin-arc Standard Luminaire | X60: Materials | Y60: 501814 | Z60: Lantern 50W HPS Suit Twin Arc C/W Cell [G] | AA60: 1 | AC60: 246.0305199 | AH60: Plant | AI60: P22 | AJ60: EWP 2016 | AK60: 1
A61: Column | B61: 12.0_Single | C61: 12.0m Steel Column Single Outreach | D61: Materials | E61: 12.0_Single | F61: 12.0m Single Outreach | G61: 1 | I61: 3686.46658 | X61: Materials | Y61: 523792 | Z61: Lamp 50W HPS Twin Arc - Elliptical Ext/Ign [G] | AA61: 1 | AE61: Labour And Plant | AF61: Lab_And_EWP | AG61: Standard Labour With Plant (EWP) For One Hour | AH61: Labour | AI61: 1001 | AJ61: CE Standard Labour Rate | AK61: 1 | AM61: 84.29089238
D62: Sub-Assemblies | E62: Column_Install_Major | F62: Major Roadway Streetlight Rigid Column Installation | G62: 1 | X62: Sub-Assemblies | Y62: Lab_And_EWP | Z62: Standard Labour With Plant (EWP) For One Hour | AA62: 0.75 | AH62: Plant | AI62: P22 | AJ62: EWP 2016 | AK62: 1
A63: Column | B63: 12.0_Double | C63: 12.0m Steel Column Double Outreach | D63: Materials | E63: 12.0_Double | F63: 12.0m Double Outreach | G63: 1 | I63: 3788.228981 | U63: Luminaire | V63: 7107.09.3 | W63: 70W HPS Standard Luminaire | X63: Materials | Y63: 70W_HPS_Standard | Z63: Composite HPS 70W (Aero and Non-Aero) | AA63: 1 | AC63: 240.3949342 | AE63: Labour And Plant | AF63: Lab_And_4Tonne | AG63: Standard Labour With Plant (4 Tonne) For One Hour | AH63: Labour | AI63: 1001 | AJ63: CE Standard Labour Rate | AK63: 1 | AM63: 84.29089238
D64: Sub-Assemblies | E64: Column_Install_Major | F64: Major Roadway Streetlight Rigid Column Installation | G64: 1 | X64: Sub-Assemblies | Y64: Lab_And_EWP | Z64: Standard Labour With Plant (EWP) For One Hour | AA64: 0.75 | AH64: Plant | AI64: P20 | AJ64: 4 Tonne Truck 2016 | AK64: 1
A65: Column | B65: 7206.10.71 | C65: Column Stl Style 5 4.5m Prestige | D65: Materials | E65: 130855 | F65: Column Tapered Octagonal 4.5M Prestigious (Style 5) Bottle/G [GWD] | G65: 1 | I65: 2318.802593 | U65: Luminaire | V65: 7107.09.61 | W65: 70W HPS Twin Arc Standard Luminaire | X65: Materials | Y65: 523822 | Z65: Lamp 70W HPS Twin Arc C/H Elliptical | AA65: 1 | AC65: 253.3723542 | AE65: Sub-Assemblies | AF65: UG_Connection | AG65: Standard Underground Component Construction | AH65: Labour | AI65: 1001 | AJ65: CE Standard Labour Rate | AK65: 1 | AM65: 133.3704677
D66: Sub-Assemblies | E66: Column_Install_Minor | F66: Minor Roadway Streetlight Rigid Column Installation | G66: 1 | X66: Materials | Y66: 70W_HPS_TA_Standard | Z66: Composite Twin Arc HPS 70W (Aero and Non-Aero) | AA66: 1 | AH66: Materials | AI66: 100200 | AJ66: Set Screw M6 X 12mm Grub S/S [GWD] | AK66: 2
A67: Column | B67: 7206.10.72 | C67: Column Stl Styles 2,3 and 4 4.5m Prestige | D67: Materials | E67: 131150 | F67: Column 4.5M Prestige Bottle/Green [GWD] | G67: 1 | I67: 2384.524761 | X67: Sub-Assemblies | Y67: Lab_And_EWP | Z67: Standard Labour With Plant (EWP) For One Hour | AA67: 0.75 | AH67: Materials | AI67: 204360 | AJ67: Fuse 16A HRC Clip-on Offset Tag [GWD] | AK67: 1
D68: Sub-Assemblies | E68: Column_Install_Minor | F68: Minor Roadway Streetlight Rigid Column Installation | G68: 1 | U68: Luminaire | V68: 7107.09.7 | W68: 150W HPS Standard Luminaire | X68: Materials | Y68: 150W_HPS_Standard | Z68: Composite HPS 150W (Aero and Non-Aero) | AA68: 1 | AC68: 338.0573544 | AH68: Materials | AI68: 204480 | AJ68: Fuse 6A HRC Clip-In Offset Tag [GWD] | AK68: 1
A69: Column | B69: 7206.10.73 | C69: Column Stl Seesaw 12m B/M ground service | D69: Materials | E69: 131105 | F69: Column 12M Seesaw Baseplate Mounted Ground Serviced Galv [GD] | G69: 1 | I69: 5359.199278 | X69: Sub-Assemblies | Y69: Lab_And_EWP | Z69: Standard Labour With Plant (EWP) For One Hour | AA69: 0.75 | AH69: Materials | AI69: 211220 | AJ69: Fuse Holder 32A Front Wire [GWD] | AK69: 1
D70: Sub-Assemblies | E70: Column_Install_Major | F70: Major Roadway Streetlight Rigid Column Installation | G70: 1 | U70: Luminaire | V70: 7107.09.41 | W70: 150W HPS Twin Arc Standard Luminaire | X70: Materials | Y70: 500974 | Z70: Lantern 150W HPS Roadster With PE Cell & Lamp, No Fuse | AA70: 1 | AC70: 353.799529 | AH70: Materials | AI70: 234250 | AJ70: Lug Cu Comp 16mm M10 Hole [GWD] | AK70: 1
D71: Sub-Assemblies | E71: 7206.14.1 | F71: Fuse Panel for Ground Service Column | G71: 1 | X71: Materials | Y71: 520792 | Z71: Lamp 150W HPS Twin Arc Tubular | AA71: 1 | AH71: Materials | AI71: 262375 | AJ71: Breakout Boot 4-25mm 2 Leg Small [GWD] | AK71: 1
A72: Column | B72: 7206.10.74 | C72: Column Stl Seesaw 15m B/M ground service | D72: Materials | E72: 131110 | F72: Column 15M Seesaw Baseplate Mounted Ground Serviced Galv [GD] | G72: 1 | I72: 4467.870532 | X72: Sub-Assemblies | Y72: Lab_And_EWP | Z72: Standard Labour With Plant (EWP) For One Hour | AA72: 0.75 | AH72: Materials | AI72: 262435 | AJ72: Heatshrink Sleeve 19-5mm 100mm Long [GWD] | AK72: 2
D73: Sub-Assemblies | E73: Column_Install_Major | F73: Major Roadway Streetlight Rigid Column Installation | G73: 1 | U73: Luminaire | V73: 7107.09.11 | W73: 250W HPS Standard Luminaire | X73: Materials | Y73: 250W_HPS_Standard | Z73: Composite HPS 250W (Aero and Non-Aero) | AA73: 1 | AC73: 338.0573544 | AH73: Materials | AI73: 273600 | AJ73: Coupling 50mm PVC [GWD] | AK73: 1
D74: Sub-Assemblies | E74: 7206.14.1 | F74: Fuse Panel for Ground Service Column | G74: 1 | X74: Sub-Assemblies | Y74: Lab_And_EWP | Z74: Standard Labour With Plant (EWP) For One Hour | AA74: 0.75 | AH74: Materials | AI74: 273780 | AJ74: Reducer 40-32mm Conduit [GWD] | AK74: 1
A75: Column | B75: 7206.10.75 | C75: Column Stl Seesaw 18m B/M ground service | D75: Materials | E75: 131115 | F75: Column 18M Seesaw Baseplate Mounted Ground Serviced Galv [GD] | G75: 1 | I75: 8437.375723 | U75: Luminaire | V75: 7107.09.39 | W75: 250W HPS Twin Arc Standard Luminaire | X75: Materials | Y75: 524182 | Z75: Lamp 250W HPS Twin Arc Tubular | AA75: 1 | AC75: 407.9661514 | AH75: Materials | AI75: 273782 | AJ75: Reducer 50-40mm Conduit [GWD] | AK75: 1
D76: Sub-Assemblies | E76: Column_Install_Major | F76: Major Roadway Streetlight Rigid Column Installation | G76: 1 | X76: Materials | Y76: 501004 | Z76: 250W HPS Roadster Aeroscreen | AA76: 1 | AH76: Materials | AI76: 282320 | AJ76: Conduit 32mm Corrugated PVC Heavy Duty Orange [GWD] | AK76: 2
D77: Sub-Assemblies | E77: 7206.14.1 | F77: Fuse Panel for Ground Service Column | G77: 1 | X77: Sub-Assemblies | Y77: Lab_And_EWP | Z77: Standard Labour With Plant (EWP) For One Hour | AA77: 0.75 | AH77: Materials | AI77: 446610 | AJ77: Cable 16mm 2 Core Flat Cu PVC/PVC [GWD] | AK77: 2
A78: Pole | B78: 9.5m_Timber_Pole | C78: 9.5m Timber Pole | D78: Materials | E78: 125310 | F78: Pole 9.5M X 6kN CCA Timber [GW] | G78: 1 | I78: 778.2544957 | U78: Luminaire | V78: 7107.09.21 | W78: 400W HPS Standard Luminaire | X78: Materials | Y78: 400W_HPS_Standard | Z78: Composite HPS 400W (Aero and Non-Aero) | AA78: 1 | AC78: 432.1831455 | AH78: Materials | AI78: 446970 | AJ78: Cable 2.5mm 2 Core Flat Cu PVC/PVC [GWD] | AK78: 1
D79: Sub-Assemblies | E79: Pole_Install | F79: Timber Pole Installation | G79: 1 | X79: Sub-Assemblies | Y79: Lab_And_EWP | Z79: Standard Labour With Plant (EWP) For One Hour | AA79: 0.75 | AH79: Plant | AI79: P20 | AJ79: 4 Tonne Truck 2016 | AK79: 1
A80: Pole | B80: 11m_Timber_Pole | C80: 11m Timber Pole | D80: Materials | E80: 125340 | F80: Pole 11.0M X 6kN CCA Timber [GWD] | G80: 1 | I80: 890.3342652 | U80: Luminaire | V80: 7107.09.24 | W80: 400W HPS Twin Arc Standard Luminaire | X80: Materials | Y80: 500982 | Z80: Lantern 400W HPS Roadster & PE Cell & Lamp, No Fuse | AA80: 1 | AC80: 461.0043025 | AE80: Sub-Assemblies | AF80: 7206.28.1 | AG80: Streetlight slip base column connection | AH80: Materials | AI80: 285846 | AJ80: Slip Base Connection Kit [GWD] | AK80: 1 | AM80: 190.922504
D81: Sub-Assemblies | E81: Pole_Install | F81: Timber Pole Installation | G81: 1 | X81: Materials | Y81: 523762 | Z81: Lamp 400W HPS Twin Arc Tubular | AA81: 1 | AH81: Materials | AI81: 223483 | AJ81: Connector 2 x 6mm2 Insulated Double Screw [GWD] | AK81: 1
A82: Pole | B82: 12.5m_Timber_Pole | C82: 12.5m Timber Pole | D82: Materials | E82: 125370 | F82: Pole 12.5M X 6kN CCA Timber [GWD] | G82: 1 | I82: 1080.301124 | X82: Sub-Assemblies | Y82: Lab_And_EWP | Z82: Standard Labour With Plant (EWP) For One Hour | AA82: 0.75 | AH82: Sub-Assemblies | AI82: UG_Connection | AJ82: Standard Underground Component Construction | AK82: 1
D83: Sub-Assemblies | E83: Pole_Install | F83: Timber Pole Installation | G83: 1 | U83: Luminaire | V83: 7107.09.23 | W83: 400W MH Standard Luminaire | X83: Materials | Y83: 524750 | Z83: Lamp 400W Metal Halide Tubular Suit Sentry Floodlight [GWD] | AA83: 1 | AC83: 451.5872095 | AE83: Sub-Assemblies | AF83: 7206.02.1 | AG83: Streetlight column connection | AH83: Materials | AI83: 223015 | AJ83: Connector 2 X 16mm With 2 Screws [GWD] | AK83: 1 | AM83: 135.9998059
A84: Pole | B84: 14m_Timber_Pole | C84: 14m Timber Pole | D84: Materials | E84: 125400 | F84: Pole 14.0M X 6kN CCA Timber [GWD] | G84: 1 | I84: 1208.946852 | X84: Materials | Y84: 290340 | Z84: Control PE Cell 3 Pin to suit NEMA Base [GWD] | AA84: 1 | AH84: Sub-Assemblies | AI84: UG_Connection | AJ84: Standard Underground Component Construction | AK84: 1
D85: Sub-Assemblies | E85: Pole_Install | F85: Timber Pole Installation | G85: 1 | X85: Materials | Y85: 400W_MH_Standard | Z85: Composite MH 400W (Aero and Non-Aero) | AA85: 1 | AE85: Sub-Assemblies | AF85: 7206.14.1 | AG85: Fuse Panel for Ground Service Column | AH85: Materials | AI85: 211220 | AJ85: Fuse Holder 32A Front Wire [GWD] | AK85: 4 | AM85: 182.700112
A86: Pole | B86: 15.5m_Timber_Pole | C86: 15.5m Timber Pole | D86: Materials | E86: 125410 | F86: Pole 15.5M X 6kN CCA Timber [GWD] | G86: 1 | I86: 1346.620351 | X86: Sub-Assemblies | Y86: Lab_And_EWP | Z86: Standard Labour With Plant (EWP) For One Hour | AA86: 0.75 | AH86: Materials | AI86: 234250 | AJ86: Lug Cu Comp 16mm M10 Hole [GWD] | AK86: 2
D87: Sub-Assemblies | E87: Pole_Install | F87: Timber Pole Installation | G87: 1 | U87: Floodlight | V87: 7107.09.18 | W87: 250W HPS Asymetric Floodlight | X87: Materials | Y87: 509912 | Z87: Floodlight 250W HPS Sylflood AS Asymetric | AA87: 1 | AC87: 514.6066893 | AH87: Materials | AI87: 282320 | AJ87: Conduit 32mm Corrugated PVC Heavy Duty Orange [GWD] | AK87: 2
X88: Sub-Assemblies | Y88: Lab_And_EWP | Z88: Standard Labour With Plant (EWP) For One Hour | AA88: 0.75 | AH88: Materials | AI88: 446610 | AJ88: Cable 16mm 2 Core Flat Cu PVC/PVC [GWD] | AK88: 2
U89: Floodlight | V89: 7107.09.19 | W89: 250W MH Asymetric Floodlight | X89: Materials | Y89: 509913 | Z89: Floodlight 250W Metal Halide Sylflood AS Asymetric | AA89: 1 | AC89: 491.3601805 | AH89: Labour | AI89: 1001 | AJ89: CE Standard Labour Rate | AK89: 1.5
X90: Sub-Assemblies | Y90: Lab_And_EWP | Z90: Standard Labour With Plant (EWP) For One Hour | AA90: 0.75 | AH90: Plant | AI90: P20 | AJ90: 4 Tonne Truck 2016 | AK90: 1.5
U91: Floodlight | V91: 7107.09.25 | W91: 400W MH Asymetric Floodlight | X91: Materials | Y91: 500992 | Z91: Floodlight 400w Metal Halide Sylflood Asymetric [GWD] | AA91: 1 | AC91: 514.6066893 | AH91: Materials | AI91: 204360 | AJ91: Fuse 16A HRC Clip-on Offset Tag [GWD] | AK91: 4
X92: Sub-Assemblies | Y92: Lab_And_EWP | Z92: Standard Labour With Plant (EWP) For One Hour | AA92: 0.75 | AH92: Materials | AI92: 215460 | AJ92: Circuit Breaker 25A 1Phase 6Ka [GWD] | AK92: 1
U93: Floodlight | V93: 7107.09.26 | W93: 400W HPS Asymetric Floodlight | X93: Materials | Y93: 500990 | Z93: Floodlight 400w HPS Sylflood Asymetric with PE Cell & Lamp [GWD] | AA93: 1 | AC93: 532.549383 | AH93: Materials | AI93: 235815 | AJ93: Link 6 Hole Neutral [GWD] | AK93: 1
X94: Sub-Assemblies | Y94: Lab_And_EWP | Z94: Standard Labour With Plant (EWP) For One Hour | AA94: 0.75 | AE94: Sub-Assemblies | AF94: Slip_Base_Install | AG94: Streetlight Slip Based Column Installation | AH94: Labour | AI94: 1001 | AJ94: CE Standard Labour Rate | AK94: 10.36 | AM94: 2246.814071
U95: Floodlight | V95: 7107.09.50 | W95: 1000W MH Floodlight | X95: Materials | Y95: 510310 | Z95: Floodlight 1000W MH C/W Remote Gear [D] | AA95: 1 | AC95: 1098.797876 | AH95: Plant | AI95: P20 | AJ95: 4 Tonne Truck 2016 | AK95: 10.36
X96: Materials | Y96: 524570 | Z96: Lamp 1001 Watt Metal Halide Powerstar [WD] | AA96: 1 | AH96: Materials | AI96: 130990 | AJ96: Anchor Base 4 Fin 24.7kNM 350mm PCD Screw-In(Series 3A) [GWD] | AK96: 1
X97: Sub-Assemblies | Y97: Lab_And_EWP | Z97: Standard Labour With Plant (EWP) For One Hour | AA97: 1 | AH97: Sub-Assemblies | AI97: 7206.28.1 | AJ97: Streetlight slip base column connection | AK97: 1
U98: Luminaire | V98: 7206.05.80 | W98: LED 42W Gerard Luminaire (Cat P3) | X98: Materials | Y98: 290340 | Z98: Control PE Cell 3 Pin to suit NEMA Base [GWD] | AA98: 1 | AC98: 360.5703568 | AE98: Sub-Assemblies | AF98: Column_Install_Major | AG98: Major Roadway Streetlight Rigid Column Installation | AH98: Sub-Assemblies | AI98: 7206.02.1 | AJ98: Streetlight column connection | AK98: 1 | AM98: 2213.658224
X99: Sub-Assemblies | Y99: Lab_And_EWP | Z99: Standard Labour With Plant (EWP) For One Hour | AA99: 0.75 | AH99: Materials | AI99: 130990 | AJ99: Anchor Base 4 Fin 24.7kNM 350mm PCD Screw-In(Series 3A) [GWD] | AK99: 1
X100: Materials | Y100: 510180 | Z100: LED 36W Gerard Luminaire (Cat P3) | AA100: 1 | AH100: Plant | AI100: P21 | AJ100: Borer 2016 | AK100: 1
U101: Luminaire | V101: 7206.05.81 | W101: LED 23W Gerard Luminaire (Cat P3) - Aeroscreen | X101: Materials | Y101: 290340 | Z101: Control PE Cell 3 Pin to suit NEMA Base [GWD] | AA101: 1 | AC101: 340.2578734 | AH101: Plant | AI101: P20 | AJ101: 4 Tonne Truck 2016 | AK101: 10.36
X102: Sub-Assemblies | Y102: Lab_And_EWP | Z102: Standard Labour With Plant (EWP) For One Hour | AA102: 0.75 | AH102: Labour | AI102: 1001 | AJ102: CE Standard Labour Rate | AK102: 10.36
X103: Materials | Y103: 510185 | Z103: LED 23W Gerard Luminaire (Cat P3) - Aeroscreen | AA103: 1 | AE103: Sub-Assemblies | AF103: Column_Install_Minor | AG103: Minor Roadway Streetlight Rigid Column Installation | AH103: Sub-Assemblies | AI103: 7206.02.1 | AJ103: Streetlight column connection | AK103: 1 | AM103: 1586.447288
U104: Luminaire | V104: 7206.05.82 | W104: LED 17W Gerard Luminaire (Cat P20/P5) | X104: Materials | Y104: 290340 | Z104: Control PE Cell 3 Pin to suit NEMA Base [GWD] | AA104: 1 | AC104: 350.8013032 | AH104: Plant | AI104: P21 | AJ104: Borer 2016 | AK104: 1
X105: Sub-Assemblies | Y105: Lab_And_EWP | Z105: Standard Labour With Plant (EWP) For One Hour | AA105: 0.75 | AH105: Plant | AI105: P20 | AJ105: 4 Tonne Truck 2016 | AK105: 1.25
X106: Materials | Y106: 510190 | Z106: LED 17W Gerard Luminaire (Cat P20/P5) | AA106: 1 | AH106: Labour | AI106: 1001 | AJ106: CE Standard Labour Rate | AK106: 3.5
U107: Luminaire | V107: 7206.05.83 | W107: LED 17W Gerard Luminaire (Cat P20/P5) - Aeroscreen | X107: Materials | Y107: 510195 | Z107: LED 17W Gerard Luminaire (Cat P20/P5) - Aeroscreen | AA107: 1 | AC107: 361.7855318 | AH107: Materials | AI107: 130990 | AJ107: Anchor Base 4 Fin 24.7kNM 350mm PCD Screw-In(Series 3A) [GWD] | AK107: 1
X108: Materials | Y108: 290340 | Z108: Control PE Cell 3 Pin to suit NEMA Base [GWD] | AA108: 1 | AE108: Sub-Assemblies | AF108: Pole_Install | AG108: Timber Pole Installation | AH108: Plant | AI108: P21 | AJ108: Borer 2016 | AK108: 2.4 | AM108: 432.5585976
X109: Sub-Assemblies | Y109: Lab_And_EWP | Z109: Standard Labour With Plant (EWP) For One Hour | AA109: 0.75 | AH109: Plant | AI109: P20 | AJ109: 4 Tonne Truck 2016 | AK109: 2.4
U110: Luminaire | V110: 7206.05.84 | W110: LED 17W Gerard Luminaire - Louvred (Cat P20/P5 RRW) | X110: Materials | Y110: 510200 | Z110: LED 17W Gerard Luminaire - Louvred (Cat P20/P5 RRW) | AA110: 1 | AC110: 361.7855318 | AH110: Labour | AI110: 1001 | AJ110: CE Standard Labour Rate | AK110: 4.8
X111: Materials | Y111: 290340 | Z111: Control PE Cell 3 Pin to suit NEMA Base [GWD] | AA111: 1 | AH111: Plant | AI111: P23 | AJ111: Trailer/Jinker 2016 | AK111: 4.8
X112: Sub-Assemblies | Y112: Lab_And_EWP | Z112: Standard Labour With Plant (EWP) For One Hour | AA112: 0.75 | AE112: Bracket | AF112: 7107.02.1 | AG112: Nightwatch light mounting Wood pole | AH112: Materials | AI112: 131245 | AJ112: Bracket Nightvision Mounting Single FloodIight [GWD] | AK112: 1 | AM112: 515.1205299
U113: Luminaire | V113: 7206.05.85 | W113: LED 25W GE Evolve Luminaire (Cat P20/P5) | X113: Materials | Y113: 510205 | Z113: LED 25W GE Evolve Luminaire (Cat P20/P5) | AA113: 1 | AC113: 245.8048256 | AH113: Sub-Assemblies | AI113: Bracket_1 | AJ113: Streetlight Bracket Assembly | AK113: 1
X114: Materials | Y114: 290340 | Z114: Control PE Cell 3 Pin to suit NEMA Base [GWD] | AA114: 1 | AH114: Materials | AI114: M10_Bolts_Washers | AJ114: M10 x 75mm SS bolt, flat & spring washers | AK114: 1
X115: Sub-Assemblies | Y115: Lab_And_EWP | Z115: Standard Labour With Plant (EWP) For One Hour | AA115: 0.75
U116: Luminaire | V116: 7206.05.86 | W116: LED 35W Pecan Luminaire (Cat P3) | X116: Materials | Y116: 510230 | Z116: LED 35W Pecan Luminaire (Cat P3) | AA116: 1 | AC116: 433.1830174
X117: Materials | Y117: 290340 | Z117: Control PE Cell 3 Pin to suit NEMA Base [GWD] | AA117: 1
X118: Sub-Assemblies | Y118: Lab_And_EWP | Z118: Standard Labour With Plant (EWP) For One Hour | AA118: 0.75
U119: Luminaire | V119: 7206.05.87 | W119: LED 29W Pecan Luminaire (Cat P3) - Aeroscreen | X119: Materials | Y119: 510225 | Z119: LED 29W Pecan Luminaire (Cat P3) - Aeroscreen | AA119: 1 | AC119: 433.1830174
X120: Materials | Y120: 290340 | Z120: Control PE Cell 3 Pin to suit NEMA Base [GWD] | AA120: 1
X121: Sub-Assemblies | Y121: Lab_And_EWP | Z121: Standard Labour With Plant (EWP) For One Hour | AA121: 0.75
U122: Luminaire | V122: 7206.05.88 | W122: LED 42W Pecan Luminaire (Cat V5) | X122: Materials | Y122: 510240 | Z122: LED 42W Pecan Luminaire (Cat V5) | AA122: 1 | AC122: 491.0943113
X123: Materials | Y123: 290340 | Z123: Control PE Cell 3 Pin to suit NEMA Base [GWD] | AA123: 1
X124: Sub-Assemblies | Y124: Lab_And_EWP | Z124: Standard Labour With Plant (EWP) For One Hour | AA124: 0.75
U125: Luminaire | V125: 7206.05.89 | W125: LED 36W Pecan Luminaire (Cat V5) - Aeroscreen | X125: Materials | Y125: 510235 | Z125: LED 36W Pecan Luminaire (Cat V5) - Aeroscreen | AA125: 1 | AC125: 491.0943113
X126: Materials | Y126: 290340 | Z126: Control PE Cell 3 Pin to suit NEMA Base [GWD] | AA126: 1
X127: Sub-Assemblies | Y127: Lab_And_EWP | Z127: Standard Labour With Plant (EWP) For One Hour | AA127: 0.75
U128: Luminaire | V128: 7206.05.90 | W128: LED 105W Aldridge Luminaire (Cat V3) | X128: Materials | Y128: 510210 | Z128: LED 105W Aldridge Luminaire (Cat V3) | AA128: 1 | AC128: 945.1184902
X129: Materials | Y129: 290340 | Z129: Control PE Cell 3 Pin to suit NEMA Base [GWD] | AA129: 1
X130: Sub-Assemblies | Y130: Lab_And_EWP | Z130: Standard Labour With Plant (EWP) For One Hour | AA130: 0.75
U131: Luminaire | V131: 7206.05.91 | W131: LED 198W Aldridge Luminaire (Cat V1) - Standard Dist. | X131: Materials | Y131: 510215 | Z131: LED 198W Aldridge Luminaire (Cat V1) - Standard Dist. | AA131: 1 | AC131: 1015.957366
X132: Materials | Y132: 290340 | Z132: Control PE Cell 3 Pin to suit NEMA Base [GWD] | AA132: 1
X133: Sub-Assemblies | Y133: Lab_And_EWP | Z133: Standard Labour With Plant (EWP) For One Hour | AA133: 0.75
U134: Luminaire | V134: 7206.05.92 | W134: LED 198W Aldridge Luminaire (Cat V1) - Forward Dist. | X134: Materials | Y134: 510220 | Z134: LED 198W Aldridge Luminaire (Cat V1) - Forward Dist. | AA134: 1 | AC134: 1002.532198
X135: Materials | Y135: 290340 | Z135: Control PE Cell 3 Pin to suit NEMA Base [GWD] | AA135: 1
X136: Sub-Assemblies | Y136: Lab_And_EWP | Z136: Standard Labour With Plant (EWP) For One Hour | AA136: 0.75
U137: Luminaire | V137: 7206.05.93 | W137: LED 298W Aldrige Luminaire (Cat V1) - Standard Dist. | X137: Materials | Y137: 510245 | Z137: LED 298W Aldrige Luminaire (Cat V1) - Standard Dist. | AA137: 1 | AC137: 1162.413747
X138: Materials | Y138: 290340 | Z138: Control PE Cell 3 Pin to suit NEMA Base [GWD] | AA138: 1
X139: Sub-Assemblies | Y139: Lab_And_EWP | Z139: Standard Labour With Plant (EWP) For One Hour | AA139: 0.75
U140: Luminaire | V140: LED0015 | W140: LED 100W Aldridge Luminaire - Brownfield | X140: Materials | Y140: 510207 | Z140: LED 100W Luminaire Category V4 Aldridge | AA140: 1 | AC140: 1010.521289
X141: Materials | Y141: 290340 | Z141: Control PE Cell 3 Pin to suit NEMA Base [GWD] | AA141: 1
X142: Sub-Assemblies | Y142: Lab_And_EWP | Z142: Standard Labour With Plant (EWP) For One Hour | AA142: 0.75
U143: Luminaire | V143: LED0016 | W143: LED 200W Aldridge Luminaire - Brownfield | X143: Materials | Y143: 510222 | Z143: LED 200W Luminaire Category V3 Aldridge | AA143: 1 | AC143: 1010.521289
X144: Materials | Y144: 290340 | Z144: Control PE Cell 3 Pin to suit NEMA Base [GWD] | AA144: 1
X145: Sub-Assemblies | Y145: Lab_And_EWP | Z145: Standard Labour With Plant (EWP) For One Hour | AA145: 0.75
U146: Luminaire | V146: LED0017 | W146: LED 300W Aldridge Luminaire - Brownfield | X146: Materials | Y146: 510224 | Z146: 'LED 300W Luminaire Category V2 Aldridge | AA146: 1 | AC146: 1156.130489
X147: Materials | Y147: 290340 | Z147: Control PE Cell 3 Pin to suit NEMA Base [GWD] | AA147: 1
X148: Sub-Assemblies | Y148: Lab_And_EWP | Z148: Standard Labour With Plant (EWP) For One Hour | AA148: 0.75
U149: Floodlight | V149: 250W_NW | W149: 250W Nightwatch | X149: Materials | Y149: 509912 | Z149: Floodlight 250W HPS Sylflood AS Asymetric | AA149: 1 | AC149: 966.5090499
X150: Sub-Assemblies | Y150: 7107.02.1 | Z150: Nightwatch light mounting Wood pole | AA150: 1
U151: Floodlight | V151: 400W_NW | W151: 400W Nightwatch | X151: Materials | Y151: 500990 | Z151: Floodlight 400w HPS Sylflood Asymetric with PE Cell & Lamp [GWD] | AA151: 1 | AC151: 984.4517436
X152: Sub-Assemblies | Y152: 7107.02.1 | Z152: Nightwatch light mounting Wood pole | AA152: 1

Sheet CAPEX - Stock Costs
B3: Section 3: Stock Table
B4: Description
B5: The following pole assuptions have been made based on WASP data extracted - Sep 2017
B6: • This section looked through a document supplied by Sam Peake, Thu 14/09/2017 1:45 PM, titled ""2017.06.30 Usage Summary.xlsx" • Vlookups were used to check if the below stock codes were in the Usage document – if so, it used the price of those values (with one year CPI – 2.3%) • If not, the value from previous models were used – and had CPI applied to lift the price from 2012-13 dollar to 2018-19 dollars (10.64%, taken from ROMO)
B9: Data Updated | C9: 2017-09-16
B10: Total | C10: Ord Oncost
B11: Materials On cost Rate | C11: 0.1031
B12: Labour ordinary on cost Rate | C12: 0.5619
B14: Stock Number | C14: Description | D14: Cost | E14: Oncosts | F14: Total
B15: 1001 | C15: CE Standard Labour Rate
B16: 100200 | C16: Set Screw M6 X 12mm Grub S/S [GWD]
B17: 101780 | C17: Coachscrew M12x120mm Galv [GWD]
B18: 101878 | C18: Coachscrew M20 X 130mm Galv [GWD]
B19: 105200 | C19: Bolt M16 X 200mm C/W Nut Galv [GWD]
B20: 105350 | C20: Bolt M16 X 300mm C/W Nut Galv [GWD]
B21: 105800 | C21: Bolt M20 X 220mm C/W Nut Galv [GWD]
B22: 105920 | C22: Bolt M20 X 300mm C/W Nut Galv [GWD]
B23: 109490 | C23: Washer 75x75x6mm M22 Hole [GWD]
B24: 110150 | C24: Washer M16 50x4mm Flat Round Galv [GWD]
B25: 110470 | C25: Washer M20-M24 Conical S/S [GWD]
B26: 125190 | C26: Pole Timber 9.5m X 4kN Undrilled CCA [GWD]
B27: 125220 | C27: Pole Timber 11.0m X 4kN Undrilled CCA [GWD]
B28: 125250 | C28: Pole Timber 12.5m X 4kN Pre-Drilled CCA [GWD]
B29: 125260 | C29: Pole 14.0M X 4kN CCA Timber [GWD]
B30: 125310 | C30: Pole 9.5M X 6kN CCA Timber [GW]
B31: 125340 | C31: Pole 11.0M X 6kN CCA Timber [GWD]
B32: 125370 | C32: Pole 12.5M X 6kN CCA Timber [GWD]
B33: 125400 | C33: Pole 14.0M X 6kN CCA Timber [GWD]
B34: 125410 | C34: Pole 15.5M X 6kN CCA Timber [GWD]
B35: 125520 | C35: Pole 11.0M X 8Kn CCA Timber [GWD]
B36: 125550 | C36: Pole 12.5M X 8kN CCA Timber [GWD]
B37: 125580 | C37: Pole 14.0M X 8kN CCA Timber [GWD]
B38: 125610 | C38: Pole 15.5M X 8kN CCA Timber [GW]
B39: 125620 | C39: Pole 17.0M X 6kN CCA Timber [GWD]
B40: 125640 | C40: Pole 17.0M X 8kN CCA Timber [GW]
B41: 125820 | C41: Pole 12.5M X 12Kn CCA Timber [GWD]
B42: 125850 | C42: Pole 14.0M X 12kN CCA Timber [GWD]
B43: 125860 | C43: Pole 15.5M X 12kN CCA Timber [GW]
B44: 130150 | C44: Concrete 20kg Gen Purpose [GWD]
B45: 130855 | C45: Column Tapered Octagonal 4.5M Prestigious (Style 5) Bottle/G [GWD]
B46: 130936 | C46: Anchor 1CE Ragbolt Cage Assembly [GWD]
B47: 130938 | C47: Anchor 2B Ragbolt Cage Assembly [GWD]
B48: 130940 | C48: Anchor 3A Ragbolt Cage Assembly [GWD]
B49: 130942 | C49: Anchor 4A Ragbolt Cage Assembly [GWD]
B50: 130944 | C50: Anchor 4B Ragbolt Cage Assembly [GWD]
B51: 130946 | C51: Anchor 5A Ragbolt Cage Assembly [GWD]
B52: 130950 | C52: Anchor Base 3 Fin 6.0kNM 210mm PCD Screw-In [GWD]
B53: 130975 | C53: Anchor Base 4 Fin 17.0kNM 350mm PCD Screw-In(Series 2B) [GWD]
B54: 130980 | C54: Anchor Base 4 Fin 81.7kNM 500mm PCD Screw-In(Series 5A) [GWD]
B55: 130990 | C55: Anchor Base 4 Fin 24.7kNM 350mm PCD Screw-In(Series 3A) [GWD]
B56: 130991 | C56: Anchor Base 4 Fin 32kNM 350mm PCD Screw-In(Series 3B) [GWD]
B57: 130995 | C57: Anchor Base 4 Fin 39.2kNM 350mm PCD Screw-In(Series 4A) [GWD]
B58: 130996 | C58: Anchor Base 4 Fin 56.1kNM 500mm PCD Screw-In(Series 4B) [GWD]
B59: 131010 | C59: Column 9M X 1.5M Single O/R Tapered Round Impact Absorbing [GWD]
B60: 131011 | C60: Column 9M X 1.5M Double O/R Tapered Round Impact Absorbing C [GWD]
B61: 131012 | C61: Column 9M X 3M Single O/R Tapered Round Impact Absorbing Cur [GWD]
B62: 131013 | C62: Column 9M X 3M Double O/R Tapered Round Impact Absorbing Cur [GWD]
B63: 131014 | C63: Column 9M X 4.5M Single O/R Tapered Round Impact Absorbing C [GWD]
B64: 131015 | C64: Column 9M X 4.5M Double O/R Tapered Round Impact Absorbing [GWD]
B65: 131018 | C65: Column 10.5M X 1.5M Single O/R Tapered Round Impact Absorbin [GWD]
B66: 131019 | C66: Column 10.5M X 1.5M Double O/R Tapered Round Impact Absorbi [GWD]
B67: 131020 | C67: Column 10.5M X 3M Single O/R Tapered Round Impact Absorbing [GWD]
B68: 131021 | C68: Column 10.5M X 3M Double O/R Tapered Round Impact Absorbing [GWD]
B69: 131022 | C69: Column 10.5M X 4.5M Single O/R Tapered Round Impact Absorbi [GWD]
B70: 131023 | C70: Column 10.5M X 4.5M Double O/R Tapered Round Impact Absorbi [GWD]
B71: 131024 | C71: Column 10.5M X 6M Single O/R Tapered Round Impact Absorbing [GWD]
B72: 131026 | C72: Column 12M X 1.5M Single O/R Tapered Round Impact Absorbing [GWD]
B73: 131027 | C73: Column 12M X 1.5M Double O/R Tapered Round Impact Absorbing [GWD]
B74: 131028 | C74: Column 12M X 3M Single O/R Tapered Round Impact Absorbing C [GWD]
B75: 131029 | C75: Column 12M X 3M Double O/R Tapered Round Impact Absorbing C [GWD]
B76: 131030 | C76: Column 12M X 4.5M Single O/R Tapered Round Impact Absorbing [GWD]
B77: 131031 | C77: Column 12M X 4.5M Double O/R Tapered Round Impact Absorbing [GWD]
B78: 131032 | C78: Column 12M X 6M Single O/R Tapered Round Impact Absorbing C [GWD]
B79: 131040 | C79: Column 9M X 1.5M Single O/R Tapered Round Slip Base Curved [GWD]
B80: 131041 | C80: Column 9M X 1.5M Double O/R Tapered Round Slip Base Curved [GWD]
B81: 131042 | C81: Column 9M X 3M Single O/R Tapered Round Slip Base Curved Ga [GWD]
B82: 131043 | C82: Column 9M X 3M Double O/R Tapered Round Slip Base Curved Ga [GWD]
B83: 131044 | C83: Column 9M X 4.5M Single O/R Tapered Round Slip Base Curved [GD]
B84: 131054 | C84: Column 12M X 6.0M Single O/R Tapered Round Slip Base Curved [GD]
B85: 131045 | C85: Column 9M X 4.5M Double O/R Tapered Round Slip Base Curved [GWD]
B86: 131048 | C86: Column 10.5M X 1.5M Single O/R Tapered Round Slip Base Curv [GWD]
B87: 131049 | C87: Column 10.5M X 1.5M Double O/R Tapered Round Slip Base Curv [GWD]
B88: 131050 | C88: Column 10.5M X 3M Single O/R Tapered Round Slip Base Curved [GWD]
B89: 131051 | C89: Column 10.5M X 3M Double O/R Tapered Round Slip Base Curved [GWD]
B90: 131052 | C90: Column 10.5M X 4.5M Single O/R Tapered Round Slip Base Curv [GD]
B91: 131053 | C91: Column 10.5M X 4.5M Double O/RTapered Round Slip Base Curve [GWD]
B92: 131055 | C92: Column 10.5M X 6M Double O/R Tapered Round Slip Base Curved [GWD]
B93: 131056 | C93: Column 12M X 1.5M Single O/R Tapered Round Slip Base Curved [GWD]
B94: 131057 | C94: Column 12M X 1.5M Double O/R Tapered Round Slip Base Curved [GWD]
B95: 131058 | C95: Column 12M X 3M Single O/R Tapered Round Slip Base Curved G [GWD]
B96: 131059 | C96: Column 12M X 3M Double O/R Tapered Round Slip Base Curved G [GWD]
B97: 131060 | C97: Column 12M X 4.5M Single O/R Tapered Round Slip Base Curved [GD]
B98: 131061 | C98: Column 12M X 4.5M Double O/R Tapered Round Slip Base Curved [GWD]
B99: 131065 | C99: Column 7.5M X 1.5M Single O/R Tapered Octagonal Curved Galv [GWD]
B100: 131066 | C100: Column 7.5M X 1.5M Double O/R Tapered Octagonal Curved Galv [GWD]
B101: 131068 | C101: Column 7.5M X 3M Single O/R Tapered Octagonal Curved Galv [GWD]
B102: 131067 | C102: Column 7.5M X 1.5M Single O/R Impact Absorbing Galv
B103: 131069 | C103: Column 7.5M X 1.5M Double O/R Impact Absorbing Galv
B104: 131126 | C104: Column 7.5M X 3M Double O/R Impact Absorbing Galv
B105: 131070 | C105: Column 9M X 1.5M Single O/R Tapered Round Rigid Curved Galv [GWD]
B106: 131071 | C106: Column 9M X 1.5M Double O/R Tapered Round Rigid Curved Galv [GWD]
B107: 131073 | C107: Column 9M X 3M Single O/R Tapered Round Rigid Curved Galv [GWD]
B108: 131074 | C108: Column 9M X 3M Double O/R Tapered Round Rigid Curved Galv [GWD]
B109: 131076 | C109: Column 9M X 4.5M Single O/R Tapered Round Rigid Curved Galv [GD]
B110: 131077 | C110: Column 9M X 4.5M Double O/R Tapered Round Rigid Curved Galv [GWD]
B111: 131080 | C111: Column 10.5M X 1.5M Single O/R Tapered Round Rigid Curved G [GWD]
B112: 131081 | C112: Column 10.5M X 1.5M Double O/R Tapered Round Rigid Curved G [GWD]
B113: 131083 | C113: Column 10.5M X 3M Single O/R Tapered Round Rigid Curved Gal [GWD]
B114: 131084 | C114: Column 10.5M X 3M Double O/R Tapered Round Rigid CurvedGal [GWD]
B115: 131086 | C115: Column 10.5M X 4.5M Single O/R Tapered Round Rigid Curved G [GD]
B116: 131087 | C116: Column 10.5M X 4.5M Double O/R Tapered Round Rigid Curved G [GWD]
B117: 131090 | C117: Column 12M X 1.5M Single O/R Tapered Round Rigid Curved Gal [GWD]
B118: 131091 | C118: Column 12M X 1.5M Double O/R Tapered Round Rigid Curved Gal [GWD]
B119: 131093 | C119: Column 12M X 3M Single O/R Tapered Round Rigid Curved Galv [GWD]
B120: 131094 | C120: Column 12M X 3M Double O/R Tapered Round Rigid Curved Galv [GWD]
B121: 131096 | C121: Column 12M X 4.5M Single O/R Tapered Round Rigid Curved Gal [GD]
B122: 131097 | C122: Column 12M X 4.5M Double O/R Tapered Round Rigid Curved Gal [GWD]
B123: 131098 | C123: Column 12M X 6M Single O/R Tapered Round Rigid CurvOutreach [GWD]
B124: 131105 | C124: Column 12M Seesaw Baseplate Mounted Ground Serviced Galv [GD]
B125: 131110 | C125: Column 15M Seesaw Baseplate Mounted Ground Serviced Galv [GD]
B126: 131115 | C126: Column 18M Seesaw Baseplate Mounted Ground Serviced Galv [GD]
B127: 131123 | C127: Column 7.5M X 3M Single O/R Tapered Round Impact Absorbing C [GWD]
B128: 131148 | C128: Column 10.5M X 3M Decorative Hook Outreach Bottle/Green [GD]
B129: 131150 | C129: Column 4.5M Prestige Bottle/Green [GWD]
B130: 131182 | C130: Spigot AdaP24or 32mm to 25mm Pedestrian [GWD]
B131: 131184 | C131: Spigot AdaP24or S/Light OR 45Degree
B132: 131185 | C132: Spigot AdaP24or 50mm to 32mm Pedestrian [GWD]
B133: 131190 | C133: Spigot AdaP24or 40mm to 25mm Streetlight [GWD]
B134: 131195 | C134: Spigot AdaP24or 50mm to 25mm Streetlight [GWD]
B135: 131200 | C135: AdaP24or Bracket Streetlight Outreach 3 Way(Pipe) [GWD]
B136: 131201 | C136: AdaP24or Bracket Streetlight Outreach 4 Way(Pipe) [GWD]
B137: 131210 | C137: AdaP24or Plate Suit Concrete Poles [GWD]
B138: 131225 | C138: Bracket Nightvision Mounting Twin FloodIights [GWD]
B139: 131230 | C139: Bracket Floodlight 3-Light Headframe(Channel) [GWD]
B140: 131232 | C140: Bracket Floodlight 4-Light Headframe(Channel) [GWD]
B141: 131245 | C141: Bracket Nightvision Mounting Single FloodIight [GWD]
B142: 131275 | C142: Bracket 500mm S/Light Outreach CE1 [GWD]
B143: 131277 | C143: Bracket 2000mm S/Light Outreach CE2 [GWD]
B144: 131280 | C144: Bracket CE3 3000mm S/Light Outreach [GWD]
B145: 131282 | C145: Bracket CE4 4500mm S/Light Outreach [GWD]
B146: 131285 | C146: Bracket CE5 6000mm S/Light Outreach [GWD]
B147: 131288 | C147: Bracket CE6 2000mm S/Light 5 Deg Rise [GWD]
B148: 131289 | C148: Bracket 3000mm S/Light OR CE7
B149: 131289 | C149: Bracket 3000mm S/Light OR CE7
B150: 132014 | C150: Pole Concrete 11.0m x 10/5kN Spun [GWD]
B151: 132018 | C151: Pole Concrete 11.0m x 16/8 kN Spun [ ]
B152: 132025 | C152: Pole Concrete 12.5m x 10/5kN Spun [GWD]
B153: 132028 | C153: Pole Concrete 12.5m x 16/8kN Urban Sub [GWD]
B154: 132032 | C154: Pole Concrete 12.5m x 16/8kN Rural Sub [GWD]
B155: 132038 | C155: Pole Concrete 12.5m x 16/8kN Spun [ ]
B156: 132052 | C156: Pole Concrete 14.0m x 16/8kN Spun [GWD]
B157: 132055 | C157: Pole Concrete 14.0m x 16/8kN Urban Sub [GWD]
B158: 132060 | C158: Pole Concrete 14.0m x 16/8kN Recloser [GWD]
B159: 132135 | C159: Pole Concrete 12.5m x 10/5kN Precast [GWD]
B160: 200557 | C160: Fuse Holder C/W 6.5A Inline Cartridge 6-6mm2 Cable [GWD]
B161: 204360 | C161: Fuse 16A HRC Clip-on Offset Tag [GWD]
B162: 204480 | C162: Fuse 6A HRC Clip-In Offset Tag [GWD]
B163: 210660 | C163: Meter Box 600x600x250mm Galv [GWD]
B164: 211220 | C164: Fuse Holder 32A Front Wire [GWD]
B165: 211230 | C165: Fuse 60-80A Switchboard Mtg [GWD]
B166: 215460 | C166: Circuit Breaker 25A 1Phase 6Ka [GWD]
B167: 215580 | C167: Circuit Breaker 63A 1Phase 6kA [GWD]
B168: 215735 | C168: Circuit Breaker 10A 1Phase 10kA [GWD]
B169: 222567 | C169: Connector IPC 6-54mm/4-35mm M8 [GWD]
B170: 223015 | C170: Connector 2 X 16mm With 2 Screws [GWD]
B171: 223483 | C171: Connector 2 x 6mm2 Insulated Double Screw [GWD]
B172: 223497 | C172: Clamp Service T Al C/W S/S H/W [GWD]
B173: 234250 | C173: Lug Cu Comp 16mm M10 Hole [GWD]
B174: 235815 | C174: Link 6 Hole Neutral [GWD]
B175: 236025 | C175: Link 3x25mm 8x16mm 11H Neutral [GWD]
B176: 262375 | C176: Breakout Boot 4-25mm 2 Leg Small [GWD]
B177: 262435 | C177: Heatshrink Sleeve 19-5mm 100mm Long [GWD]
B178: 267600 | C178: Batten 3M PVC Earth Cover [GWD]
B179: 269945 | C179: Earth Rod 13x1220mm Cu [GWD]
B180: 273600 | C180: Coupling 50mm PVC [GWD]
B181: 273780 | C181: Reducer 40-32mm Conduit [GWD]
B182: 273782 | C182: Reducer 50-40mm Conduit [GWD]
B183: 274740 | C183: Bend 50mm 90 Deg 300mm Radius PVC Heavy Duty Orange [GWD]
B184: 275790 | C184: Pole Step Screw In [GWD]
B185: 275850 | C185: Pole Step Drive In [GWD]
B186: 281940 | C186: Conduit 16mm Rigid L/D Grey [GWD]
B187: 282320 | C187: Conduit 32mm Corrugated PVC Heavy Duty Orange [GWD]
B188: 282360 | C188: Conduit 20mm Corrugated Flexible PVC Medium Duty Grey UV Sta [GWD]
B189: 285846 | C189: Slip Base Connection Kit [GWD]
B190: 290190 | C190: PE Cell Suit Nightwatch Fitting [GWD]
B191: 290340 | C191: Control PE Cell 3 Pin to suit NEMA Base [GWD]
B192: 290346 | C192: Shade Suit Photo Elec Cell [GWD]
B193: 290350 | C193: Enclosure 6 Pole [GWD]
B194: 290360 | C194: Switch Changeover Day-Off-Night [GWD]
B195: 290460 | C195: ReceP24acle PE Cell C/W P/Mnt Brk [GWD]
B196: 291885 | C196: Clamp Earth Shear Lok [GWD]
B197: 441375 | C197: Cable 6.0mm 7/1.04 Earth Wire Cu [GWD]
B198: 441690 | C198: Cable 10mm 7/1.35 BW Black [GWD]
B199: 442230 | C199: Cable 6mm 7/1.04 B/Wire Red
B200: 442638 | C200: Cable 4.0mm 7/0.85 SDI Red Cu [GWD]
B201: 442639 | C201: Cable 4.0mm 7/0.85 SDI Black Cu [GWD]
B202: 442820 | C202: Cable 6mm 7/1.04 1C Red Sdi Gp 0.6/1Kv Cu PVC/PVC [GWD]
B203: 442830 | C203: Cable 6mm 7/1.04 1C Black Cu PVC/PVCGp 0.6/1Kv [GWD]
B204: 446610 | C204: Cable 16mm 2 Core Flat Cu PVC/PVC [GWD]
B205: 446970 | C205: Cable 2.5mm 2 Core Flat Cu PVC/PVC [GWD]
... 120 more rows

Sheet CAPEX - Hybid Calcs
B6: Assembly Code | C6: Assembly Description | D6: Component Type | E6: Stock No. | F6: Stock Name | G6: Breakdown | H6: Cost | I6: Hybrid Cost (Loaded) | J6: Notes
A7: Luminaire | B7: 42W_CFL_Decorative | C7: 42W Decorative Luminaire | D7: Luminaire | E7: 500970 | F7: Lantern 42w Compact Fluorescent Kensington Heritage with PE [GD] | G7: 1 | I7: 728.146886 | J7: Averaged
D8: Luminaire | E8: 500958 | F8: Lantern 42W Compact Fluorescent Nostalgia with PE Cell & Lam [GD] | G8: 1
D9: Luminaire | E9: 500944 | F9: Lantern 42w Compact Fluorescent Bourke Hill Flared Model R [GWD] | G9: 1
D10: Luminaire | E10: 500954 | F10: Lantern 42w Compact Fluorescent Bourke Hill Eco A Series [GD] | G10: 1
D11: Luminaire | E11: 500950 | F11: Lantern 42w Compact Fluorescent Bourke Hill Eco S Series [G] | G11: 1
A12: Luminaire | B12: 70W_HPS_Decorative | C12: 70W Decorative Luminaire | D12: Luminaire | E12: 500946 | F12: Lantern 70w HPS Bourke Hill Flared Model R [GD] | G12: 1 | I12: 504.1760335 | J12: Averaged
D13: Luminaire | E13: 500960 | F13: Lantern 70W HPS Nostalgia with PE Cell & Lamp [GD] | G13: 1
D14: Luminaire | E14: 500966 | F14: Lantern 70w HPS Nostalgia B with PE Cell & Lamp [GD] | G14: 1
A15: Luminaire | B15: 80W_MVA_Standard | C15: 80W Mercury Vapour Standard Luminaire | D15: Luminaire | E15: 500880 | F15: Lantern 80W MV Urban Style 1 C/W PE Cell and Interference Su [GWD] | G15: 0.95 | I15: 122.1673528 | J15: Weighted
D16: Luminaire | E16: 500885 | F16: Lantern 80W MV Style 1 Aeroscreen C/W PE Cell No Lamp or Fus [GWD] | G16: 0.05
A17: Luminaire | B17: 42W_CFL_Standard | C17: 42W CFL Standard Luminaire | D17: Luminaire | E17: 500900 | F17: Lantern 42w Compact Suburban Fluorescent with Lamp & PE Cell [GWD] | G17: 0.95 | I17: 197.4824775 | J17: Weighted
D18: Luminaire | E18: 500906 | F18: Lantern 42W Compact Fluo Aero Urban, Lamp & PE Cell | G18: 0.05
A19: Luminaire | B19: 70W_HPS_Standard | C19: Composite HPS 70W (Aero and Non-Aero) | D19: Luminaire | E19: 502025 | F19: Lantern 70W HPS Suburban-Igniter-Cell- Lamp No Fuse [GWD] | G19: 0.95 | I19: 177.1767649 | J19: Weighted
D20: Luminaire | E20: 501970 | F20: Lantern 70W HPS Style 1 Aeroscreen | G20: 0.05
A21: Luminaire | B21: 70W_HPS_TA_Standard | C21: Composite Twin Arc HPS 70W (Aero and Non-Aero) | D21: Luminaire | E21: 502025 | F21: Lantern 70W HPS Suburban-Igniter-Cell- Lamp No Fuse [GWD] | G21: 0.95 | I21: 177.1767649 | J21: Weighted
D22: Luminaire | E22: 501970 | F22: Lantern 70W HPS Style 1 Aeroscreen | G22: 0.05
A23: Luminaire | B23: 150W_HPS_Standard | C23: Composite HPS 150W (Aero and Non-Aero) | D23: Luminaire | E23: 500974 | F23: Lantern 150W HPS Roadster With PE Cell & Lamp, No Fuse | G23: 0.95 | I23: 274.8391851 | J23: Weighted
D24: Luminaire | E24: 500978 | F24: Lantern 150W HPS Roadster Aero, PE Cell & Lamp | G24: 0.05
A25: Luminaire | B25: 250W_HPS_Standard | C25: Composite HPS 250W (Aero and Non-Aero) | D25: Luminaire | E25: 501008 | F25: Lantern 250W HPS Roadster, PE Cell & Lamp, No Fuse | G25: 0.95 | I25: 274.8391851 | J25: Weighted
D26: Luminaire | E26: 501004 | F26: 250W HPS Roadster Aeroscreen | G26: 0.05
A27: Luminaire | B27: 400W_HPS_Standard | C27: Composite HPS 400W (Aero and Non-Aero) | D27: Luminaire | E27: 500982 | F27: Lantern 400W HPS Roadster & PE Cell & Lamp, No Fuse | G27: 0.9 | I27: 368.9649762 | J27: Weighted
D28: Luminaire | E28: 500983 | F28: Lantern 400W HPS Roadster & PE Cell & Lamp, No Fuse | G28: 0.02
D29: Luminaire | E29: 510162 | F29: Lantern 400W HPS Aero Roadster | G29: 0.08
A30: Luminaire | B30: 400W_MH_Standard | C30: Composite MH 400W (Aero and Non-Aero) | D30: Luminaire | E30: 510160 | F30: Lantern 400W HPS Roadster with PE Cell & Lamp. No Fuse [GWD] | G30: 0.9 | I30: 341.5939049 | J30: Weighted
D31: Luminaire | E31: 500984 | F31: Lantern 400W MH Roadster Aero | G31: 0.1
A32: Luminaire | B32: REPMV250WHPS150W | C32: Mercury Vapour 250W Replacement with 150W High Pressure Sodium | D32: Luminaire | E32: 500974 | F32: Lantern 150W HPS Roadster With PE Cell & Lamp, No Fuse | G32: 0.8 | I32: 280.0865767 | J32: Weighted
D33: Luminaire | E33: 500978 | F33: Lantern 150W HPS Roadster Aero, PE Cell & Lamp | G33: 0.2
A34: Luminaire | B34: REPMV400WHPS250W | C34: Mercury Vapour 400W Replacement with 250W High Pressure Sodium | D34: Luminaire | E34: 501008 | F34: Lantern 250W HPS Roadster, PE Cell & Lamp, No Fuse | G34: 0.8 | I34: 280.0865767 | J34: Weighted
D35: Luminaire | E35: 501004 | F35: 250W HPS Roadster Aeroscreen | G35: 0.2
A36: Bracket | B36: Cat_P_Bracket | C36: Category P Bracket | D36: Bracket | E36: 131275 | F36: Bracket 500mm S/Light Outreach CE1 [GWD] | G36: 0.4929380305 | I36: 102.991182 | J36: Weighted
D37: Bracket | E37: 131277 | F37: Bracket 2000mm S/Light Outreach CE2 [GWD] | G37: 0.07277328117 | J37: Unknowns attributed to smallest bracket, Older styles attributed to nearest sized outreach
D38: Bracket | E38: 131280 | F38: Bracket CE3 3000mm S/Light Outreach [GWD] | G38: 0.1095637192
D39: Bracket | E39: 131282 | F39: Bracket CE4 4500mm S/Light Outreach [GWD] | G39: 0.03420613413
D40: Bracket | E40: 131285 | F40: Bracket CE5 6000mm S/Light Outreach [GWD] | G40: 0.02132050753
D41: Bracket | E41: 131288 | F41: Bracket CE6 2000mm S/Light 5 Deg Rise [GWD] | G41: 0.2384917715
D42: Bracket | E42: 131289 | F42: Bracket 3000mm S/Light OR CE7 | G42: 0.03070655588
A43: Bracket | B43: Cat_V_Bracket | C43: Category V Bracket | D43: Bracket | E43: 131275 | F43: Bracket 500mm S/Light Outreach CE1 [GWD] | G43: 0.3015075377 | I43: 168.0890809 | J43: Weighted
D44: Bracket | E44: 131277 | F44: Bracket 2000mm S/Light Outreach CE2 [GWD] | G44: 0.07083963507 | J44: Unknowns attributed to smallest bracket, Older styles attributed to nearest sized outreach
D45: Bracket | E45: 131280 | F45: Bracket CE3 3000mm S/Light Outreach [GWD] | G45: 0.2174464556
D46: Bracket | E46: 131282 | F46: Bracket CE4 4500mm S/Light Outreach [GWD] | G46: 0.1404595795
D47: Bracket | E47: 131285 | F47: Bracket CE5 6000mm S/Light Outreach [GWD] | G47: 0.07937746987
D48: Bracket | E48: 131288 | F48: Bracket CE6 2000mm S/Light 5 Deg Rise [GWD] | G48: 0.1477289359
D49: Bracket | E49: 131289 | F49: Bracket 3000mm S/Light OR CE7 | G49: 0.0426403864
A50: Column | B50: 7.5_Single | C50: 7.5m Single Outreach | D50: Column | E50: 131065 | F50: Column 7.5M X 1.5M Single O/R Tapered Octagonal Curved Galv [GWD] | G50: 0.7344992051 | I50: 402.1441294 | J50: Weighted
D51: Column | E51: 131068 | F51: Column 7.5M X 3M Single O/R Tapered Octagonal Curved Galv [GWD] | G51: 0.06550079491
D52: Column | E52: 131067 | F52: Column 7.5M X 1.5M Single O/R Impact Absorbing Galv | G52: 0.183642466
D53: Column | E53: 131123 | F53: Column 7.5M X 3M Single O/R Tapered Round Impact Absorbing C [GWD] | G53: 0.016357534
A54: Column | B54: 7.5_Double | C54: 7.5m Double Outreach | D54: Column | E54: 131066 | F54: Column 7.5M X 1.5M Double O/R Tapered Octagonal Curved Galv [GWD] | G54: 0.7344992051 | I54: 493.0768741 | J54: Weighted
D55: Column | E55: 131068 | F55: Column 7.5M X 3M Single O/R Tapered Octagonal Curved Galv [GWD] | G55: 0.06550079491
D56: Column | E56: 131069 | F56: Column 7.5M X 1.5M Double O/R Impact Absorbing Galv | G56: 0.183642466
D57: Column | E57: 131126 | F57: Column 7.5M X 3M Double O/R Impact Absorbing Galv | G57: 0.016357534
A58: Column | B58: 9.0_Single | C58: 9.0m Single Outreach | D58: Column | E58: 131070 | F58: Column 9M X 1.5M Single O/R Tapered Round Rigid Curved Galv [GWD] | G58: 0.7036740002 | I58: 853.1350967 | J58: Weighted
D59: Column | E59: 131073 | F59: Column 9M X 3M Single O/R Tapered Round Rigid Curved Galv [GWD] | G59: 0.04187709982
D60: Column | E60: 131076 | F60: Column 9M X 4.5M Single O/R Tapered Round Rigid Curved Galv [GD] | G60: 0.05444889997
D61: Column | E61: 131010 | F61: Column 9M X 1.5M Single O/R Tapered Round Impact Absorbing [GWD] | G61: 0.08800260106
D62: Column | E62: 131012 | F62: Column 9M X 3M Single O/R Tapered Round Impact Absorbing Cur [GWD] | G62: 0.005202124201
D63: Column | E63: 131014 | F63: Column 9M X 4.5M Single O/R Tapered Round Impact Absorbing C [GWD] | G63: 0.006827788013
D64: Column | E64: 131040 | F64: Column 9M X 1.5M Single O/R Tapered Round Slip Base Curved [GWD] | G64: 0.08800260106
D65: Column | E65: 131042 | F65: Column 9M X 3M Single O/R Tapered Round Slip Base Curved Ga [GWD] | G65: 0.005202124201
D66: Column | E66: 131044 | F66: Column 9M X 4.5M Single O/R Tapered Round Slip Base Curved [GD] | G66: 0.006827788013
A67: Column | B67: 9.0_Double | C67: 9.0m Double Outreach | D67: Column | E67: 131071 | F67: Column 9M X 1.5M Double O/R Tapered Round Rigid Curved Galv [GWD] | G67: 0.7036740002 | I67: 1296.780515 | J67: Weighted
D68: Column | E68: 131074 | F68: Column 9M X 3M Double O/R Tapered Round Rigid Curved Galv [GWD] | G68: 0.04187709982
D69: Column | E69: 131077 | F69: Column 9M X 4.5M Double O/R Tapered Round Rigid Curved Galv [GWD] | G69: 0.05444889997
D70: Column | E70: 131011 | F70: Column 9M X 1.5M Double O/R Tapered Round Impact Absorbing C [GWD] | G70: 0.08800260106
D71: Column | E71: 131013 | F71: Column 9M X 3M Double O/R Tapered Round Impact Absorbing Cur [GWD] | G71: 0.005202124201
D72: Column | E72: 131015 | F72: Column 9M X 4.5M Double O/R Tapered Round Impact Absorbing [GWD] | G72: 0.006827788013
D73: Column | E73: 131041 | F73: Column 9M X 1.5M Double O/R Tapered Round Slip Base Curved [GWD] | G73: 0.08800260106
D74: Column | E74: 131043 | F74: Column 9M X 3M Double O/R Tapered Round Slip Base Curved Ga [GWD] | G74: 0.005202124201
D75: Column | E75: 131045 | F75: Column 9M X 4.5M Double O/R Tapered Round Slip Base Curved [GWD] | G75: 0.006827788013
A76: Column | B76: 10.5_Single | C76: 10.5m Single Outreach | D76: Column | E76: 131080 | F76: Column 10.5M X 1.5M Single O/R Tapered Round Rigid Curved G [GWD] | G76: 0.5853056184 | I76: 901.528465 | J76: Weighted
D77: Column | E77: 131083 | F77: Column 10.5M X 3M Single O/R Tapered Round Rigid Curved Gal [GWD] | G77: 0.08293887631
D78: Column | E78: 131086 | F78: Column 10.5M X 4.5M Single O/R Tapered Round Rigid Curved G [GD] | G78: 0.1317143445
D79: Column | E79: 131018 | F79: Column 10.5M X 1.5M Single O/R Tapered Round Impact Absorbin [GWD] | G79: 0.07326610414
D80: Column | E80: 131020 | F80: Column 10.5M X 3M Single O/R Tapered Round Impact Absorbing [GWD] | G80: 0.01029018317
D81: Column | E81: 131022 | F81: Column 10.5M X 4.5M Single O/R Tapered Round Impact Absorbi [GWD] | G81: 0.01646429306
D82: Column | E82: 131048 | F82: Column 10.5M X 1.5M Single O/R Tapered Round Slip Base Curv [GWD] | G82: 0.07326610414
D83: Column | E83: 131050 | F83: Column 10.5M X 3M Single O/R Tapered Round Slip Base Curved [GWD] | G83: 0.01029018317
D84: Column | E84: 131052 | F84: Column 10.5M X 4.5M Single O/R Tapered Round Slip Base Curv [GD] | G84: 0.01646429306
A85: Column | B85: 10.5_Double | C85: 10.5m Double Outreach | D85: Column | E85: 131081 | F85: Column 10.5M X 1.5M Double O/R Tapered Round Rigid Curved G [GWD] | G85: 0.5853056184 | I85: 1545.194485 | J85: Weighted
D86: Column | E86: 131084 | F86: Column 10.5M X 3M Double O/R Tapered Round Rigid CurvedGal [GWD] | G86: 0.08293887631
D87: Column | E87: 131087 | F87: Column 10.5M X 4.5M Double O/R Tapered Round Rigid Curved G [GWD] | G87: 0.1317143445
D88: Column | E88: 131019 | F88: Column 10.5M X 1.5M Double O/R Tapered Round Impact Absorbi [GWD] | G88: 0.07326610414
D89: Column | E89: 131021 | F89: Column 10.5M X 3M Double O/R Tapered Round Impact Absorbing [GWD] | G89: 0.01029018317
D90: Column | E90: 131023 | F90: Column 10.5M X 4.5M Double O/R Tapered Round Impact Absorbi [GWD] | G90: 0.01646429306
D91: Column | E91: 131049 | F91: Column 10.5M X 1.5M Double O/R Tapered Round Slip Base Curv [GWD] | G91: 0.07326610414
D92: Column | E92: 131051 | F92: Column 10.5M X 3M Double O/R Tapered Round Slip Base Curved [GWD] | G92: 0.01029018317
D93: Column | E93: 131053 | F93: Column 10.5M X 4.5M Double O/RTapered Round Slip Base Curve [GWD] | G93: 0.01646429306
A94: Column | B94: 12.0_Single | C94: 12.0m Single Outreach | D94: Column | E94: 131090 | F94: Column 12M X 1.5M Single O/R Tapered Round Rigid Curved Gal [GWD] | G94: 0.7018927445 | I94: 1472.808356 | J94: Weighted
D95: Column | E95: 131093 | F95: Column 12M X 3M Single O/R Tapered Round Rigid Curved Galv [GWD] | G95: 0.02365930599
D96: Column | E96: 131096 | F96: Column 12M X 4.5M Single O/R Tapered Round Rigid Curved Gal [GD] | G96: 0.02388463272
D97: Column | E97: 131098 | F97: Column 12M X 6M Single O/R Tapered Round Rigid CurvOutreach [GWD] | G97: 0.05092383957
D98: Column | E98: 131026 | F98: Column 12M X 1.5M Single O/R Tapered Round Impact Absorbing [GWD] | G98: 0.08765209554
D99: Column | E99: 131028 | F99: Column 12M X 3M Single O/R Tapered Round Impact Absorbing C [GWD] | G99: 0.002929247409
D100: Column | E100: 131030 | F100: Column 12M X 4.5M Single O/R Tapered Round Impact Absorbing [GWD] | G100: 0.002929247409
D101: Column | E101: 131032 | F101: Column 12M X 6M Single O/R Tapered Round Impact Absorbing C [GWD] | G101: 0.006309148265
D102: Column | E102: 131056 | F102: Column 12M X 1.5M Single O/R Tapered Round Slip Base Curved [GWD] | G102: 0.08765209554
D103: Column | E103: 131058 | F103: Column 12M X 3M Single O/R Tapered Round Slip Base Curved G [GWD] | G103: 0.002929247409
D104: Column | E104: 131060 | F104: Column 12M X 4.5M Single O/R Tapered Round Slip Base Curved [GD] | G104: 0.002929247409
D105: Column | E105: 131054 | F105: Column 12M X 6.0M Single O/R Tapered Round Slip Base Curved [GD] | G105: 0.006309148265
A106: Column | B106: 12.0_Double | C106: 12.0m Double Outreach | D106: Column | E106: 131091 | F106: Column 12M X 1.5M Double O/R Tapered Round Rigid Curved Gal [GWD] | G106: 0.749518768 | I106: 1574.570757 | J106: Weighted
D107: Column | E107: 131094 | F107: Column 12M X 3M Double O/R Tapered Round Rigid Curved Galv [GWD] | G107: 0.02526467757
D108: Column | E108: 131097 | F108: Column 12M X 4.5M Double O/R Tapered Round Rigid Curved Gal [GWD] | G108: 0.02550529355
D109: Column | E109: 131027 | F109: Column 12M X 1.5M Double O/R Tapered Round Impact Absorbing [GWD] | G109: 0.09359961501
D110: Column | E110: 131029 | F110: Column 12M X 3M Double O/R Tapered Round Impact Absorbing C [GWD] | G110: 0.0031280077
D111: Column | E111: 131031 | F111: Column 12M X 4.5M Double O/R Tapered Round Impact Absorbing [GWD] | G111: 0.0031280077
D112: Column | E112: 131057 | F112: Column 12M X 1.5M Double O/R Tapered Round Slip Base Curved [GWD] | G112: 0.09359961501
D113: Column | E113: 131059 | F113: Column 12M X 3M Double O/R Tapered Round Slip Base Curved G [GWD] | G113: 0.0031280077
D114: Column | E114: 131061 | F114: Column 12M X 4.5M Double O/R Tapered Round Slip Base Curved [GWD] | G114: 0.0031280077

Sheet CAPEX Build Up
A1: SLUOS Capital Charge
A3: Description
A4: This sheet details all CAPEX-relatred SLUOS, broken down for each component. ALL COSTS HERE ARE ALREADY ONCOSTED
A6: Parameters
A7: Return on Asset Percentage | C7: 0.04195903741
A8: LED Luminaire life span in years | C8: 10
A9: Traditional Luminaire life span in years | C9: 20
A10: Pole/bracket lifespan in years | C10: 35 | J10: THESE NEED EDITING regarding life span of wiring etc etc
J12: Annuity Calculation for Return of and on for Capital Recovery of installation
A13: Name | B13: Classification | C13: Type | D13: Calculation Method | E13: Mapped to Assembly/Item | F13: Installation (Materials, Labour, Plant) | G13: Design | H13: Traffic Control | I13: Capital Cost Total (including corporate & divisional overhead) | J13: Installation (Materials, Labour, Plant) | K13: Design | L13: Traffic Control | M13: Total | N13: TOTAL Inc. Overheads
A14: 50W HPS Twin-arc Standard Luminaire | B14: P | C14: Luminaire | D14: Direct | E14: 7107.09.30 | F14: 246.0305199 | G14: 0 | H14: 33.34615568 | I14: 279.3766756 | J14: 18.41878591 | K14: 0 | L14: 2.496420781 | M14: 20.91520669 | N14: 29.711017
A15: LED 42W Gerard Luminaire (Cat P3) | B15: P | C15: Luminaire | D15: Direct | E15: 7206.05.80 | F15: 360.5703568 | G15: 0 | H15: 33.34615568 | I15: 393.9165125 | J15: 44.88966003 | K15: 0 | L15: 4.151471589 | M15: 49.04113162 | N15: 69.66519225
A16: LED 23W Gerard Luminaire (Cat P3) - Aeroscreen | B16: P | C16: Luminaire | D16: Direct | E16: 7206.05.81 | F16: 340.2578734 | G16: 0 | H16: 33.34615568 | I16: 373.6040291 | J16: 42.36083187 | K16: 0 | L16: 4.151471589 | M16: 46.51230346 | N16: 66.07287506
A17: LED 17W Gerard Luminaire (Cat P20/P5) | B17: P | C17: Luminaire | D17: Direct | E17: 7206.05.82 | F17: 350.8013032 | G17: 0 | H17: 33.34615568 | I17: 384.1474589 | J17: 43.67344942 | K17: 0 | L17: 4.151471589 | M17: 47.82492101 | N17: 67.93750891
A18: LED 17W Gerard Luminaire (Cat P20/P5) - Aeroscreen | B18: P | C18: Luminaire | D18: Direct | E18: 7206.05.83 | F18: 361.7855318 | G18: 0 | H18: 33.34615568 | I18: 395.1316875 | J18: 45.04094477 | K18: 0 | L18: 4.151471589 | M18: 49.19241636 | N18: 69.88009921
A19: LED 17W Gerard Luminaire - Louvred (Cat P20/P5 RRW) | B19: P | C19: Luminaire | D19: Direct | E19: 7206.05.84 | F19: 361.7855318 | G19: 0 | H19: 33.34615568 | I19: 395.1316875 | J19: 45.04094477 | K19: 0 | L19: 4.151471589 | M19: 49.19241636 | N19: 69.88009921
A20: LED 25W GE Evolve Luminaire (Cat P20/P5) | B20: P | C20: Luminaire | D20: Direct | E20: 7206.05.85 | F20: 245.8048256 | G20: 0 | H20: 33.34615568 | I20: 279.1509813 | J20: 30.60178089 | K20: 0 | L20: 4.151471589 | M20: 34.75325248 | N20: 49.3686001
A21: LED 35W Pecan Luminaire (Cat P3) | B21: P | C21: Luminaire | D21: Direct | E21: 7206.05.86 | F21: 433.1830174 | G21: 0 | H21: 33.34615568 | I21: 466.5291731 | J21: 53.92966453 | K21: 0 | L21: 4.151471589 | M21: 58.08113612 | N21: 82.50693613
A22: LED 29W Pecan Luminaire (Cat P3) - Aeroscreen | B22: P | C22: Luminaire | D22: Direct | E22: 7206.05.87 | F22: 433.1830174 | G22: 0 | H22: 33.34615568 | I22: 466.5291731 | J22: 53.92966453 | K22: 0 | L22: 4.151471589 | M22: 58.08113612 | N22: 82.50693613
A23: LED 42W Pecan Luminaire (Cat V5) | B23: V | C23: Luminaire | D23: Direct | E23: 7206.05.88 | F23: 491.0943113 | G23: 0 | H23: 266.7692455 | I23: 757.8635568 | J23: 61.1394039 | K23: 0 | L23: 33.21177271 | M23: 94.35117661 | N23: 134.0302036
A24: LED 36W Pecan Luminaire (Cat V5) - Aeroscreen | B24: V | C24: Luminaire | D24: Direct | E24: 7206.05.89 | F24: 491.0943113 | G24: 0 | H24: 266.7692455 | I24: 757.8635568 | J24: 61.1394039 | K24: 0 | L24: 33.21177271 | M24: 94.35117661 | N24: 134.0302036
A25: LED 105W Aldridge Luminaire (Cat V3) | B25: V | C25: Luminaire | D25: Direct | E25: 7206.05.90 | F25: 945.1184902 | G25: 0 | H25: 266.7692455 | I25: 1211.887736 | J25: 117.663715 | K25: 0 | L25: 33.21177271 | M25: 150.8754878 | N25: 214.325598
A26: LED 198W Aldridge Luminaire (Cat V1) - Standard Dist. | B26: V | C26: Luminaire | D26: Direct | E26: 7206.05.91 | F26: 1015.957366 | G26: 0 | H26: 266.7692455 | I26: 1282.726612 | J26: 126.48289 | K26: 0 | L26: 33.21177271 | M26: 159.6946627 | N26: 226.8536432
A27: LED 198W Aldridge Luminaire (Cat V1) - Forward Dist. | B27: V | C27: Luminaire | D27: Direct | E27: 7206.05.92 | F27: 1002.532198 | G27: 0 | H27: 266.7692455 | I27: 1269.301443 | J27: 124.8115068 | K27: 0 | L27: 33.21177271 | M27: 158.0232795 | N27: 224.4793662
A28: LED 298W Aldrige Luminaire (Cat V1) - Standard Dist. | B28: V | C28: Luminaire | D28: Direct | E28: 7206.05.93 | F28: 1162.413747 | G28: 0 | H28: 266.7692455 | I28: 1429.182992 | J28: 144.7161613 | K28: 0 | L28: 33.21177271 | M28: 177.927934 | N28: 252.7548472
A29: LED 100W Aldridge Luminaire - Brownfield | B29: V | C29: Luminaire | D29: Direct | E29: LED0015 | F29: 1010.521289 | G29: 0 | H29: 266.7692455 | I29: 1277.290535 | J29: 125.8061188 | K29: 0 | L29: 33.21177271 | M29: 159.0178915 | N29: 225.8922585
A30: LED 200W Aldridge Luminaire - Brownfield | B30: V | C30: Luminaire | D30: Direct | E30: LED0016 | F30: 1010.521289 | G30: 0 | H30: 266.7692455 | I30: 1277.290535 | J30: 125.8061188 | K30: 0 | L30: 33.21177271 | M30: 159.0178915 | N30: 225.8922585
A31: LED 300W Aldridge Luminaire - Brownfield | B31: V | C31: Luminaire | D31: Direct | E31: LED0017 | F31: 1156.130489 | G31: 0 | H31: 266.7692455 | I31: 1422.899735 | J31: 143.9339192 | K31: 0 | L31: 33.21177271 | M31: 177.1456919 | N31: 251.6436362
A32: 80W Mercury Vapour Standard Luminaire | B32: P | C32: Luminaire | D32: Hybrid | E32: 7206.05.1 | F32: 188.4888182 | G32: 0 | H32: 33.34615568 | I32: 221.8349739 | J32: 14.110994 | K32: 0 | L32: 2.496420781 | M32: 16.60741478 | N32: 23.59159965
A33: 42W Decorative Luminaire | B33: P | C33: Luminaire | D33: Hybrid | E33: 7206.05.53 | F33: 791.3650553 | G33: 0 | H33: 33.34615568 | I33: 824.711211 | J33: 59.24461542 | K33: 0 | L33: 2.496420781 | M33: 61.7410362 | N33: 87.70599321
A34: 70W Decorative Luminaire | B34: P | C34: Luminaire | D34: Hybrid | E34: 7206.05.25 | F34: 567.3942028 | G34: 0 | H34: 33.34615568 | I34: 600.7403585 | J34: 42.4773006 | K34: 0 | L34: 2.496420781 | M34: 44.97372138 | N34: 63.88724817
A35: 32W C/F Suburban Eco | B35: P | C35: Luminaire | D35: Hybrid | E35: Compact_Fluro_32W | F35: 759.7036929 | G35: 0 | H35: 33.34615568 | I35: 793.0498486 | J35: 56.87432471 | K35: 0 | L35: 2.496420781 | M35: 59.37074549 | N35: 84.33888579
A36: 42W CFL Standard Luminaire | B36: P | C36: Luminaire | D36: Hybrid | E36: 7107.09.43 | F36: 260.7006468 | G36: 0 | H36: 33.34615568 | I36: 294.0468025 | J36: 19.51704773 | K36: 0 | L36: 2.496420781 | M36: 22.01346852 | N36: 31.27114864
A37: 70W HPS Standard Luminaire | B37: P | C37: Luminaire | D37: Hybrid | E37: 7107.09.3 | F37: 240.3949342 | G37: 0 | H37: 33.34615568 | I37: 273.7410899 | J37: 17.99688441 | K37: 0 | L37: 2.496420781 | M37: 20.49330519 | N37: 29.11168643
A38: 70W HPS Twin Arc Standard Luminaire | B38: P | C38: Luminaire | D38: Hybrid | E38: 7107.09.61 | F38: 253.3723542 | G38: 0 | H38: 33.34615568 | I38: 286.7185098 | J38: 18.96842371 | K38: 0 | L38: 2.496420781 | M38: 21.46484449 | N38: 30.49180288
A39: 150W HPS Standard Luminaire | B39: V | C39: Luminaire | D39: Hybrid | E39: 7107.09.7 | F39: 338.0573544 | G39: 0 | H39: 266.7692455 | I39: 604.8265999 | J39: 25.3082668 | K39: 0 | L39: 19.97136625 | M39: 45.27963304 | N39: 64.32180981
A40: 150W HPS Twin Arc Standard Luminaire | B40: V | C40: Luminaire | D40: Hybrid | E40: 7107.09.41 | F40: 353.799529 | G40: 0 | H40: 266.7692455 | I40: 620.5687745 | J40: 26.48678621 | K40: 0 | L40: 19.97136625 | M40: 46.45815246 | N40: 65.99595107
A41: 250W HPS Standard Luminaire | B41: V | C41: Luminaire | D41: Hybrid | E41: 7107.09.11 | F41: 338.0573544 | G41: 0 | H41: 266.7692455 | I41: 604.8265999 | J41: 25.3082668 | K41: 0 | L41: 19.97136625 | M41: 45.27963304 | N41: 64.32180981
A42: 250W HPS Twin Arc Standard Luminaire | B42: V | C42: Luminaire | D42: Hybrid | E42: 7107.09.39 | F42: 407.9661514 | G42: 0 | H42: 266.7692455 | I42: 674.7353969 | J42: 30.54190678 | K42: 0 | L42: 19.97136625 | M42: 50.51327303 | N42: 71.7564371
A43: 400W HPS Standard Luminaire | B43: V | C43: Luminaire | D43: Hybrid | E43: 7107.09.21 | F43: 432.1831455 | G43: 0 | H43: 266.7692455 | I43: 698.952391 | J43: 32.3548836 | K43: 0 | L43: 19.97136625 | M43: 52.32624985 | N43: 74.3318544
A44: 400W HPS Twin Arc Standard Luminaire | B44: V | C44: Luminaire | D44: Hybrid | E44: 7107.09.24 | F44: 461.0043025 | G44: 0 | H44: 266.7692455 | I44: 727.773548 | J44: 34.51254567 | K44: 0 | L44: 19.97136625 | M44: 54.48391192 | N44: 77.39691302
A45: 400W MH Standard Luminaire | B45: V | C45: Luminaire | D45: Hybrid | E45: 7107.09.23 | F45: 451.5872095 | G45: 0 | H45: 266.7692455 | I45: 718.356455 | J45: 33.80754606 | K45: 0 | L45: 19.97136625 | M45: 53.77891231 | N45: 76.39542852
A46: 250W HPS Asymetric Floodlight | B46: V | C46: Luminaire | D46: Direct | E46: 7107.09.18 | F46: 514.6066893 | G46: 0 | H46: 266.7692455 | I46: 781.3759348 | J46: 38.5254254 | K46: 0 | L46: 19.97136625 | M46: 58.49679165 | N46: 83.09739399
A47: 250W MH Asymetric Floodlight | B47: V | C47: Luminaire | D47: Direct | E47: 7107.09.19 | F47: 491.3601805 | G47: 0 | H47: 266.7692455 | I47: 758.129426 | J47: 36.78510282 | K47: 0 | L47: 19.97136625 | M47: 56.75646907 | N47: 80.6251854
A48: 400W MH Asymetric Floodlight | B48: V | C48: Luminaire | D48: Direct | E48: 7107.09.25 | F48: 514.6066893 | G48: 0 | H48: 266.7692455 | I48: 781.3759348 | J48: 38.5254254 | K48: 0 | L48: 19.97136625 | M48: 58.49679165 | N48: 83.09739399
A49: 400W HPS Asymetric Floodlight | B49: V | C49: Luminaire | D49: Direct | E49: 7107.09.26 | F49: 532.549383 | G49: 0 | H49: 266.7692455 | I49: 799.3186284 | J49: 39.86868409 | K49: 0 | L49: 19.97136625 | M49: 59.84005033 | N49: 85.00555499
A50: 250W Nightwatch | B50: V | C50: NW | D50: Direct | E50: 250W_NW | F50: 966.5090499 | G50: 0 | H50: 266.7692455 | I50: 1233.278295 | J50: 120.3267597 | K50: 0 | L50: 33.21177271 | M50: 153.5385324 | N50: 218.1085759
A51: 400W Nightwatch | B51: V | C51: NW | D51: Direct | E51: 400W_NW | F51: 984.4517436 | G51: 0 | H51: 266.7692455 | I51: 1251.220989 | J51: 122.5605579 | K51: 0 | L51: 33.21177271 | M51: 155.7723306 | N51: 221.2817894
A52: 1000W MH Floodlight | B52: V | C52: Luminaire | D52: Direct | E52: 7107.09.50 | F52: 1098.797876 | G52: 0 | H52: 266.7692455 | I52: 1365.567121 | J52: 82.26021246 | K52: 0 | L52: 19.97136625 | M52: 102.2315787 | N52: 145.2246787
A53: Nightwatch light mounting Wood pole | B53: P | C53: Bracket | D53: Direct | E53: 7107.02.1 | F53: 515.1205299 | G53: 0 | H53: 50.01923353 | I53: 565.1397634 | J53: 28.33731809 | K53: 0 | L53: 2.751610252 | M53: 31.08892834 | N53: 44.16325844
A54: Streetlight Bracket Category P | B54: P | C54: Bracket | D54: Hybrid | E54: Cat_P_Bracket | F54: 580.6351801 | G54: 0 | H54: 50.01923353 | I54: 630.6544136 | J54: 31.94134739 | K54: 0 | L54: 2.751610252 | M54: 34.69295764 | N54: 49.28294849
A55: Streetlight Bracket Category V | B55: V | C55: Bracket | D55: Hybrid | E55: Cat_V_Bracket | F55: 645.7330789 | G55: 0 | H55: 400.1538682 | I55: 1045.886947 | J55: 35.52245076 | K55: 0 | L55: 22.01288201 | M55: 57.53533277 | N55: 81.73159726
A56: Column Stl Style 5 4.5m Prestige | B56: P | C56: Column | D56: Direct | E56: 7206.10.71 | F56: 2318.802593 | G56: 518.884503 | H56: 62.52404191 | I56: 2900.211138 | J56: 127.5597512 | K56: 28.54437818 | L56: 3.439512815 | M56: 159.5436422 | N56: 226.6391117
A57: 7.5m Steel Column Single Outreach | B57: P | C57: Column | D57: Hybrid | E57: 7.5_Single | F57: 1988.591418 | G57: 518.884503 | H57: 62.52404191 | I57: 2569.999963 | J57: 109.3944898 | K57: 28.54437818 | L57: 3.439512815 | M57: 141.3783808 | N57: 200.834519
A58: 7.5m Steel Column Double Outreach | B58: P | C58: Column | D58: Hybrid | E58: 7.5_Double | F58: 2079.524163 | G58: 518.884503 | H58: 62.52404191 | I58: 2660.932708 | J58: 114.396795 | K58: 28.54437818 | L58: 3.439512815 | M58: 146.380686 | N58: 207.9405245
A59: 9.0m Steel Column Single Outreach | B59: V | C59: Column | D59: Hybrid | E59: 9.0_Single | F59: 2439.582385 | G59: 518.884503 | H59: 500.1923353 | I59: 3458.659224 | J59: 134.2039737 | K59: 28.54437818 | L59: 27.51610252 | M59: 190.2644544 | N59: 270.2794442
A60: 9.0m Steel Column Double Outreach | B60: V | C60: Column | D60: Hybrid | E60: 9.0_Double | F60: 2883.227804 | G60: 518.884503 | H60: 500.1923353 | I60: 3902.304642 | J60: 158.6093713 | K60: 28.54437818 | L60: 27.51610252 | M60: 214.669852 | N60: 304.9484385
A61: 10.5m Steel Column Single Outreach | B61: V | C61: Column | D61: Hybrid | E61: 10.5_Single | F61: 3115.186689 | G61: 518.884503 | H61: 500.1923353 | I61: 4134.263527 | J61: 171.3696717 | K61: 28.54437818 | L61: 27.51610252 | M61: 227.4301524 | N61: 323.0750345
A62: 10.5m Steel Column Double Outreach | B62: V | C62: Column | D62: Hybrid | E62: 10.5_Double | F62: 3758.852708 | G62: 518.884503 | H62: 500.1923353 | I62: 4777.929547 | J62: 206.7784114 | K62: 28.54437818 | L62: 27.51610252 | M62: 262.8388921 | N62: 373.3747845
A63: 12.0m Steel Column Single Outreach | B63: V | C63: Column | D63: Hybrid | E63: 12.0_Single | F63: 3686.46658 | G63: 518.884503 | H63: 500.1923353 | I63: 4705.543418 | J63: 202.7963749 | K63: 28.54437818 | L63: 27.51610252 | M63: 258.8568556 | N63: 367.7181177
A64: 12.0m Steel Column Double Outreach | B64: V | C64: Column | D64: Hybrid | E64: 12.0_Double | F64: 3788.228981 | G64: 518.884503 | H64: 500.1923353 | I64: 4807.305819 | J64: 208.3944308 | K64: 28.54437818 | L64: 27.51610252 | M64: 264.4549115 | N64: 375.6704147
A65: Column Stl Seesaw 12m B/M ground service | B65: V | C65: Column | D65: Direct | E65: 7206.10.73 | F65: 5359.199278 | G65: 518.884503 | H65: 500.1923353 | I65: 6378.276116 | J65: 294.8151468 | K65: 28.54437818 | L65: 27.51610252 | M65: 350.8756275 | N65: 498.4350327
A66: Column Stl Seesaw 15m B/M ground service | B66: V | C66: Column | D66: Direct | E66: 7206.10.74 | F66: 4467.870532 | G66: 518.884503 | H66: 500.1923353 | I66: 5486.94737 | J66: 245.782222 | K66: 28.54437818 | L66: 27.51610252 | M66: 301.8427027 | N66: 428.7814987
A67: Column Stl Seesaw 18m B/M ground service | B67: V | C67: Column | D67: Direct | E67: 7206.10.75 | F67: 8437.375723 | G67: 518.884503 | H67: 500.1923353 | I67: 9456.452562 | J67: 464.1488464 | K67: 28.54437818 | L67: 27.51610252 | M67: 520.2093271 | N67: 738.9813731
A68: 9.5m Timber Pole | B68: P | C68: Column | D68: Direct | E68: 9.5m_Timber_Pole | F68: 778.2544957 | G68: 518.884503 | H68: 62.52404191 | I68: 1359.663041 | J68: 42.81259223 | K68: 28.54437818 | L68: 3.439512815 | M68: 74.79648323 | N68: 106.2518586
A69: 11m Timber Pole | B69: V | C69: Column | D69: Direct | E69: 11m_Timber_Pole | F69: 890.3342652 | G69: 518.884503 | H69: 500.1923353 | I69: 1909.411104 | J69: 48.97821736 | K69: 28.54437818 | L69: 27.51610252 | M69: 105.0386981 | N69: 149.2123214
A70: 12.5m Timber Pole | B70: V | C70: Column | D70: Direct | E70: 12.5m_Timber_Pole | F70: 1080.301124 | G70: 518.884503 | H70: 500.1923353 | I70: 2099.377962 | J70: 59.42849256 | K70: 28.54437818 | L70: 27.51610252 | M70: 115.4889733 | N70: 164.0574199
A71: 14m Timber Pole | B71: V | C71: Column | D71: Direct | E71: 14m_Timber_Pole | F71: 1208.946852 | G71: 518.884503 | H71: 500.1923353 | I71: 2228.02369 | J71: 66.50542836 | K71: 28.54437818 | L71: 27.51610252 | M71: 122.5659091 | N71: 174.1105341
A72: 15.5m Timber Pole | B72: V | C72: Column | D72: Direct | E72: 15.5m_Timber_Pole | F72: 1346.620351 | G72: 518.884503 | H72: 500.1923353 | I72: 2365.697189 | J72: 74.07899124 | K72: 28.54437818 | L72: 27.51610252 | M72: 130.1394719 | N72: 184.8691299
A73: Shared or No Pole | C73: Luminaire | D73: Direct | E73: Shared_No_Pole | F73: 0 | G73: 0 | H73: 0 | I73: 0 | J73: 0 | K73: 0 | L73: 0 | M73: 0 | N73: 0
A74: No Capex | C74: Luminaire | D74: Direct | E74: NO_CAPEX | F74: 0 | G74: 0 | H74: 0 | I74: 0 | J74: 0 | K74: 0 | L74: 0 | M74: 0 | N74: 0

Sheet OPEX Input
B1: Input Data
B4: Labour Rates | C4: $ 18/19
B5: R5 Lineworker 5 Paypoint 19 | C5: 40.03075863
B7: On-Cost Rates
B8: Materials On-Cost Rate | C8: 0.1031
B9: Labour Ordinary On-Cost Rate | C9: 0.5619
B10: Labour Escalation Rate (Above CPI) | C10: 0
B12: Contractor Rate
B13: Lamp/PE Change
B15: Overheads
B16: Divisional | C16: 0.3337992165
B17: Corporate | C17: 0.1698150758
B18: Non-System | C18: 0
B19: Total | C19: 0.5036142922
B21: Assumptions
B23: Task Estimation
B24: Spot Replacement Hours | C24: 2.2 | D24: man hours
B25: Bulk Replacement Hours | C25: 0.2537566138 | D25: man hours
B29: Plant Assumptions
B30: Plant Material Type | C30: Hourly Rate
B31: EWP | C31: 19.73243629
B32: Ute / Van | C32: 5.28101
B34: Traffic Control Assumptions - SPOT
B35: Number of Controllers Required | C35: 2
B36: Hourly Rate for Controller | C36: 62.52404191
B37: Minimum Hours for Controller | C37: 4
B38: Number of Lights maintained per 4 hour stint (bulk) | C38: 1.5
B39: Base Traffic Control Cost per light | C39: 333.4615568
B41: Percentage of Installations Requiring Traffic Control : Spot Replacement, Category P | C41: 0.1
B42: Percentage of Installations Requiring Traffic Control : Spot Replacement, Category V | C42: 0.8
B45: Labour Rates
B46: EE Standard Labour Rate | C46: 40.03075863
B47: EE Standard Labour Rate (oncosted) | C47: 62.52404191
B48: Pole Inspection and Treatment Labour Rate (oncosted) | C48: 62.52404191
B50: Labour & Plant (RATE)
B51: Spot Replacement Labour and Plant Cost | C51: 180.964252
B53: Pole Maintenance
B54: Shared Poles - All pole inspection cost is attributed to the reticulation pole. | C54: 83477
B55: Total Number of Dedicated wood streetlight poles as determined from WASP (April 2014) | C55: 10286
B56: Total Number of Dedicated steel streetlight poles as determined from WASP(April 2014) | C56: 50861
B57: Pole Treatment Cost (oncosted) | C57: 7.8095
B58: Pole Treatment Time (includes any travel) | C58: 0.5
B59: Percentage of Poles >= 12 years and hence requiring drill hoile and treatment (as determined from WASP) | C59: 0.693
B61: Pole Inspection Frequency | C61: 4
B63: Annual Pole Maintenance Costs
B64: WOOD POLE | C64: 9.828627364
B65: STEEL POLE | C65: 8.475631489
B66: R/BOUT COLUMN | C66: 8.475631489
B67: SHARED OR NO POLE | C67: 0
B68: NO CAPITAL | C68: 0
B71: Street Light Patrol Cost (Cat V Light Only)
B72: Num Cat V Lights | C72: 36950
B73: Cost Total For Steet Light Patrol | C73: 360860.62
B74: Cost Per Year | C74: 9.76618728
B78: Fault & Emergency | C78: No longer used - built up from failure rates
B87: Lamp Stock
B89: Description
B91: • This table records the cost of lamps, ballast / igniters and PE Cells for different types of lanterns. • The lamp types are taken from WASP and the prices are taken from stores and are average prices across the different Depots. • Some costs could not be found in the current inventory, in which case these costs have been transferred from 13/14 $ to 17/18 $ • CPI 10.64% to get 13/14 to 18/19
A94: Type | B94: Mapping Code | C94: Description | D94: Lamp Cost | E94: Lamp On-costed | F94: Ballast / Igniter Cost | G94: Ballast / Igniter On-costed | H94: Starter / PE Cell Cost | I94: Starter / PE Cell On-Costed | J94: Bulb Failure | K94: Luminaire Failure | L94: Bulk Replacement | M94: Ballast Failure Rate | N94: PE Cell Failure | O94: Remarks
B95: LED0001 | C95: LED 36W Gerard Luminaire (Cat P3) | D95: 0 | E95: 0 | F95: 0 | G95: 0 | J95: 0 | K95: 0.004659574468 | L95: 8 | N95: 0.0109
B96: LED0002 | C96: LED 23W Gerard Luminaire (Cat P3) - Aeroscreen | D96: 0 | E96: 0 | F96: 0 | G96: 0 | J96: 0 | K96: 0.004659574468 | L96: 8 | N96: 0.0109
B97: LED0003 | C97: LED 17W Gerard Luminaire (Cat P4/P5) | D97: 0 | E97: 0 | F97: 0 | G97: 0 | J97: 0 | K97: 0.004659574468 | L97: 8 | N97: 0.0109
B98: LED0004 | C98: LED 17W Gerard Luminaire (Cat P4/P5) - Aeroscreen | D98: 0 | E98: 0 | F98: 0 | G98: 0 | J98: 0 | K98: 0.004659574468 | L98: 8 | N98: 0.0109
B99: LED0005 | C99: LED 17W Gerard Luminaire - Louvred (Cat P4/P5 RRW) | D99: 0 | E99: 0 | F99: 0 | G99: 0 | J99: 0 | K99: 0.004659574468 | L99: 8 | N99: 0.0109
B100: LED0006 | C100: LED 25W GE Evolve Luminaire (Cat P4/P5) | D100: 0 | E100: 0 | F100: 0 | G100: 0 | J100: 0 | K100: 0.01990909091 | L100: 8 | N100: 0.0109
B101: LED0007 | C101: LED 35W Pecan Luminaire (Cat P3) | D101: 0 | E101: 0 | F101: 0 | G101: 0 | J101: 0 | K101: 0.003359712445 | L101: 8 | N101: 0.0109
B102: LED0008 | C102: LED 29W Pecan Luminaire (Cat P3) - Aeroscreen | D102: 0 | E102: 0 | F102: 0 | G102: 0 | J102: 0 | K102: 0.002791702652 | L102: 8 | N102: 0.0109
B103: LED0009 | C103: LED 42W Pecan Luminaire (Cat V5) | D103: 0 | E103: 0 | F103: 0 | G103: 0 | J103: 0 | K103: 0.003457156907 | L103: 8 | N103: 0.0109
B104: LED0010 | C104: LED 36W Pecan Luminaire (Cat V5) - Aeroscreen | D104: 0 | E104: 0 | F104: 0 | G104: 0 | J104: 0 | K104: 0.003457156907 | L104: 8 | N104: 0.0109
B105: LED0011 | C105: LED 105W Aldridge Luminaire (Cat V3) | D105: 0 | E105: 0 | F105: 0 | G105: 0 | J105: 0 | K105: 0.003457156907 | L105: 8 | N105: 0.0109
B106: LED0012 | C106: LED 198W Aldridge Luminaire (Cat V1) - Standard Dist. | D106: 0 | E106: 0 | F106: 0 | G106: 0 | J106: 0 | K106: 0.006825619448 | L106: 8 | N106: 0.0109
B107: LED0013 | C107: LED 198W Aldridge Luminaire (Cat V1) - Forward Dist. | D107: 0 | E107: 0 | F107: 0 | G107: 0 | J107: 0 | K107: 0.006825619448 | L107: 8 | N107: 0.0109
B108: LED0014 | C108: LED 298W Aldrige Luminaire (Cat V1) - Standard Dist. | D108: 0 | E108: 0 | F108: 0 | G108: 0 | J108: 0 | K108: 0.006825619448 | L108: 8 | N108: 0.0109
B109: LED0015 | C109: LED 100W Aldridge Luminaire - Brownfield | D109: 0 | E109: 0 | F109: 0 | G109: 0 | J109: 0 | K109: 0.006825619448 | L109: 8 | N109: 0.0109
B110: LED0016 | C110: LED 200W Aldridge Luminaire - Brownfield | D110: 0 | E110: 0 | F110: 0 | G110: 0 | J110: 0 | K110: 0.006825619448 | L110: 8 | N110: 0.0109
B111: LED0017 | C111: LED 300W Aldridge Luminaire - Brownfield | D111: 0 | E111: 0 | F111: 0 | G111: 0 | J111: 0 | K111: 0.006825619448 | L111: 8 | N111: 0.0109
B112: LED0018 | C112: LED 22W Gerard Luminaire | D112: 0 | E112: 0 | F112: 0 | G112: 0 | J112: 0 | K112: 0.0047 | L112: 8 | N112: 0.0109
B113: Mapping Code | C113: Description | D113: Lamp Cost | E113: Lamp On-costed | F113: Ballast / Igniter Cost | G113: Ballast / Igniter On-costed | H113: Starter / PE Cell Cost | I113: Starter / PE Cell On-Costed | J113: Bulb Failure | K113: Luminaire Failure | L113: Bulk Replacement | M113: Ballast Failure Rate | N113: PE Cell Failure | O113: Remarks | P113: Previous Bulb Failure To Save For Archive Purposes
B114: FLU0060 | C114: Fluorescent Twin 20 | J114: 0.01891854214 | L114: 4 | M114: 0.004358490566 | N114: 0.0109 | O114: These prices are for the Starters that are required for these Fluro lights, not for PE cells themselves. Essential Energy's existing fluoresecent lights are controlled by Control wires and therefore no PE cell is required. | P114: 0.01891854214
B115: FLU0130 | C115: Fluorescent 40 | J115: 0.01891854214 | L115: 4 | M115: 0.004358490566 | N115: 0.0109 | P115: 0.01891854214
B116: HPS0010 | C116: High Pressure Sodium 50 | J116: 0.1379 | L116: 4 | M116: 0.004358490566 | N116: 0.0109 | O116: These PE cells are for D2 type cells that are required for the smaller lanterns. | P116: 0.02882071241
B117: HPS0010-TA | C117: High Pressure Sodium 50 Twin Arc | J117: 0.0192 | L117: 4 | M117: 0.004358490566 | N117: 0.0109 | O117: These PE cells are for D2 type cells that are required for the smaller lanterns. | P117: 0.007029589728
B118: HPS0020 | C118: High Pressure Sodium 70 | J118: 0.132 | L118: 4 | M118: 0.004358490566 | N118: 0.0109 | O118: These PE cells are for D2 type cells that are required for the smaller lanterns. | P118: 0.06429637665
B119: HPS0090 | C119: High Pressure Sodium 150 | J119: 0.0412 | L119: 4 | M119: 0.004358490566 | N119: 0.0109 | O119: These are for Nema based PE cells. | P119: 0.01464017287
B120: HPS0110 | C120: High Pressure Sodium 250 | J120: 0.0421 | L120: 4 | M120: 0.004358490566 | N120: 0.0109 | O120: These are for Nema based PE cells. | P120: 0.02057944772
B121: HPS0170 | C121: High Pressure Sodium 400 | J121: 0.0383 | L121: 4 | M121: 0.004358490566 | N121: 0.0109 | O121: These are for Nema based PE cells. | P121: 0.02288911564
B122: HPS0170-TA | C122: High Pressure Sodium 400 Twin Arc | J122: 0.0117 | L122: 4 | M122: 0.004358490566 | N122: 0.0109 | O122: These are for Nema based PE cells. | P122: 0.02288911564
B123: HPS0020-TA | C123: High Pressure Sodium 70 Twin Arc | J123: 0.0172 | L123: 4 | M123: 0.004358490566 | N123: 0.0109 | O123: These PE cells are for D2 type cells that are required for the smaller lanterns. | P123: 0.02667053014
B124: HPS0090-TA | C124: High Pressure Sodium 150 Twin Arc | J124: 0.01534725243 | L124: 4 | M124: 0.004358490566 | N124: 0.0109 | O124: These are for Nema based PE cells. | P124: 0.01534725243
B125: HPS0110-TA | C125: High Pressure Sodium 250 Twin Arc | J125: 0.0194 | L125: 4 | M125: 0.004358490566 | N125: 0.0109 | O125: These are for Nema based PE cells. | P125: 0.01674245719
B126: HPS0200-TA | C126: High Pressure Sodium 4x400 Twin Arc | J126: 0.02288911564 | L126: 4 | M126: 0.004358490566 | N126: 0.0109 | O126: These are for Nema based PE cells. | P126: 0.02288911564
B127: MVA0010 | C127: Mercury Vapour 50 | J127: 0.0888 | L127: 4 | M127: 0.004358490566 | N127: 0.0109 | O127: These PE cells are for D2 type cells that are required for the smaller lanterns | P127: 0.03373858798
B128: MVA0020 | C128: Mercury Vapour 80 | J128: 0.0545 | L128: 4 | M128: 0.004358490566 | N128: 0.0109 | O128: These PE cells are for D2 type cells that are required for the smaller lanterns. | P128: 0.01681043581
B129: MVA0080 | C129: Mercury Vapour 125 | J129: 0.0758 | L129: 4 | M129: 0.004358490566 | N129: 0.0109 | O129: These are for Nema based PE cells. | P129: 0.02137366045
B130: MVA0190 | C130: Mercury Vapour 250 | J130: 0.1037 | L130: 4 | M130: 0.004358490566 | N130: 0.0109 | O130: These are for Nema based PE cells. | P130: 0.01498867176
B131: MVA0220 | C131: Mercury Vapour 400 | J131: 0.1255 | L131: 4 | M131: 0.004358490566 | N131: 0.0109 | O131: These are for Nema based PE cells. | P131: 0.005762802295
B132: MVA0230 | C132: Mercury Vapour 2x400 | J132: 0.005762802295 | L132: 4 | M132: 0.004358490566 | N132: 0.0109 | O132: These are for Nema based PE cells. | P132: 0.005762802295
B133: MHR0060 | C133: Metal Hallide (Reactor Control Gear) 250 | J133: 0.095 | L133: 4 | M133: 0.004358490566 | N133: 0.0109 | O133: These are for Button type PE cells that are used for all flood lighting. Same is for 1000w flood light below | P133: 0.02410847921
B134: MHR0070 | C134: Metal Hallide (Reactor Control Gear) 400 | J134: 0.095 | L134: 4 | M134: 0.004358490566 | N134: 0.0109 | P134: 0.02410847921
B135: INC0030 | C135: Incandescent 60 | J135: 0.02499409681 | L135: 4 | M135: 0.004358490566 | N135: 0.0109 | O135: No Ballast or igniter nor PE cell are required for this installation. All of these installs will be on control wires so no PE cell required. | P135: 0.02499409681
B136: MHR0100 | C136: Metal Hallide (Reactor Control Gear) 1000 | J136: 0.2889 | L136: 4 | M136: 0.004358490566 | N136: 0.0109 | O136: Cost of PE cells are the same as for the other flood lights ie $25.42. We don't have a cost for the ballasts as they aren’t in the cat inventory. We may have purched these some time but not in any number so wasn't added to the inventory. Have procurred a price for the 1000w lanterns from manufacture | P136: 0.02410847921
B137: HPS0210 | C137: High Pressure Sodium 600 (Internal Ignitor) | J137: 0.01674245719 | L137: 4 | M137: 0.004358490566 | N137: 0.0109 | O137: These are for Nema based PE cells. | P137: 0.01674245719
B138: FLU0350 | C138: Compact Fluorescent 1x42 | J138: 0.0379 | L138: 4 | M138: 0.004358490566 | N138: 0.0109 | O138: D2 PE cell | P138: 0.02144574328
B139: FLU0355 | C139: Compact Fluorescent 1x32 | J139: 0.0379 | L139: 4 | M139: 0.004358490566 | N139: 0.0109 | O139: D2 PE cell | P139: 0.02144574328
B140: FLU0360 | C140: T5 2x14W | J140: 0.05 | L140: 4 | M140: 0.004358490566 | N140: 0.0109 | O140: D2 PE cell | P140: 0.01891854214
B141: FLU0370 | C141: T5 2x24W | J141: 0.05 | L141: 4 | M141: 0.004358490566 | N141: 0.0109 | O141: D2 PE cell | P141: 0.01891854214
B142: LPS0030 | C142: Low Pressure Sodium 55 | J142: 0.08 | L142: 4 | M142: 0.004358490566 | N142: 0.0109 | O142: These are for Nema based PE cells. | P142: 0.006677812125
B143: LPS0040 | C143: Low Pressure Sodium 90/100 | J143: 0.08 | L143: 4 | M143: 0.004358490566 | N143: 0.0109 | O143: These are for Nema based PE cells. | P143: 0.03046544139
B144: LPS0050 | C144: Low Pressure Sodium 135 | J144: 0.08 | L144: 4 | M144: 0.004358490566 | N144: 0.0109 | O144: These are for Nema based PE cells.The lamp cost is a weighted average from the field service centres of Grafton, Wagga Wagga and Dubbo. | P144: 0.006677812125
B148: Mapping Code | D148: Inspection Cost
A149: Support | B149: WOOD POLE | D149: 9.828627364
A150: Support | B150: SUSPENDED | D150: 19.65725473
A151: Support | B151: STEEL POLE | D151: 8.475631489
A152: Support | B152: R/BOUT COLUMN | D152: 8.475631489
A153: Support | B153: SHARED OR NO POLE | D153: 0
A154: Support | B154: NO CAPITAL | D154: 0
B160: Other Maintenance
B164: Description
B165: This section looked through a document supplied by Sam Peake, Thu 14/09/2017 1:45 PM, titled "2017.06.30 Usage Summary.xlsx" It filters by locations 1GRAF, 1WAGG, 2WAGG. It then filters for the 2017 financial year dates, and looks only at tasks under “INV Street Light”, “INV Poles”, “INV POLE MAINT”. Prices were taken from within the "2017.06.30 Usage Summary.xlsx" document. CPI was added to get the prices from 16/17 to 17/18 $.
B170: Item ID | C170: Description | D170: Average of Standard Price | E170: In $ 17/18 | F170: Count of Items Used | G170: Sum Of Costs
B171: 132213 | C171: Pole Steel 21.0m x 40kN Tapered Multisided | G171: 12713.844
B172: 132211 | C172: Pole Steel 21.0m x 30kN Tapered Multisided | G172: 11545.578
B173: 500966 | C173: Lantern 70W HPS B Nostalgia With PE Cell & Lamp | G173: 10110.1044
B174: 132264 | C174: Pole Steel 18.0m x 24kN Straight Round | G174: 6374.313
B175: 132206 | C175: Pole Steel 15.5m x 12kN Straight Round Pin Pole | G175: 4875.618
B176: 132199 | C176: xxxx Pole Steel 14.0m x 16kN Urban Sub Pole | G176: 4053.126
B177: 132201 | C177: xxxx Pole Steel 14.0m x 16/8kN Recloser Pole | G177: 4053.126
B178: 132196 | C178: Pole Steel 12.5m x 16/8kN Rural Sub Pole | G178: 3402.498
B179: 132195 | C179: xxxx Pole Steel 12.5m x 16/8kN Urban Sub Pole | G179: 3402.498
B180: 132190 | C180: Pole Steel 12.5m x 12/6kN Straight Round Pin Pole | G180: 3140.61
B181: 132192 | C181: Pole Steel 12.5m x 12kN Recloser Pole | G181: 3140.61
B182: 132207 | C182: xxxx Pole Steel 15.5m x 24kN Straight Round Pin Pole | G182: 3129.357
B183: 500972 | C183: Lantern 70W HPS Kensington Heritage | G183: 2937.58542
B184: 500970 | C184: Lantern 42W Compact Fluo Kensington Heritage | G184: 2926.78254
B185: 130975 | C185: Anchor Base 4 Fin 17.0kNM 350mm | G185: 2246.508
B186: 130760 | C186: Column Flinders Heritage Al C/W Bollard Base - L/Rest | G186: 2240.37
B187: 130991 | C187: Anchor Base 4 Fin 32kNM 350mm | G187: 2183.082
B188: 132198 | C188: Pole Steel 12.5m x 24/12kN Pin Pole | G188: 2176.944
B189: 130990 | C189: xxxx Anchor Base 4 Fin 24.7kNM 350mm | G189: 2144.208
B190: 132200 | C190: Pole Steel 14.0m x 16kN Straight Round Pin Pole | G190: 2026.563
B191: 131067 | C191: Column 7.5m x 1.5m Single With Arm Impact Absorbing Gal | G191: 1887.435
B192: 130950 | C192: Anchor Base 3 Fin 6.0kNM 210mm | G192: 1822.986
B193: 125580 | C193: Pole Timber 14.0m x 8kN Pre-Drilled CCA | G193: 1775.928
B194: 125370 | C194: Pole Timber 12.5m x 6kN Pre-Drilled CCA | G194: 1761.606
B195: 132194 | C195: Pole Steel 12.5m x 16kN Straight Round Pin Pole | G195: 1701.249
B196: 130940 | C196: Anchor 3A Ragbolt Cage Assembly | G196: 1635.777
B197: 125860 | C197: Pole Timber 15.5m x 12kN Undrilled CCA | G197: 1531.431
B198: 125550 | C198: Pole Timber 12.5m x 8kN Pre-Drilled CCA | G198: 1483.35
B199: 132180 | C199: Pole Steel 11.0m x 13.5/6.75kN Pin Pole | G199: 1411.74
B200: 125670 | C200: Pole Timber 18.5m x 8kN Undrilled CCA | G200: 1405.602
B201: 502055 | C201: Lantern 70W HPS Style 3 Mod R Bourke Hill Classical | G201: 1350.36
B202: 131070 | C202: Column 9m x 1.5m Single O/R Tapered Round Rigid Curved | G202: 1283.90592
B203: 500990 | C203: Floodlight 400W HPS Sylflood Asymetric With PE Cell & Lamp | G203: 1276.3971
B204: 500992 | C204: Floodlight 400W Metal Halide Sylflood Asymetric | G204: 1227.6
B205: 131010 | C205: Column 9m x 1.5m Single O/R Tapered Round Impact Absorbing | G205: 1203.00708
B206: 501014 | C206: Floodlight 250W HPS Sylflood Bi-Symetrical, PE Cell & Lamp | G206: 1128.40992
B207: 131285 | C207: Bracket 6000mm S/Light OR CE5 | G207: 1125.83196
B208: 125430 | C208: Pole Timber 18.5m x 6kN Undrilled CCA | G208: 1113.024
B209: 125610 | C209: Pole Timber 15.5m x 8kN Undrilled CCA | G209: 1047.552
B210: 817475 | C210: Pole Treatment Termidor 2.5L | G210: 1034.253
B211: 500964 | C211: Lantern 42W Compact Fluo B Nostalgia | G211: 1012.60632
B212: 500982 | C212: Lantern 400W HPS Roadster & PE Cell & Lamp, No Fuse | G212: 1006.632
B213: 131068 | C213: Column 7.5m x 3m Single O/R Tapered Octagonal Curved | G213: 998.59122
B214: 125620 | C214: Pole Timber 17.0m x 6kN Undrilled CCA | G214: 970.827
B215: 130938 | C215: Anchor 2B Ragbolt Cage Assembly | G215: 953.436
B216: 131065 | C216: Column 7.5m x 1.5m Single O/R Tapered Octagonal Curved | G216: 940.40298
B217: 125250 | C217: Pole Timber 12.5m x 4kN Pre-Drilled CCA | G217: 875.688
B218: 501004 | C218: Lantern 250W HPS Roadster Aero, PE Cell & Lamp | G218: 837.837
B219: 500978 | C219: Lantern 150W HPS Roadster Aero, PE Cell & Lamp | G219: 837.837
B220: 125340 | C220: Pole Timber 11.0m x 6kN Undrilled CCA | G220: 829.98036
B221: 500906 | C221: Lantern 42W Compact Fluo Aero Urban, Lamp & PE Cell | G221: 828.63
B222: 125410 | C222: Pole Timber 15.5m x 6kN Undrilled CCA | G222: 828.63
B223: 125790 | C223: Pole Timber 11.0m x 12kN Undrilled CCA | G223: 820.446
B224: 509912 | C224: Floodlight 250W HPS Sylflood AS Asymetric | G224: 818.4
B225: 500915 | C225: Lantern 70W HPS Style 5 B Nostalgia Pole Top | G225: 810.216
B226: 131282 | C226: Bracket 4500mm S/Light OR CE4 | G226: 806.16492
B227: 130936 | C227: Anchor 1CE Ragbolt Cage Assembly | G227: 804.078
B228: 501016 | C228: Floodlight 250W Metal Halide Sylflood Bi-Symetrical | G228: 782.595
B229: 509913 | C229: Floodlight 250W Metal Halide Sylflood AS Asymetric | G229: 776.2524
B230: 500974 | C230: Lantern 150W HPS Roadster With PE Cell & Lamp, No Fuse | G230: 742.698
B231: 501008 | C231: Lantern 250W HPS Roadster, PE Cell & Lamp, No Fuse | G231: 742.698
B232: 131150 | C232: Column 4.5m Prestige Green | G232: 723.48606
B233: 125400 | C233: Pole Timber 14.0m x 6kN Pre-Drilled CCA | G233: 703.824
B234: 130855 | C234: Column 4.5m Prestigious Tapered Octagonal (Style 5) Green | G234: 663.90654
B235: 501000 | C235: Lantern 150W HPS Roadster With PE Cell Base | G235: 634.79196
B236: 125220 | C236: Pole Timber 11.0m x 4kN Undrilled CCA | G236: 633.19608
B237: 502026 | C237: Lantern 70W HPS Urban With PE Cell & Lamp No Fuse | G237: 618.55695
B238: 510160 | C238: Lantern 400W HPS | G238: 610.731
B239: 131280 | C239: Bracket 3000mm S/Light OR CE3 | G239: 590.65974
B240: 817470 | C240: BD Bandage Pole Treatment Austplast | G240: 537.075
B241: 500944 | C241: Lantern 42W Compact Fluo Mod R Bourke Hill Flared | G241: 531.87816
B242: 501970 | C242: Lantern 70W HPS Style 1 Aeroscreen | G242: 531.18252
B243: 125260 | C243: Pole Timber 14.0m x 4kN Pre-Drilled CCA | G243: 526.845
B244: 125520 | C244: Pole Timber 11.0m x 8kN Undrilled CCA | G244: 526.2312
B245: 500900 | C245: Lantern 42W Compact Fluo Suburban | G245: 521.73
B246: 500958 | C246: Lantern 42W Compact Fluo Nostalgia, PE Cell & Lamp | G246: 518.4564
B247: 502025 | C247: Lantern 70W HPS Suburban-Igniter-Cell- Lamp No Fuse | G247: 479.25504
B248: 510165 | C248: LED 17W Lumin Cat P4/P5 Bowl | G248: 460.35
B249: 131289 | C249: Bracket 3000mm S/Light OR CE7 | G249: 428.637
B250: 500960 | C250: Lantern 70W HPS Nostalgia | G250: 392.9343
... 130 more rows

Sheet Warranty NPV
A1: Warranty NPV Calculation
A3: Description
A5: This sheet provides NPV calculation for warranty to feed into the maitenance costs
A7: Discount Rate: | B7: 0.06800801335
A8: Labour warranty (years): | B8: 3
C9: Year | D9: Year | E9: Year | F9: Year | G9: Year | H9: Year | I9: Year | J9: Year | K9: Year | L9: Year | M9: NPV
A10: Lamp Type | B10: Description | C10: 1 | D10: 2 | E10: 3 | F10: 4 | G10: 5 | H10: 6 | I10: 7 | J10: 8 | K10: 9 | L10: 10 | M10: PA
A11: LED0001 | B11: LED 36W Gerard Luminaire (Cat P3) | C11: 0 | D11: 0 | E11: 0 | F11: 0.8432164084 | G11: 0.8432164084 | H11: 0.8432164084 | I11: 0.8432164084 | J11: 0.8432164084 | K11: 0.8432164084 | L11: 0.8432164084 | M11: 0.3756374507
A12: LED0002 | B12: LED 23W Gerard Luminaire (Cat P3) - Aeroscreen | C12: 0 | D12: 0 | E12: 0 | F12: 0.8432164084 | G12: 0.8432164084 | H12: 0.8432164084 | I12: 0.8432164084 | J12: 0.8432164084 | K12: 0.8432164084 | L12: 0.8432164084 | M12: 0.3756374507
A13: LED0003 | B13: LED 17W Gerard Luminaire (Cat P4/P5) | C13: 0 | D13: 0 | E13: 0 | F13: 0.8432164084 | G13: 0.8432164084 | H13: 0.8432164084 | I13: 0.8432164084 | J13: 0.8432164084 | K13: 0.8432164084 | L13: 0.8432164084 | M13: 0.3756374507
A14: LED0004 | B14: LED 17W Gerard Luminaire (Cat P4/P5) - Aeroscreen | C14: 0 | D14: 0 | E14: 0 | F14: 0.8432164084 | G14: 0.8432164084 | H14: 0.8432164084 | I14: 0.8432164084 | J14: 0.8432164084 | K14: 0.8432164084 | L14: 0.8432164084 | M14: 0.3756374507
A15: LED0005 | B15: LED 17W Gerard Luminaire - Louvred (Cat P4/P5 RRW) | C15: 0 | D15: 0 | E15: 0 | F15: 0.8432164084 | G15: 0.8432164084 | H15: 0.8432164084 | I15: 0.8432164084 | J15: 0.8432164084 | K15: 0.8432164084 | L15: 0.8432164084 | M15: 0.3756374507
A16: LED0006 | B16: LED 25W GE Evolve Luminaire (Cat P4/P5) | C16: 0 | D16: 0 | E16: 0 | F16: 3.602833745 | G16: 3.602833745 | H16: 3.602833745 | I16: 3.602833745 | J16: 3.602833745 | K16: 3.602833745 | L16: 3.602833745 | M16: 1.60499638
A17: LED0007 | B17: LED 35W Pecan Luminaire (Cat P3) | C17: 0 | D17: 0 | E17: 0 | F17: 0.6079878497 | G17: 0.6079878497 | H17: 0.6079878497 | I17: 0.6079878497 | J17: 0.6079878497 | K17: 0.6079878497 | L17: 0.6079878497 | M17: 0.2708474404
A18: LED0008 | B18: LED 29W Pecan Luminaire (Cat P3) - Aeroscreen | C18: 0 | D18: 0 | E18: 0 | F18: 0.5051983823 | G18: 0.5051983823 | H18: 0.5051983823 | I18: 0.5051983823 | J18: 0.5051983823 | K18: 0.5051983823 | L18: 0.5051983823 | M18: 0.2250566172
A19: LED0009 | B19: LED 42W Pecan Luminaire (Cat V5) | C19: 0 | D19: 0 | E19: 0 | F19: 0.6256218138 | G19: 0.6256218138 | H19: 0.6256218138 | I19: 0.6256218138 | J19: 0.6256218138 | K19: 0.6256218138 | L19: 0.6256218138 | M19: 0.2787030481
A20: LED0010 | B20: LED 36W Pecan Luminaire (Cat V5) - Aeroscreen | C20: 0 | D20: 0 | E20: 0 | F20: 0.6256218138 | G20: 0.6256218138 | H20: 0.6256218138 | I20: 0.6256218138 | J20: 0.6256218138 | K20: 0.6256218138 | L20: 0.6256218138 | M20: 0.2787030481
A21: LED0011 | B21: LED 105W Aldridge Luminaire (Cat V3) | C21: 0 | D21: 0 | E21: 0 | F21: 0.6256218138 | G21: 0.6256218138 | H21: 0.6256218138 | I21: 0.6256218138 | J21: 0.6256218138 | K21: 0.6256218138 | L21: 0.6256218138 | M21: 0.2787030481
A22: LED0012 | B22: LED 198W Aldridge Luminaire (Cat V1) - Standard Dist. | C22: 0 | D22: 0 | E22: 0 | F22: 1.235193118 | G22: 1.235193118 | H22: 1.235193118 | I22: 1.235193118 | J22: 1.235193118 | K22: 1.235193118 | L22: 1.235193118 | M22: 0.5502558886
A23: LED0013 | B23: LED 198W Aldridge Luminaire (Cat V1) - Forward Dist. | C23: 0 | D23: 0 | E23: 0 | F23: 1.235193118 | G23: 1.235193118 | H23: 1.235193118 | I23: 1.235193118 | J23: 1.235193118 | K23: 1.235193118 | L23: 1.235193118 | M23: 0.5502558886
A24: LED0014 | B24: LED 298W Aldrige Luminaire (Cat V1) - Standard Dist. | C24: 0 | D24: 0 | E24: 0 | F24: 1.235193118 | G24: 1.235193118 | H24: 1.235193118 | I24: 1.235193118 | J24: 1.235193118 | K24: 1.235193118 | L24: 1.235193118 | M24: 0.5502558886
A25: LED0015 | B25: LED 100W Aldridge Luminaire - Brownfield | C25: 0 | D25: 0 | E25: 0 | F25: 1.235193118 | G25: 1.235193118 | H25: 1.235193118 | I25: 1.235193118 | J25: 1.235193118 | K25: 1.235193118 | L25: 1.235193118 | M25: 0.5502558886
A26: LED0016 | B26: LED 200W Aldridge Luminaire - Brownfield | C26: 0 | D26: 0 | E26: 0 | F26: 1.235193118 | G26: 1.235193118 | H26: 1.235193118 | I26: 1.235193118 | J26: 1.235193118 | K26: 1.235193118 | L26: 1.235193118 | M26: 0.5502558886
A27: LED0017 | B27: LED 300W Aldridge Luminaire - Brownfield | C27: 0 | D27: 0 | E27: 0 | F27: 1.235193118 | G27: 1.235193118 | H27: 1.235193118 | I27: 1.235193118 | J27: 1.235193118 | K27: 1.235193118 | L27: 1.235193118 | M27: 0.5502558886

Sheet OPEX Calc
B1: Maintenance Costs
A10: Description
A11: This sheet models the typical maintenance costs associated for both spot and bulk replacement for each lamp type.
A14: Corporate, Divisional & Non-Network Overheads | E14: 0.5036142922
F16: Lookup From Inputs | N16: MAINT SPOT COST PER YEAR PER STREET LIGHT | V16: Bulk Cost
A17: Type | B17: Description | C17: Category | D17: Intentially Blank | E17: Mapping Code | F17: Lamp Cost | G17: Starter / PE Cell Cost | H17: Ballast / Ignitor Cost | I17: Lamp Failure Rate | J17: PE Cell Failure Rates | K17: Ballast / Ignitor Failure Rate | L17: Luminaire Failure Rate Per Year | M17: Bulk % (expressed as a pecentage chance of failure for year) | N17: Pole Maintenance Cost | O17: Labour & Plant | P17: Lamp | Q17: PE Cell Cost | R17: Ballast/Ignitor | S17: Standard Luminaire Charge For Additional Components & Labour | T17: Traffic Control (Taking into account category) | U17: Total | V17: Contract Rate (Bulk) | W17: Standard Materials (Lamp etc) | X17: Additional Bulk Works Materials | Y17: Streetlight patrols | Z17: Improvement Works | AA17: Total | AB17: Total maintenace Including Corp & Div OVH
A18: Lamp | B18: LED 36W Gerard Luminaire (Cat P3) | C18: P | E18: LED0001 | F18: 0 | H18: 0 | I18: 0 | J18: 0.0109 | K18: 0 | L18: 0.004659574468 | M18: 0.125 | N18: 0 | O18: 3.191364206 | P18: 0 | R18: 0 | S18: 9.624559216 | T18: 0.5188519926 | U18: 13.47622929 | Z18: 1.937483705 | AA18: 12.08063171 | AB18: 38.42766146
A19: Lamp | B19: LED 23W Gerard Luminaire (Cat P3) - Aeroscreen | C19: P | E19: LED0002 | F19: 0 | H19: 0 | I19: 0 | J19: 0.0109 | K19: 0 | L19: 0.004659574468 | M19: 0.125 | N19: 0 | O19: 3.191364206 | P19: 0 | R19: 0 | S19: 9.624559216 | T19: 0.5188519926 | U19: 13.47622929 | Z19: 1.937483705 | AA19: 12.08063171 | AB19: 38.42766146
A20: Lamp | B20: LED 17W Gerard Luminaire (Cat P4/P5) | C20: P | E20: LED0003 | F20: 0 | H20: 0 | I20: 0 | J20: 0.0109 | K20: 0 | L20: 0.004659574468 | M20: 0.125 | N20: 0 | O20: 3.191364206 | P20: 0 | R20: 0 | S20: 9.624559216 | T20: 0.5188519926 | U20: 13.47622929 | Z20: 1.937483705 | AA20: 12.08063171 | AB20: 38.42766146
A21: Lamp | B21: LED 17W Gerard Luminaire (Cat P4/P5) - Aeroscreen | C21: P | E21: LED0004 | F21: 0 | H21: 0 | I21: 0 | J21: 0.0109 | K21: 0 | L21: 0.004659574468 | M21: 0.125 | N21: 0 | O21: 3.191364206 | P21: 0 | R21: 0 | S21: 9.624559216 | T21: 0.5188519926 | U21: 13.47622929 | Z21: 1.937483705 | AA21: 12.08063171 | AB21: 38.42766146
A22: Lamp | B22: LED 17W Gerard Luminaire - Louvred (Cat P4/P5 RRW) | C22: P | E22: LED0005 | F22: 0 | H22: 0 | I22: 0 | J22: 0.0109 | K22: 0 | L22: 0.004659574468 | M22: 0.125 | N22: 0 | O22: 3.191364206 | P22: 0 | R22: 0 | S22: 9.624559216 | T22: 0.5188519926 | U22: 13.47622929 | Z22: 1.937483705 | AA22: 12.08063171 | AB22: 38.42766146
A23: Lamp | B23: LED 25W GE Evolve Luminaire (Cat P4/P5) | C23: P | E23: LED0006 | F23: 0 | H23: 0 | I23: 0 | J23: 0.0109 | K23: 0 | L23: 0.01990909091 | M23: 0.125 | N23: 0 | O23: 7.180340473 | P23: 0 | R23: 0 | S23: 9.624559216 | T23: 1.027364742 | U23: 17.97371831 | Z23: 1.937483705 | AA23: 12.08063171 | AB23: 45.19015023
A24: Lamp | B24: LED 35W Pecan Luminaire (Cat P3) | C24: P | E24: LED0007 | F24: 0 | H24: 0 | I24: 0 | J24: 0.0109 | K24: 0 | L24: 0.003359712445 | M24: 0.125 | N24: 0 | O24: 2.851345637 | P24: 0 | R24: 0 | S24: 9.624559216 | T24: 0.4755065912 | U24: 13.09286532 | Z24: 1.937483705 | AA24: 12.08063171 | AB24: 37.85122992
A25: Lamp | B25: LED 29W Pecan Luminaire (Cat P3) - Aeroscreen | C25: P | E25: LED0008 | F25: 0 | H25: 0 | I25: 0 | J25: 0.0109 | K25: 0 | L25: 0.002791702652 | M25: 0.125 | N25: 0 | O25: 2.702765347 | P25: 0 | R25: 0 | S25: 9.624559216 | T25: 0.4565656482 | U25: 12.92534409 | Z25: 1.937483705 | AA25: 12.08063171 | AB25: 37.5993426
A26: Lamp | B26: LED 42W Pecan Luminaire (Cat V5) | C26: V | E26: LED0009 | F26: 0 | H26: 0 | I26: 0 | J26: 0.0109 | K26: 0 | L26: 0.003457156907 | M26: 0.125 | N26: 0 | O26: 2.876835209 | P26: 0 | R26: 0 | S26: 9.624559216 | T26: 3.830047915 | U26: 16.47289622 | Z26: 1.937483705 | AA26: 12.08063171 | AB26: 42.93349268
A27: Lamp | B27: LED 36W Pecan Luminaire (Cat V5) - Aeroscreen | C27: V | E27: LED0010 | F27: 0 | H27: 0 | I27: 0 | J27: 0.0109 | K27: 0 | L27: 0.003457156907 | M27: 0.125 | N27: 0 | O27: 2.876835209 | P27: 0 | R27: 0 | S27: 9.624559216 | T27: 3.830047915 | U27: 16.47289622 | Z27: 1.937483705 | AA27: 12.08063171 | AB27: 42.93349268
A28: Lamp | B28: LED 105W Aldridge Luminaire (Cat V3) | C28: V | E28: LED0011 | F28: 0 | H28: 0 | I28: 0 | J28: 0.0109 | K28: 0 | L28: 0.003457156907 | M28: 0.125 | N28: 0 | O28: 2.876835209 | P28: 0 | R28: 0 | S28: 9.624559216 | T28: 3.830047915 | U28: 16.47289622 | Z28: 1.937483705 | AA28: 12.08063171 | AB28: 42.93349268
A29: Lamp | B29: LED 198W Aldridge Luminaire (Cat V1) - Standard Dist. | C29: V | E29: LED0012 | F29: 0 | H29: 0 | I29: 0 | J29: 0.0109 | K29: 0 | L29: 0.006825619448 | M29: 0.125 | N29: 0 | O29: 3.757959354 | P29: 0 | R29: 0 | S29: 9.624559216 | T29: 4.728650126 | U29: 18.25262257 | Z29: 1.937483705 | AA29: 12.08063171 | AB29: 45.60951466
A30: Lamp | B30: LED 198W Aldridge Luminaire (Cat V1) - Forward Dist. | C30: V | E30: LED0013 | F30: 0 | H30: 0 | I30: 0 | J30: 0.0109 | K30: 0 | L30: 0.006825619448 | M30: 0.125 | N30: 0 | O30: 3.757959354 | P30: 0 | R30: 0 | S30: 9.624559216 | T30: 4.728650126 | U30: 18.25262257 | Z30: 1.937483705 | AA30: 12.08063171 | AB30: 45.60951466
A31: Lamp | B31: LED 298W Aldrige Luminaire (Cat V1) - Standard Dist. | C31: V | E31: LED0014 | F31: 0 | H31: 0 | I31: 0 | J31: 0.0109 | K31: 0 | L31: 0.006825619448 | M31: 0.125 | N31: 0 | O31: 3.757959354 | P31: 0 | R31: 0 | S31: 9.624559216 | T31: 4.728650126 | U31: 18.25262257 | Z31: 1.937483705 | AA31: 12.08063171 | AB31: 45.60951466
A32: Lamp | B32: LED 100W Aldridge Luminaire - Brownfield | C32: V | E32: LED0015 | F32: 0 | H32: 0 | I32: 0 | J32: 0.0109 | K32: 0 | L32: 0.006825619448 | M32: 0.125 | N32: 0 | O32: 3.757959354 | P32: 0 | R32: 0 | S32: 9.624559216 | T32: 4.728650126 | U32: 18.25262257 | Z32: 1.937483705 | AA32: 12.08063171 | AB32: 45.60951466
A33: Lamp | B33: LED 200W Aldridge Luminaire - Brownfield | C33: V | E33: LED0016 | F33: 0 | H33: 0 | I33: 0 | J33: 0.0109 | K33: 0 | L33: 0.006825619448 | M33: 0.125 | N33: 0 | O33: 3.757959354 | P33: 0 | R33: 0 | S33: 9.624559216 | T33: 4.728650126 | U33: 18.25262257 | Z33: 1.937483705 | AA33: 12.08063171 | AB33: 45.60951466
A34: Lamp | B34: LED 300W Aldridge Luminaire - Brownfield | C34: V | E34: LED0017 | F34: 0 | H34: 0 | I34: 0 | J34: 0.0109 | K34: 0 | L34: 0.006825619448 | M34: 0.125 | N34: 0 | O34: 3.757959354 | P34: 0 | R34: 0 | S34: 9.624559216 | T34: 4.728650126 | U34: 18.25262257 | Z34: 1.937483705 | AA34: 12.08063171 | AB34: 45.60951466
A35: Lamp | B35: Fluorescent Twin 20 | C35: P | E35: FLU0060 | I35: 0.01891854214 | J35: 0.0109 | K35: 0.004358490566 | L35: 0 | M35: 0.25 | N35: 0 | O35: 6.18482116 | S35: 9.624559216 | T35: 1.139672653 | U35: 17.23935987 | Z35: 1.937483705 | AA35: 18.98174252 | AB35: 54.46256724
A36: Lamp | B36: Fluorescent 40 | C36: P | E36: FLU0130 | I36: 0.01891854214 | J36: 0.0109 | K36: 0.004358490566 | L36: 0 | M36: 0.25 | N36: 0 | O36: 6.18482116 | S36: 9.624559216 | T36: 1.139672653 | U36: 17.22825837 | Z36: 1.937483705 | AA36: 18.83504125 | AB36: 54.22529274
A37: Lamp | B37: High Pressure Sodium 50 | C37: P | E37: HPS0010 | I37: 0.1379 | J37: 0.0109 | K37: 0.004358490566 | L37: 0 | M37: 0.25 | N37: 0 | O37: 27.71621169 | S37: 9.624559216 | T37: 5.107246871 | U37: 43.6035525 | Z37: 1.937483705 | AA37: 20.08200204 | AB37: 95.75851001
A38: Lamp | B38: High Pressure Sodium 50 Twin Arc | C38: P | E38: HPS0010-TA | I38: 0.0192 | J38: 0.0109 | K38: 0.004358490566 | L38: 0 | M38: 0.25 | N38: 0 | O38: 6.235754971 | S38: 9.624559216 | T38: 1.149058191 | U38: 17.67622981 | Z38: 1.937483705 | AA38: 24.26298821 | AB38: 63.06040761
A39: Lamp | B39: High Pressure Sodium 70 | C39: P | E39: HPS0020 | I39: 0.132 | J39: 0.0109 | K39: 0.004358490566 | L39: 0 | M39: 0.25 | N39: 0 | O39: 26.6485226 | S39: 9.624559216 | T39: 4.910504552 | U39: 42.33130066 | Z39: 1.937483705 | AA39: 20.10739264 | AB39: 93.88371164
A40: Lamp | B40: High Pressure Sodium 150 | C40: V | E40: HPS0090 | I40: 0.0412 | J40: 0.0109 | K40: 0.004358490566 | L40: 0 | M40: 0.25 | N40: 0 | O40: 10.21696852 | S40: 9.624559216 | T40: 15.06138893 | U40: 35.57212834 | Z40: 1.937483705 | AA40: 20.397974 | AB40: 84.15744582
A41: Lamp | B41: High Pressure Sodium 250 | C41: V | E41: HPS0110 | I41: 0.0421 | J41: 0.0109 | K41: 0.004358490566 | L41: 0 | M41: 0.25 | N41: 0 | O41: 10.37983634 | S41: 9.624559216 | T41: 15.30148125 | U41: 36.0263627 | Z41: 1.937483705 | AA41: 20.45439757 | AB41: 84.92527837
A42: Lamp | B42: High Pressure Sodium 400 | C42: V | E42: HPS0170 | I42: 0.0383 | J42: 0.0109 | K42: 0.004358490566 | L42: 0 | M42: 0.25 | N42: 0 | O42: 9.692172185 | S42: 9.624559216 | T42: 14.28775812 | U42: 35.23588992 | Z42: 1.937483705 | AA42: 26.23781298 | AB42: 92.43273827
A43: Lamp | B43: High Pressure Sodium 400 Twin Arc | C43: V | E43: HPS0170-TA | I43: 0.0117 | J43: 0.0109 | K43: 0.004358490566 | L43: 0 | M43: 0.25 | N43: 0 | O43: 4.878523081 | S43: 9.624559216 | T43: 7.191696187 | U43: 22.48270301 | Z43: 1.937483705 | AA43: 25.53251842 | AB43: 72.19637318
A44: Lamp | B44: High Pressure Sodium 70 Twin Arc | C44: P | E44: HPS0020-TA | I44: 0.0172 | J44: 0.0109 | K44: 0.004358490566 | L44: 0 | M44: 0.25 | N44: 0 | O44: 5.873826467 | S44: 9.624559216 | T44: 1.08236588 | U44: 17.17455207 | Z44: 1.937483705 | AA44: 21.58286887 | AB44: 58.27621205
A45: Lamp | B45: High Pressure Sodium 150 Twin Arc | C45: V | E45: HPS0090-TA | I45: 0.01534725243 | J45: 0.0109 | K45: 0.004358490566 | L45: 0 | M45: 0.25 | N45: 0 | O45: 5.538545389 | S45: 9.624559216 | T45: 8.164670966 | U45: 24.07598716 | Z45: 1.937483705 | AA45: 22.99345799 | AB45: 70.77429047
A46: Lamp | B46: High Pressure Sodium 250 Twin Arc | C46: V | E46: HPS0110-TA | I46: 0.0194 | J46: 0.0109 | K46: 0.004358490566 | L46: 0 | M46: 0.25 | N46: 0 | O46: 6.271947822 | S46: 9.624559216 | T46: 9.245819378 | U46: 26.21124934 | Z46: 1.937483705 | AA46: 27.78946102 | AB46: 81.19623989
A47: Lamp | B47: Mercury Vapour 50 | C47: P | E47: MVA0010 | I47: 0.0888 | J47: 0.0109 | K47: 0.004358490566 | L47: 0 | M47: 0.25 | N47: 0 | O47: 18.83086691 | S47: 9.624559216 | T47: 3.469950627 | U47: 32.53706548 | Z47: 1.937483705 | AA47: 19.464164 | AB47: 78.18979186
A48: Lamp | B48: Mercury Vapour 80 | C48: P | E48: MVA0020 | I48: 0.0545 | J48: 0.0109 | K48: 0.004358490566 | L48: 0 | M48: 0.25 | N48: 0 | O48: 12.62379307 | S48: 9.624559216 | T48: 2.326177487 | U48: 24.97487985 | Z48: 1.937483705 | AA48: 19.1143379 | AB48: 66.29317793
A49: Lamp | B49: Mercury Vapour 125 | C49: P | E49: MVA0080 | I49: 0.0758 | J49: 0.0109 | K49: 0.004358490566 | L49: 0 | M49: 0.25 | N49: 0 | O49: 16.47833164 | S49: 9.624559216 | T49: 3.036450603 | U49: 29.72220692 | Z49: 1.937483705 | AA49: 19.60804409 | AB49: 74.17367046
A50: Lamp | B50: Mercury Vapour 250 | C50: V | E50: MVA0190 | I50: 0.1037 | J50: 0.0109 | K50: 0.004358490566 | L50: 0 | M50: 0.25 | N50: 0 | O50: 21.52723427 | S50: 9.624559216 | T50: 31.73446677 | U50: 64.11831834 | Z50: 1.937483705 | AA50: 20.74780011 | AB50: 127.6059086
A51: Lamp | B51: Mercury Vapour 400 | C51: V | E51: MVA0220 | I51: 0.1255 | J51: 0.0109 | K51: 0.004358490566 | L51: 0 | M51: 0.25 | N51: 0 | O51: 25.47225496 | S51: 9.624559216 | T51: 37.55003632 | U51: 74.48766005 | Z51: 1.937483705 | AA51: 21.49823352 | AB51: 144.3257614
A52: Lamp | B52: Mercury Vapour 2x400 | C52: V | E52: MVA0230 | I52: 0.005762802295 | J52: 0.0109 | K52: 0.004358490566 | L52: 0 | M52: 0.25 | N52: 0 | O52: 3.804102539 | S52: 9.624559216 | T52: 5.607834436 | U52: 19.49908183 | Z52: 1.937483705 | AA52: 21.49823352 | AB52: 61.64414931
A53: Lamp | B53: Metal Hallide (Reactor Control Gear) 250 | C53: V | E53: MHR0060 | I53: 0.095 | J53: 0.0109 | K53: 0.004358490566 | L53: 0 | M53: 0.25 | N53: 0 | O53: 19.95284528 | S53: 9.624559216 | T53: 29.41357434 | U53: 62.61344151 | Z53: 1.937483705 | AA53: 27.07006056 | AB53: 134.8493955
A54: Lamp | B54: Metal Hallide (Reactor Control Gear) 400 | C54: V | E54: MHR0070 | I54: 0.095 | J54: 0.0109 | K54: 0.004358490566 | L54: 0 | M54: 0.25 | N54: 0 | O54: 19.95284528 | S54: 9.624559216 | T54: 29.41357434 | U54: 63.83152591 | Z54: 1.937483705 | AA54: 30.13668132 | AB54: 141.2919394
A55: Lamp | B55: Incandescent 60 | C55: P | E55: INC0030 | H55: 0 | I55: 0.02499409681 | J55: 0.0109 | K55: 0.004358490566 | L55: 0 | M55: 0.25 | N55: 0 | O55: 7.284279367 | R55: 0 | S55: 9.624559216 | T55: 1.342269045 | U55: 18.40151583 | Z55: 1.937483705 | AA55: 18.67414309 | AB55: 55.74749064
A56: Lamp | B56: Metal Hallide (Reactor Control Gear) 1000 | C56: V | E56: MHR0100 | I56: 0.2889 | J56: 0.0109 | K56: 0.004358490566 | L56: 0 | M56: 0.25 | N56: 0 | O56: 55.04181374 | S56: 9.624559216 | T56: 81.14013103 | U56: 158.8650566 | Z56: 1.937483705 | AA56: 29.20005014 | AB56: 282.7773824
A57: Lamp | B57: High Pressure Sodium 600 (Internal Ignitor) | C57: V | E57: HPS0210 | I57: 0.01674245719 | J57: 0.0109 | K57: 0.004358490566 | L57: 0 | M57: 0.25 | N57: 0 | O57: 5.791027576 | S57: 9.624559216 | T57: 8.536868689 | U57: 26.40285362 | Z57: 1.937483705 | AA57: 47.27421237 | AB57: 110.7818894
A58: Lamp | B58: Compact Fluorescent 1x42 | C58: P | E58: FLU0350 | I58: 0.0379 | J58: 0.0109 | K58: 0.004358490566 | L58: 0 | M58: 0.25 | N58: 0 | O58: 9.619786484 | S58: 9.624559216 | T58: 1.772631302 | U58: 21.67205672 | Z58: 1.937483705 | AA58: 19.60804409 | AB58: 62.06934957
A59: Lamp | B59: Compact Fluorescent 1x32 | C59: P | E59: FLU0355 | I59: 0.0379 | J59: 0.0109 | K59: 0.004358490566 | L59: 0 | M59: 0.25 | N59: 0 | O59: 9.619786484 | S59: 9.624559216 | T59: 1.772631302 | U59: 21.87178824 | Z59: 1.937483705 | AA59: 20.92553434 | AB59: 64.3506659
A60: Lamp | B60: T5 2x14W | C60: P | E60: FLU0360 | I60: 0.05 | J60: 0.0109 | K60: 0.004358490566 | L60: 0 | M60: 0.25 | N60: 0 | O60: 11.80945393 | S60: 9.624559216 | T60: 2.176119786 | U60: 24.19699184 | Z60: 1.937483705 | AA60: 20.10819515 | AB60: 66.61791237
A61: Lamp | B61: T5 2x24W | C61: P | E61: FLU0370 | I61: 0.05 | J61: 0.0109 | K61: 0.004358490566 | L61: 0 | M61: 0.25 | N61: 0 | O61: 11.80945393 | S61: 9.624559216 | T61: 2.176119786 | U61: 24.64610471 | Z61: 1.937483705 | AA61: 22.01517927 | AB61: 70.16057348
A62: Lamp | B62: Low Pressure Sodium 55 | C62: P | E62: LPS0030 | I62: 0.08 | J62: 0.0109 | K62: 0.004358490566 | L62: 0 | M62: 0.25 | N62: 0 | O62: 17.23838149 | S62: 9.624559216 | T62: 3.176504457 | U62: 38.72796966 | Z62: 1.937483705 | AA62: 44.01123596 | AB62: 124.4078521
A63: Lamp | B63: Low Pressure Sodium 90/100 | C63: P | E63: LPS0040 | I63: 0.08 | J63: 0.0109 | K63: 0.004358490566 | L63: 0 | M63: 0.25 | N63: 0 | O63: 17.23838149 | S63: 9.624559216 | T63: 3.176504457 | U63: 38.76320914 | Z63: 1.937483705 | AA63: 44.29335378 | AB63: 124.8850351
A64: Lamp | B64: Low Pressure Sodium 135 | C64: V | E64: LPS0050 | I64: 0.08 | J64: 0.0109 | K64: 0.004358490566 | L64: 0 | M64: 0.25 | N64: 0 | O64: 17.23838149 | S64: 9.624559216 | T64: 25.41203565 | U64: 61.02374155 | Z64: 1.937483705 | AA64: 44.29335378 | AB64: 158.3562898
A65: Support | B65: WOOD POLE | E65: WOOD POLE | F65: 0 | G65: 0 | H65: 0 | I65: 0 | J65: 0 | K65: 0 | L65: 0 | M65: 0 | N65: 9.828627364 | O65: 0 | Q65: 0 | R65: 0 | T65: 0 | U65: 9.828627364 | V65: 0 | W65: 0 | X65: 0 | Z65: 0 | AA65: 0 | AB65: 14.77846458
A66: Support | B66: STEEL POLE | E66: STEEL POLE | F66: 0 | G66: 0 | H66: 0 | I66: 0 | J66: 0 | K66: 0 | L66: 0 | M66: 0 | N66: 8.475631489 | O66: 0 | Q66: 0 | R66: 0 | T66: 0 | U66: 8.475631489 | V66: 0 | W66: 0 | X66: 0 | Z66: 0 | AA66: 0 | AB66: 12.74408064
A67: Support | B67: R/BOUT COLUMN | E67: R/BOUT COLUMN | F67: 0 | G67: 0 | H67: 0 | I67: 0 | J67: 0 | K67: 0 | L67: 0 | M67: 0 | N67: 8.475631489 | O67: 0 | Q67: 0 | R67: 0 | T67: 0 | U67: 8.475631489 | V67: 0 | W67: 0 | X67: 0 | Z67: 0 | AA67: 0 | AB67: 12.74408064
A68: Support | B68: SHARED OR NO POLE | E68: SHARED OR NO POLE | F68: 0 | G68: 0 | H68: 0 | I68: 0 | J68: 0 | K68: 0 | L68: 0 | M68: 0 | N68: 0 | O68: 0 | Q68: 0 | R68: 0 | T68: 0 | U68: 0 | V68: 0 | W68: 0 | X68: 0 | Z68: 0 | AA68: 0 | AB68: 0
A69: Support | B69: SUSPENDED | E69: SUSPENDED | F69: 0 | G69: 0 | H69: 0 | I69: 0 | J69: 0 | K69: 0 | L69: 0 | M69: 0 | N69: 19.65725473 | O69: 0 | Q69: 0 | R69: 0 | T69: 0 | U69: 19.65725473 | V69: 0 | W69: 0 | X69: 0 | Z69: 0 | AA69: 0 | AB69: 29.55692915
A70: Support | B70: NO CAPITAL | E70: NO CAPITAL | F70: 0 | G70: 0 | H70: 0 | I70: 0 | J70: 0 | K70: 0 | L70: 0 | M70: 0 | N70: 0 | O70: 0 | Q70: 0 | R70: 0 | T70: 0 | U70: 0 | V70: 0 | W70: 0 | X70: 0 | Z70: 0 | AA70: 0 | AB70: 0
A71: Traffic | B71: Street Patrol | E71: Street Patrol | N71: 0 | Y71: 9.76618728 | AA71: 9.76618728 | AB71: 14.68457877

Sheet Mapping & Lookups
A1: Description Lookup Table | G1: Unused Mapping | J1: Construction Code Mapping | P1: CAPEX LOOKUP | X1: OPEX LOOKUP
A3: This table is used to get only the description of the lamp, from the lamp code | J3: This table is used for lookup in the public lighting charges tab to determine if a pole maintenance charge needs to be applied | P3: This table is used in finding the associated assembly number, given the lamp code. OPEX and CAPEX mapping codes are different for a given lamp type. | X3: This table find the associated OPEX mapping code given the lamp code. The OPEX and CAPEX mapping codes are different for a given lamp type.
A5: Lamp Code | B5: Description | C5: Unused | D5: Nominal Rating | E5: Total Watts | G5: Equivalent / Replacement Construction | H5: Capital Code | J5: Capital Code | K5: Equivalent / Replacement Construction | L5: Dedicated Pole Type | M5: Number of lights | P5: Capital Code | Q5: Mapped to Assembly | S5: LAMP CODE | T5: cap | U5: Assembly | X5: Lamp Code | Y5: Mapping Code | Z5: Lantern Watts (Nominal) (N/A) | AA5: Category | AB5: Number of Lamps | AC5: Count of Lamps in WASP (as of 16-04-2014)
A6: LED0001 | B6: LED 36W Gerard Luminaire (Cat P3) | D6: 36 | E6: 43 | G6: LED 36W GERARD LUMINAIRE (CAT P3) SHARED OR NO POLE 1 | H6: 3300 | J6: 3300 | K6: LED 36W GERARD LUMINAIRE (CAT P3) | L6: SHARED OR NO POLE | M6: 1 | P6: 1 | S6: FLU0010-ST | T6: 0010 | U6: COMPMV80W | X6: FLU0350-ST | Y6: FLU0350 | Z6: 42 | AA6: P | AB6: 1 | AC6: 55274
A7: LED0002 | B7: LED 23W Gerard Luminaire (Cat P3) - Aeroscreen | D7: 23 | E7: 27 | G7: LED 36W GERARD LUMINAIRE (CAT P3) SHARED OR NO POLE 2 | H7: 3310 | J7: 3310 | K7: LED 36W GERARD LUMINAIRE (CAT P3) | L7: SHARED OR NO POLE | M7: 2 | P7: 5 | Q7: COMPMV80W | S7: FLU0020-ST | T7: 0010 | U7: COMPMV80W | X7: HPS0020-ST | Y7: HPS0020 | Z7: 70 | AA7: P | AB7: 1 | AC7: 27453
A8: LED0003 | B8: LED 18W Gerard Luminaire (Cat P4/P5) | D8: 18 | E8: 22 | G8: LED 36W GERARD LUMINAIRE (CAT P3) SHARED OR NO POLE 3 | H8: 3320 | J8: 3320 | K8: LED 36W GERARD LUMINAIRE (CAT P3) | L8: SHARED OR NO POLE | M8: 3 | P8: 10 | Q8: COMPMV80W | S8: FLU0030-ST | T8: 0010 | U8: COMPMV80W | X8: HPS0110-ST | Y8: HPS0110 | Z8: 250 | AA8: V | AB8: 1 | AC8: 21897
A9: LED0004 | B9: LED 18W Gerard Luminaire (Cat P4/P5) - Aeroscreen | D9: 18 | E9: 22 | G9: LED 36W GERARD LUMINAIRE (CAT P3) SHARED OR NO POLE 4 | H9: 3330 | J9: 3330 | K9: LED 36W GERARD LUMINAIRE (CAT P3) | L9: SHARED OR NO POLE | M9: 4 | P9: 20 | Q9: REPMV250WHPS150W | S9: FLU0040-ST | T9: 0010 | U9: COMPMV80W | X9: MVA0020-ST | Y9: MVA0020 | Z9: 80 | AA9: P | AB9: 1 | AC9: 20536
A10: LED0005 | B10: LED 13W Gerard Luminaire (Cat P4/P5 RRW) | D10: 13 | E10: 17 | G10: LED 36W GERARD LUMINAIRE (CAT P3) WOOD POLE 1 | H10: 3340 | J10: 3340 | K10: LED 36W GERARD LUMINAIRE (CAT P3) | L10: WOOD POLE | M10: 1 | P10: 30 | Q10: REPMV400WHPS250W | S10: FLU0050-ST | T10: 0010 | U10: COMPMV80W | X10: HPS0090-ST | Y10: HPS0090 | Z10: 150 | AA10: V | AB10: 1 | AC10: 9205
A11: LED0006 | B11: LED 25W GE Evolve Luminaire (Cat P4/P5) | D11: 25 | E11: 25 | G11: LED 36W GERARD LUMINAIRE (CAT P3) WOOD POLE 2 | H11: 3350 | J11: 3350 | K11: LED 36W GERARD LUMINAIRE (CAT P3) | L11: WOOD POLE | M11: 2 | P11: 40 | Q11: COMPHPS70W | S11: FLU0060-ST | T11: 0010 | U11: COMPMV80W | X11: MVA0010-ST | Y11: MVA0010 | Z11: 50 | AA11: P | AB11: 1 | AC11: 2265
A12: LED0007 | B12: LED 35W Pecan Luminaire (Cat P3) | D12: 35 | E12: 35 | G12: LED 36W GERARD LUMINAIRE (CAT P3) WOOD POLE 3 | H12: 3360 | J12: 3360 | K12: LED 36W GERARD LUMINAIRE (CAT P3) | L12: WOOD POLE | M12: 3 | P12: 50 | Q12: COMPHPS150W | S12: FLU0070-ST | T12: 0010 | U12: COMPMV80W | X12: HPS0010-TA | Y12: HPS0010-TA | Z12: 50 | AA12: P | AB12: 1 | AC12: 2084
A13: LED0008 | B13: LED 29W Pecan Luminaire (Cat P3) - Aeroscreen | D13: 29 | E13: 29 | G13: LED 36W GERARD LUMINAIRE (CAT P3) WOOD POLE 4 | H13: 3370 | J13: 3370 | K13: LED 36W GERARD LUMINAIRE (CAT P3) | L13: WOOD POLE | M13: 4 | P13: 60 | Q13: COMPHPS250W | S13: FLU0080-ST | T13: 0010 | U13: COMPMV80W | X13: HPS0170-ST | Y13: HPS0170 | Z13: 400 | AA13: V | AB13: 1 | AC13: 2001
A14: LED0009 | B14: LED 42W Pecan Luminaire (Cat V5) | D14: 42 | G14: LED 36W GERARD LUMINAIRE (CAT P3) STEEL POLE 1 | H14: 3380 | J14: 3380 | K14: LED 36W GERARD LUMINAIRE (CAT P3) | L14: STEEL POLE | M14: 1 | P14: 70 | Q14: 7206.05.21 | S14: FLU0090-ST | T14: 0010 | U14: COMPMV80W | X14: FLU0130-ST | Y14: FLU0130 | Z14: 40 | AA14: P | AB14: 1 | AC14: 1502
A15: LED0010 | B15: LED 36W Pecan Luminaire (Cat V5) - Aeroscreen | D15: 36 | G15: LED 36W GERARD LUMINAIRE (CAT P3) STEEL POLE 2 | H15: 3390 | J15: 3390 | K15: LED 36W GERARD LUMINAIRE (CAT P3) | L15: STEEL POLE | M15: 2 | P15: 80 | Q15: 7107.09.30 | S15: FLU0100-ST | T15: 0010 | U15: COMPMV80W | X15: HPS0020-TA | Y15: HPS0020-TA | Z15: 70 | AA15: P | AB15: 1 | AC15: 1156
A16: LED0011 | B16: LED 105W Aldridge Luminaire (Cat V3) | D16: 105 | G16: LED 36W GERARD LUMINAIRE (CAT P3) STEEL POLE 3 | H16: 3400 | J16: 3400 | K16: LED 36W GERARD LUMINAIRE (CAT P3) | L16: STEEL POLE | M16: 3 | P16: 90 | Q16: 7107.09.30 | S16: FLU0110-ST | T16: 0010 | U16: COMPMV80W | X16: MVA0220-ST | Y16: MVA0220 | Z16: 400 | AA16: V | AB16: 2 | AC16: 872
A17: LED0012 | B17: LED 198W Aldridge Luminaire (Cat V1) - Standard Dist. | D17: 198 | G17: LED 36W GERARD LUMINAIRE (CAT P3) STEEL POLE 4 | H17: 3410 | J17: 3410 | K17: LED 36W GERARD LUMINAIRE (CAT P3) | L17: STEEL POLE | M17: 4 | P17: 100 | Q17: 7206.05.3 | S17: FLU0120-ST | T17: 0010 | U17: COMPMV80W | X17: HPS0010-ST | Y17: HPS0010 | Z17: 50 | AA17: P | AB17: 1 | AC17: 812
A18: LED0013 | B18: LED 198W Aldridge Luminaire (Cat V1) - Forward Dist. | D18: 198 | G18: LED 23W GERARD LUMINAIRE (CAT P3) - AEROSCREEN SHARED OR NO POLE 1 | H18: 3420 | J18: 3420 | K18: LED 23W GERARD LUMINAIRE (CAT P3) - AEROSCREEN | L18: SHARED OR NO POLE | M18: 1 | P18: 110 | Q18: BULKHEAD | S18: FLU0130-ST | T18: 0010 | U18: COMPMV80W | X18: MVA0190-ST | Y18: MVA0190 | Z18: 250 | AA18: V | AB18: 1 | AC18: 770
A19: LED0014 | B19: LED 298W Aldrige Luminaire (Cat V1) - Standard Dist. | D19: 298 | G19: LED 23W GERARD LUMINAIRE (CAT P3) - AEROSCREEN SHARED OR NO POLE 2 | H19: 3430 | J19: 3430 | K19: LED 23W GERARD LUMINAIRE (CAT P3) - AEROSCREEN | L19: SHARED OR NO POLE | M19: 2 | P19: 120 | Q19: 7107.09.50 | S19: FLU0140-ST | T19: 0010 | U19: COMPMV80W | X19: MVA0080-ST | Y19: MVA0080 | Z19: 125 | AA19: P | AB19: 1 | AC19: 646
A20: FLU0010 | B20: Fluorescent 9 | D20: 9 | E20: 9 | G20: LED 23W GERARD LUMINAIRE (CAT P3) - AEROSCREEN SHARED OR NO POLE 3 | H20: 3440 | J20: 3440 | K20: LED 23W GERARD LUMINAIRE (CAT P3) - AEROSCREEN | L20: SHARED OR NO POLE | M20: 3 | P20: 130 | Q20: 7107.09.30 | S20: FLU0150-ST | T20: 0010 | U20: COMPMV80W | X20: HPS0110-TA | Y20: HPS0110-TA | Z20: 250 | AA20: V | AB20: 1 | AC20: 642
A21: FLU0020 | B21: Fluorescent 11 | D21: 11 | E21: 11 | G21: LED 23W GERARD LUMINAIRE (CAT P3) - AEROSCREEN SHARED OR NO POLE 4 | H21: 3450 | J21: 3450 | K21: LED 23W GERARD LUMINAIRE (CAT P3) - AEROSCREEN | L21: SHARED OR NO POLE | M21: 4 | P21: 140 | Q21: 7107.09.30 | S21: FLU0160-ST | T21: 0010 | U21: COMPMV80W | X21: LPS0030-ST | Y21: LPS0030 | Z21: 55 | AA21: P | AB21: 1 | AC21: 413
A22: FLU0030 | B22: Fluorescent 13 | D22: 13 | E22: 13 | G22: LED 23W GERARD LUMINAIRE (CAT P3) - AEROSCREEN WOOD POLE 1 | H22: 3460 | J22: 3460 | K22: LED 23W GERARD LUMINAIRE (CAT P3) - AEROSCREEN | L22: WOOD POLE | M22: 1 | P22: 150 | Q22: 7206.05.3 | S22: FLU0170-ST | T22: 0010 | U22: COMPMV80W | X22: FLU0050-ST | Y22: FLU0060 | Z22: 20 | AA22: P | AB22: 1 | AC22: 373
A23: FLU0040 | B23: Fluorescent 15 | D23: 15 | E23: 15 | G23: LED 23W GERARD LUMINAIRE (CAT P3) - AEROSCREEN WOOD POLE 2 | H23: 3470 | J23: 3470 | K23: LED 23W GERARD LUMINAIRE (CAT P3) - AEROSCREEN | L23: WOOD POLE | M23: 2 | P23: 170 | Q23: 7107.09.30 | S23: FLU0180-ST | T23: 0010 | U23: COMPMV80W | X23: FLU0060-ST | Y23: FLU0060 | Z23: Twin 20 | AA23: P | AB23: 2 | AC23: 342
A24: FLU0050 | B24: Fluorescent 20 | D24: 20 | E24: 29 | G24: LED 23W GERARD LUMINAIRE (CAT P3) - AEROSCREEN WOOD POLE 3 | H24: 3480 | J24: 3480 | K24: LED 23W GERARD LUMINAIRE (CAT P3) - AEROSCREEN | L24: WOOD POLE | M24: 3 | P24: 180 | Q24: 7206.05.3 | S24: FLU0190-ST | T24: 0010 | U24: COMPMV80W | X24: LPS0040-ST | Y24: LPS0040 | Z24: 90/100 | AA24: P | AB24: 1 | AC24: 275
A25: FLU0060 | B25: Fluorescent Twin 20 | D25: Twin 20 | E25: 50 | G25: LED 23W GERARD LUMINAIRE (CAT P3) - AEROSCREEN WOOD POLE 4 | H25: 3490 | J25: 3490 | K25: LED 23W GERARD LUMINAIRE (CAT P3) - AEROSCREEN | L25: WOOD POLE | M25: 4 | P25: 190 | Q25: HPS600HM | S25: FLU0200-ST | T25: 0010 | U25: COMPMV80W | X25: HPS0090-TA | Y25: HPS0090-TA | Z25: 150 | AA25: V | AB25: 1 | AC25: 222
A26: FLU0070 | B26: Fluorescent 3x20 | D26: 3x20 | E26: 77 | G26: LED 23W GERARD LUMINAIRE (CAT P3) - AEROSCREEN STEEL POLE 1 | H26: 3500 | J26: 3500 | K26: LED 23W GERARD LUMINAIRE (CAT P3) - AEROSCREEN | L26: STEEL POLE | M26: 1 | P26: 200 | Q26: REPMV250WHPS150W | S26: FLU0210-ST | T26: 0010 | U26: COMPMV80W | X26: HPS0160-ST | Y26: HPS0170 | Z26: 360 | AA26: V | AB26: 1 | AC26: 189
A27: FLU0080 | B27: Fluorescent 4x20 | D27: 4x20 | E27: 100 | G27: LED 23W GERARD LUMINAIRE (CAT P3) - AEROSCREEN STEEL POLE 2 | H27: 3510 | J27: 3510 | K27: LED 23W GERARD LUMINAIRE (CAT P3) - AEROSCREEN | L27: STEEL POLE | M27: 2 | P27: 210 | Q27: REPMV400WHPS250W | S27: FLU0220-ST | T27: 0010 | U27: COMPMV80W | X27: MHR0060-ST | Y27: MHR0060 | Z27: 250 | AA27: V | AB27: 1 | AC27: 180
A28: FLU0090 | B28: Fluorescent 6x20 | D28: 6x20 | E28: 150 | G28: LED 23W GERARD LUMINAIRE (CAT P3) - AEROSCREEN STEEL POLE 3 | H28: 3520 | J28: 3520 | K28: LED 23W GERARD LUMINAIRE (CAT P3) - AEROSCREEN | L28: STEEL POLE | M28: 3 | P28: 220 | Q28: COMPHPS150W | S28: FLU0230-ST | T28: 0010 | U28: COMPMV80W | X28: LPS0060-ST | Y28: LPS0050 | Z28: 150 | AA28: V | AB28: 1 | AC28: 177
A29: FLU0100 | B29: Fluorescent 26 | D29: 26 | E29: 32 | G29: LED 23W GERARD LUMINAIRE (CAT P3) - AEROSCREEN STEEL POLE 4 | H29: 3530 | J29: 3530 | K29: LED 23W GERARD LUMINAIRE (CAT P3) - AEROSCREEN | L29: STEEL POLE | M29: 4 | P29: 230 | Q29: COMPHPS250W | S29: FLU0240-ST | T29: 0010 | U29: COMPMV80W | X29: MHR0030-ST | Y29: MHR0060 | Z29: 150 | AA29: V | AB29: 1 | AC29: 135
A30: FLU0110 | B30: Fluorescent 2x26 | D30: 2x26 | E30: 64 | G30: LED 18W GERARD LUMINAIRE (CAT P4/P5) SHARED OR NO POLE 1 | H30: 3540 | J30: 3540 | K30: LED 18W GERARD LUMINAIRE (CAT P4/P5) | L30: SHARED OR NO POLE | M30: 1 | P30: 240 | Q30: 7206.05.21 | S30: FLU0250-ST | T30: 0010 | U30: COMPMV80W | X30: FLU0100-ST | Y30: FLU0060 | Z30: 26 | AA30: P | AB30: 1 | AC30: 130
A31: FLU0120 | B31: Fluorescent 6x36 | D31: 6x36 | E31: 192 | G31: LED 18W GERARD LUMINAIRE (CAT P4/P5) SHARED OR NO POLE 2 | H31: 3550 | J31: 3550 | K31: LED 18W GERARD LUMINAIRE (CAT P4/P5) | L31: SHARED OR NO POLE | M31: 2 | P31: 250 | Q31: HPS600HM | S31: FLU0260-ST | T31: 0010 | U31: COMPMV80W | X31: MHR0070-ST | Y31: MHR0070 | Z31: 400 | AA31: V | AB31: 1 | AC31: 129
A32: FLU0130 | B32: Fluorescent 40 | D32: 40 | E32: 50 | G32: LED 18W GERARD LUMINAIRE (CAT P4/P5) SHARED OR NO POLE 3 | H32: 3560 | J32: 3560 | K32: LED 18W GERARD LUMINAIRE (CAT P4/P5) | L32: SHARED OR NO POLE | M32: 3 | P32: 260 | Q32: 7206.05.26 | S32: FLU0270-ST | T32: 0010 | U32: COMPMV80W | X32: MHR0010-ST | Y32: MHR0060 | Z32: 70 | AA32: P | AB32: 1 | AC32: 113
A33: FLU0140 | B33: Fluorescent 2x40 | D33: 2x40 | E33: 100 | G33: LED 18W GERARD LUMINAIRE (CAT P4/P5) SHARED OR NO POLE 4 | H33: 3570 | J33: 3570 | K33: LED 18W GERARD LUMINAIRE (CAT P4/P5) | L33: SHARED OR NO POLE | M33: 4 | P33: 270 | Q33: 7206.05.26 | S33: FLU0280-ST | T33: 0010 | U33: COMPMV80W | X33: HPS0070-ST | Y33: HPS0020 | Z33: 100 | AA33: P | AB33: 1 | AC33: 110
A34: FLU0150 | B34: Fluorescent 3x40 | D34: 3x40 | E34: 150 | G34: LED 18W GERARD LUMINAIRE (CAT P4/P5) WOOD POLE 1 | H34: 3580 | J34: 3580 | K34: LED 18W GERARD LUMINAIRE (CAT P4/P5) | L34: WOOD POLE | M34: 1 | P34: 280 | Q34: 7206.05.26 | S34: FLU0290-ST | T34: 0010 | U34: COMPMV80W | X34: INC0030-ST | Y34: INC0030 | Z34: 60 | AA34: P | AB34: 1 | AC34: 108
A35: FLU0160 | B35: Fluorescent 4x40 | D35: 4x40 | E35: 200 | G35: LED 18W GERARD LUMINAIRE (CAT P4/P5) WOOD POLE 2 | H35: 3590 | J35: 3590 | K35: LED 18W GERARD LUMINAIRE (CAT P4/P5) | L35: WOOD POLE | M35: 2 | P35: 290 | Q35: REPMV250WHPS150W | S35: FLU0300-ST | T35: 0010 | U35: COMPMV80W | X35: HPS0140-ST | Y35: HPS0110 | Z35: 310 (Retrofit) | AA35: V | AB35: 1 | AC35: 102
A36: FLU0170 | B36: Fluorescent 6x40 | D36: 6x40 | E36: 300 | G36: LED 18W GERARD LUMINAIRE (CAT P4/P5) WOOD POLE 3 | H36: 3600 | J36: 3600 | K36: LED 18W GERARD LUMINAIRE (CAT P4/P5) | L36: WOOD POLE | M36: 3 | P36: 300 | Q36: REPMV400WHPS250W | S36: FLU0310-ST | T36: 0010 | U36: COMPMV80W | X36: HPS0100-ST | Y36: HPS0110 | Z36: 220 | AA36: V | AB36: 1 | AC36: 93
A37: FLU0180 | B37: Fluorescent 58 | D37: 58 | E37: 72 | G37: LED 18W GERARD LUMINAIRE (CAT P4/P5) WOOD POLE 4 | H37: 3610 | J37: 3610 | K37: LED 18W GERARD LUMINAIRE (CAT P4/P5) | L37: WOOD POLE | M37: 4 | P37: 310 | Q37: COMPHPS150W | S37: FLU0320-ST | T37: 0010 | U37: COMPMV80W | X37: FLU0140-ST | Y37: FLU0130 | Z37: 2x40 | AA37: P | AB37: 2 | AC37: 72
A38: FLU0190 | B38: Fluorescent 2x58 | D38: 2x58 | E38: 144 | G38: LED 18W GERARD LUMINAIRE (CAT P4/P5) STEEL POLE 1 | H38: 3620 | J38: 3620 | K38: LED 18W GERARD LUMINAIRE (CAT P4/P5) | L38: STEEL POLE | M38: 1 | P38: 320 | Q38: COMPHPS250W | S38: HPS0010-ST | T38: 0040 | U38: COMPHPS70W | X38: HPS0080-ST | Y38: HPS0090 | Z38: 120 | AA38: P | AB38: 1 | AC38: 65
A39: FLU0200 | B39: Fluorescent 4x58 | D39: 4x58 | E39: 288 | G39: LED 18W GERARD LUMINAIRE (CAT P4/P5) STEEL POLE 2 | H39: 3630 | J39: 3630 | K39: LED 18W GERARD LUMINAIRE (CAT P4/P5) | L39: STEEL POLE | M39: 2 | P39: 330 | Q39: 7206.05.21 | S39: HPS0010-TA | T39: 0090 | U39: 7107.09.30 | X39: FLU0010-ST | Y39: FLU0060 | Z39: 9 | AA39: P | AB39: 1 | AC39: 48
A40: FLU0210 | B40: Fluorescent 5x58 | D40: 5x58 | E40: 360 | G40: LED 18W GERARD LUMINAIRE (CAT P4/P5) STEEL POLE 3 | H40: 3640 | J40: 3640 | K40: LED 18W GERARD LUMINAIRE (CAT P4/P5) | L40: STEEL POLE | M40: 3 | P40: 340 | Q40: HPS600HM | S40: HPS0020-ST | T40: 0040 | U40: COMPHPS70W | X40: HPS0180-ST | Y40: HPS0170 | Z40: 2x400 | AA40: V | AB40: 2 | AC40: 45
A41: FLU0220 | B41: Fluorescent 65 | D41: 65 | E41: 81 | G41: LED 18W GERARD LUMINAIRE (CAT P4/P5) STEEL POLE 4 | H41: 3650 | J41: 3650 | K41: LED 18W GERARD LUMINAIRE (CAT P4/P5) | L41: STEEL POLE | M41: 4 | P41: 350 | Q41: COMPHPS70W | S41: HPS0020-TA | T41: 0090 | U41: 7107.09.30 | X41: LPS0050-ST | Y41: LPS0050 | Z41: 135 | AA41: P | AB41: 1 | AC41: 45
A42: FLU0230 | B42: Fluorescent 5x65 | D42: 5x65 | E42: 405 | G42: LED 18W GERARD LUMINAIRE (CAT P4/P5) - AEROSCREEN SHARED OR NO POLE 1 | H42: 3660 | J42: 3660 | K42: LED 18W GERARD LUMINAIRE (CAT P4/P5) - AEROSCREEN | L42: SHARED OR NO POLE | M42: 1 | P42: 360 | Q42: COMPHPS70W | S42: HPS0030-ST | T42: 0040 | U42: COMPHPS70W | X42: FLU0040-ST | Y42: FLU0060 | Z42: 15 | AA42: P | AB42: 1 | AC42: 43
A43: FLU0240 | B43: Fluorescent 80 | D43: 80 | E43: 90 | G43: LED 18W GERARD LUMINAIRE (CAT P4/P5) - AEROSCREEN SHARED OR NO POLE 2 | H43: 3670 | J43: 3670 | K43: LED 18W GERARD LUMINAIRE (CAT P4/P5) - AEROSCREEN | L43: SHARED OR NO POLE | M43: 2 | P43: 370 | Q43: REPMV250WHPS150W | S43: HPS0030-TA | T43: 0090 | U43: 7107.09.30 | X43: HPS0170-TA | Y43: HPS0170-TA | Z43: 400 | AA43: V | AB43: 1 | AC43: 33
A44: FLU0250 | B44: Fluorescent 2x80 | D44: 2x80 | E44: 180 | G44: LED 18W GERARD LUMINAIRE (CAT P4/P5) - AEROSCREEN SHARED OR NO POLE 3 | H44: 3680 | J44: 3680 | K44: LED 18W GERARD LUMINAIRE (CAT P4/P5) - AEROSCREEN | L44: SHARED OR NO POLE | M44: 3 | P44: 380 | Q44: REPMV400WHPS250W | S44: HPS0040-ST | T44: 0040 | U44: COMPHPS70W | X44: INC0040-ST | Y44: INC0030 | Z44: 75 | AA44: P | AB44: 1 | AC44: 32
A45: FLU0260 | B45: Fluorescent 3x80 | D45: 3x80 | E45: 270 | G45: LED 18W GERARD LUMINAIRE (CAT P4/P5) - AEROSCREEN SHARED OR NO POLE 4 | H45: 3690 | J45: 3690 | K45: LED 18W GERARD LUMINAIRE (CAT P4/P5) - AEROSCREEN | L45: SHARED OR NO POLE | M45: 4 | P45: 390 | Q45: COMPHPS250W | S45: HPS0040-TA | T45: 0090 | U45: 7107.09.30 | X45: INC0050-ST | Y45: INC0030 | Z45: 100 | AA45: P | AB45: 1 | AC45: 30
A46: FLU0270 | B46: Fluorescent 4x80 | D46: 4x80 | E46: 360 | G46: LED 18W GERARD LUMINAIRE (CAT P4/P5) - AEROSCREEN WOOD POLE 1 | H46: 3700 | J46: 3700 | K46: LED 18W GERARD LUMINAIRE (CAT P4/P5) - AEROSCREEN | L46: WOOD POLE | M46: 1 | P46: 400 | Q46: 7206.05.21 | S46: HPS0050-ST | T46: 0040 | U46: COMPHPS70W | X46: MHR0050-ST | Y46: MHR0060 | Z46: 175 | AA46: V | AB46: 1 | AC46: 29
A47: FLU0280 | B47: Fluorescent 5x80 | D47: 5x80 | E47: 450 | G47: LED 18W GERARD LUMINAIRE (CAT P4/P5) - AEROSCREEN WOOD POLE 2 | H47: 3710 | J47: 3710 | K47: LED 18W GERARD LUMINAIRE (CAT P4/P5) - AEROSCREEN | L47: WOOD POLE | M47: 2 | P47: 410 | Q47: REPMV250WHPS150W | S47: HPS0050-TA | T47: 0090 | U47: 7107.09.30 | X47: HPS0250-ST | Y47: MHR0100 | Z47: 1000 | AA47: V | AB47: 1 | AC47: 28
A48: FLU0290 | B48: Fluorescent 6x80 | D48: 6x80 | E48: 540 | G48: LED 18W GERARD LUMINAIRE (CAT P4/P5) - AEROSCREEN WOOD POLE 3 | H48: 3720 | J48: 3720 | K48: LED 18W GERARD LUMINAIRE (CAT P4/P5) - AEROSCREEN | L48: WOOD POLE | M48: 3 | P48: 420 | Q48: REPMV400WHPS250W | S48: HPS0060-ST | T48: 0040 | U48: COMPHPS70W | X48: FLU0080-ST | Y48: FLU0060 | Z48: 4x20 | AA48: P | AB48: 4 | AC48: 26
A49: FLU0300 | B49: Fluorescent 2x125 | D49: 2x125 | E49: 280 | G49: LED 18W GERARD LUMINAIRE (CAT P4/P5) - AEROSCREEN WOOD POLE 4 | H49: 3730 | J49: 3730 | K49: LED 18W GERARD LUMINAIRE (CAT P4/P5) - AEROSCREEN | L49: WOOD POLE | M49: 4 | P49: 430 | Q49: COMPHPS250W | S49: HPS0060-TA | T49: 0090 | U49: 7107.09.30 | X49: INC0080-ST | Y49: INC0030 | Z49: 150 | AA49: V | AB49: 1 | AC49: 24
A50: FLU0310 | B50: Fluorescent 176 | D50: 176 | E50: 200 | G50: LED 18W GERARD LUMINAIRE (CAT P4/P5) - AEROSCREEN STEEL POLE 1 | H50: 3740 | J50: 3740 | K50: LED 18W GERARD LUMINAIRE (CAT P4/P5) - AEROSCREEN | L50: STEEL POLE | M50: 1 | P50: 440 | Q50: 7206.05.21 | S50: HPS0070-ST | T50: 0040 | U50: COMPHPS70W | X50: FLU0240-ST | Y50: FLU0130 | Z50: 80 | AA50: P | AB50: 1 | AC50: 21
A51: FLU0320 | B51: Fluorescent 236 | D51: 236 | E51: 275 | G51: LED 18W GERARD LUMINAIRE (CAT P4/P5) - AEROSCREEN STEEL POLE 2 | H51: 3750 | J51: 3750 | K51: LED 18W GERARD LUMINAIRE (CAT P4/P5) - AEROSCREEN | L51: STEEL POLE | M51: 2 | P51: 450 | Q51: REPMV250WHPS150W | S51: HPS0070-TA | T51: 0090 | U51: 7107.09.30 | X51: FLU0160-ST | Y51: FLU0130 | Z51: 4x40 | AA51: P | AB51: 4 | AC51: 13
A52: HPS0010 | B52: High Pressure Sodium 50 | D52: 50 | E52: 60 | G52: LED 18W GERARD LUMINAIRE (CAT P4/P5) - AEROSCREEN STEEL POLE 3 | H52: 3760 | J52: 3760 | K52: LED 18W GERARD LUMINAIRE (CAT P4/P5) - AEROSCREEN | L52: STEEL POLE | M52: 3 | P52: 460 | Q52: REPMV400WHPS250W | S52: HPS0080-ST | T52: 0050 | U52: COMPHPS150W | X52: HPS0120-ST | Y52: HPS0110 | Z52: 2x250 | AA52: V | AB52: 2 | AC52: 11
A53: HPS0020 | B53: High Pressure Sodium 70 | D53: 70 | E53: 86 | G53: LED 18W GERARD LUMINAIRE (CAT P4/P5) - AEROSCREEN STEEL POLE 4 | H53: 3770 | J53: 3770 | K53: LED 18W GERARD LUMINAIRE (CAT P4/P5) - AEROSCREEN | L53: STEEL POLE | M53: 4 | P53: 470 | Q53: COMPHPS250W | S53: HPS0090-ST | T53: 0050 | U53: COMPHPS150W | X53: MHR0100-ST | Y53: MHR0100 | Z53: 1000 | AA53: V | AB53: 1 | AC53: 9
A54: HPS0030 | B54: High Pressure Sodium 2x70 | D54: 2x70 | E54: 172 | G54: LED 13W GERARD LUMINAIRE (CAT P4/P5 RRW) SHARED OR NO POLE 1 | H54: 3780 | J54: 3780 | K54: LED 13W GERARD LUMINAIRE (CAT P4/P5 RRW) | L54: SHARED OR NO POLE | M54: 1 | P54: 480 | Q54: 7206.05.21 | S54: HPS0090-TA | T54: 0050 | U54: COMPHPS150W | X54: INC0010-ST | Y54: INC0030 | Z54: 30 | AA54: P | AB54: 1 | AC54: 8
A55: HPS0040 | B55: High Pressure Sodium 3x70 | D55: 3x70 | E55: 258 | G55: LED 13W GERARD LUMINAIRE (CAT P4/P5 RRW) SHARED OR NO POLE 2 | H55: 3790 | J55: 3790 | K55: LED 13W GERARD LUMINAIRE (CAT P4/P5 RRW) | L55: SHARED OR NO POLE | M55: 2 | P55: 490 | Q55: REPMV250WHPS150W | S55: HPS0100-ST | T55: 0060 | U55: COMPHPS250W | X55: MHR0020-ST | Y55: MHR0060 | Z55: 100 | AA55: P | AB55: 1 | AC55: 8
A56: HPS0050 | B56: High Pressure Sodium 4x70 | D56: 4x70 | E56: 344 | G56: LED 13W GERARD LUMINAIRE (CAT P4/P5 RRW) SHARED OR NO POLE 3 | H56: 3800 | J56: 3800 | K56: LED 13W GERARD LUMINAIRE (CAT P4/P5 RRW) | L56: SHARED OR NO POLE | M56: 3 | P56: 500 | Q56: REPMV400WHPS250W | S56: HPS0100-ST | T56: 0610 | U56: 7206.05.18 | X56: MVA0290-ST | Y56: HPS0210 | Z56: 1000 | AA56: V | AB56: 1 | AC56: 8
A57: HPS0060 | B57: High Pressure Sodium 8x70 | D57: 8x70 | E57: 688 | G57: LED 13W GERARD LUMINAIRE (CAT P4/P5 RRW) SHARED OR NO POLE 4 | H57: 3810 | J57: 3810 | K57: LED 13W GERARD LUMINAIRE (CAT P4/P5 RRW) | L57: SHARED OR NO POLE | M57: 4 | P57: 510 | Q57: COMPHPS250W | S57: HPS0110-ST | T57: 0060 | U57: COMPHPS250W | X57: MVA0120-ST | Y57: MVA0080 | Z57: 160 | AA57: V | AB57: 1 | AC57: 6
A58: HPS0070 | B58: High Pressure Sodium 100 | D58: 100 | E58: 120 | G58: LED 13W GERARD LUMINAIRE (CAT P4/P5 RRW) WOOD POLE 1 | H58: 3820 | J58: 3820 | K58: LED 13W GERARD LUMINAIRE (CAT P4/P5 RRW) | L58: WOOD POLE | M58: 1 | P58: 520 | Q58: 7206.05.21 | S58: HPS0110-ST | T58: 0610 | U58: 7206.05.18 | X58: INC0110-ST | Y58: INC0030 | Z58: 500 | AA58: V | AB58: 1 | AC58: 5
A59: HPS0080 | B59: High Pressure Sodium 120 | D59: 120 | E59: 144 | G59: LED 13W GERARD LUMINAIRE (CAT P4/P5 RRW) WOOD POLE 2 | H59: 3830 | J59: 3830 | K59: LED 13W GERARD LUMINAIRE (CAT P4/P5 RRW) | L59: WOOD POLE | M59: 2 | P59: 530 | Q59: REPMV250WHPS150W | S59: HPS0110-TA | T59: 0060 | U59: COMPHPS250W | X59: FLU0190-ST | Y59: FLU0130 | Z59: 2x58 | AA59: P | AB59: 2 | AC59: 4
A60: HPS0090 | B60: High Pressure Sodium 150 | D60: 150 | E60: 173 | G60: LED 13W GERARD LUMINAIRE (CAT P4/P5 RRW) WOOD POLE 3 | H60: 3840 | J60: 3840 | K60: LED 13W GERARD LUMINAIRE (CAT P4/P5 RRW) | L60: WOOD POLE | M60: 3 | P60: 540 | Q60: REPMV400WHPS250W | S60: HPS0110-TA | T60: 0610 | U60: 7206.05.18 | X60: INC0100-ST | Y60: INC0030 | Z60: 300 | AA60: V | AB60: 1 | AC60: 4
A61: HPS0100 | B61: High Pressure Sodium 220 | D61: 220 | E61: 245 | G61: LED 13W GERARD LUMINAIRE (CAT P4/P5 RRW) WOOD POLE 4 | H61: 3850 | J61: 3850 | K61: LED 13W GERARD LUMINAIRE (CAT P4/P5 RRW) | L61: WOOD POLE | M61: 4 | P61: 550 | Q61: COMPHPS250W | S61: HPS0120-ST | T61: 1490 | U61: 7206.05.26 | X61: HPS0190-ST | Y61: HPS0170 | Z61: 3x400 | AA61: V | AB61: 3 | AC61: 3
A62: HPS0110 | B62: High Pressure Sodium 250 | D62: 250 | E62: 273 | G62: LED 13W GERARD LUMINAIRE (CAT P4/P5 RRW) STEEL POLE 1 | H62: 3860 | J62: 3860 | K62: LED 13W GERARD LUMINAIRE (CAT P4/P5 RRW) | L62: STEEL POLE | M62: 1 | P62: 560 | Q62: 7206.05.21 | S62: HPS0120-TA | T62: 1490 | U62: 7206.05.26 | X62: INC0160-ST | Y62: INC0030 | Z62: 1500 | AA62: P | AB62: 1 | AC62: 3
A63: HPS0120 | B63: High Pressure Sodium 2x250 | D63: 2x250 | E63: 546 | G63: LED 13W GERARD LUMINAIRE (CAT P4/P5 RRW) STEEL POLE 2 | H63: 3870 | J63: 3870 | K63: LED 13W GERARD LUMINAIRE (CAT P4/P5 RRW) | L63: STEEL POLE | M63: 2 | P63: 570 | Q63: REPMV250WHPS150W | S63: HPS0130-ST | T63: 1490 | U63: 7206.05.26 | X63: MVA0250-ST | Y63: MVA0220 | Z63: 500 | AA63: V | AB63: 1 | AC63: 3
A64: HPS0130 | B64: High Pressure Sodium 4x250 | D64: 4x250 | E64: 1092 | G64: LED 13W GERARD LUMINAIRE (CAT P4/P5 RRW) STEEL POLE 3 | H64: 3880 | J64: 3880 | K64: LED 13W GERARD LUMINAIRE (CAT P4/P5 RRW) | L64: STEEL POLE | M64: 3 | P64: 580 | Q64: REPMV400WHPS250W | S64: HPS0130-TA | T64: 1490 | U64: 7206.05.26 | X64: FLU0220-ST | Y64: FLU0130 | Z64: 65 | AA64: P | AB64: 1 | AC64: 2
A65: HPS0140 | B65: High Pressure Sodium 310 (Retrofit) | D65: 310 (Retrofit) | E65: 350 | G65: LED 13W GERARD LUMINAIRE (CAT P4/P5 RRW) STEEL POLE 4 | H65: 3890 | J65: 3890 | K65: LED 13W GERARD LUMINAIRE (CAT P4/P5 RRW) | L65: STEEL POLE | M65: 4 | P65: 590 | Q65: COMPHPS250W | S65: HPS0140-ST | T65: 0070 | U65: 7206.05.21 | X65: INC0090-ST | Y65: INC0030 | Z65: 200 | AA65: V | AB65: 1 | AC65: 2
A66: HPS0150 | B66: High Pressure Sodium 2x310 | D66: 2x310 | E66: 700 | G66: LED 25W GE EVOLVE LUMINAIRE (CAT P4/P5) SHARED OR NO POLE 1 | H66: 3900 | J66: 3900 | K66: LED 25W GE EVOLVE LUMINAIRE (CAT P4/P5) | L66: SHARED OR NO POLE | M66: 1 | P66: 600 | Q66: 7206.05.21 | S66: HPS0150-ST | T66: 0070 | U66: 7206.05.21 | X66: LPS0090-ST | Y66: LPS0050 | Z66: 310 | AA66: V | AB66: 1 | AC66: 2
A67: HPS0160 | B67: High Pressure Sodium 360 | D67: 360 | E67: 396 | G67: LED 25W GE EVOLVE LUMINAIRE (CAT P4/P5) SHARED OR NO POLE 2 | H67: 3910 | J67: 3910 | K67: LED 25W GE EVOLVE LUMINAIRE (CAT P4/P5) | L67: SHARED OR NO POLE | M67: 2 | P67: 610 | Q67: 7206.05.18 | S67: HPS0160-ST | T67: 0070 | U67: 7206.05.21 | X67: MHC0020-ST | Y67: MHR0060 | Z67: 250 | AA67: V | AB67: 1 | AC67: 2
A68: HPS0170 | B68: High Pressure Sodium 400 | D68: 400 | E68: 440 | G68: LED 25W GE EVOLVE LUMINAIRE (CAT P4/P5) SHARED OR NO POLE 3 | H68: 3920 | J68: 3920 | K68: LED 25W GE EVOLVE LUMINAIRE (CAT P4/P5) | L68: SHARED OR NO POLE | M68: 3 | P68: 620 | Q68: COMPMV80W | S68: HPS0160-ST | T68: 0620 | U68: COMPMV80W | X68: MVA0170-ST | Y68: MVA0080 | Z68: 175 | AA68: V | AB68: 1 | AC68: 2
A69: HPS0180 | B69: High Pressure Sodium 2x400 | D69: 2x400 | E69: 880 | G69: LED 25W GE EVOLVE LUMINAIRE (CAT P4/P5) SHARED OR NO POLE 4 | H69: 3930 | J69: 3930 | K69: LED 25W GE EVOLVE LUMINAIRE (CAT P4/P5) | L69: SHARED OR NO POLE | M69: 4 | P69: 630 | Q69: 7206.05.18 | S69: HPS0170-ST | T69: 0070 | U69: 7206.05.21 | X69: FLU0070-ST | Y69: FLU0060 | Z69: 3x20 | AA69: P | AB69: 3 | AC69: 1
A70: HPS0190 | B70: High Pressure Sodium 3x400 | D70: 3x400 | E70: 1320 | G70: LED 25W GE EVOLVE LUMINAIRE (CAT P4/P5) WOOD POLE 1 | H70: 3940 | J70: 3940 | K70: LED 25W GE EVOLVE LUMINAIRE (CAT P4/P5) | L70: WOOD POLE | M70: 1 | P70: 640 | Q70: COMPMV80W | S70: HPS0170-ST | T70: 0620 | U70: COMPMV80W | X70: FLU0150-ST | Y70: FLU0130 | Z70: 3x40 | AA70: P | AB70: 3 | AC70: 1
A71: HPS0200 | B71: High Pressure Sodium 4x400 | D71: 4x400 | E71: 1760 | G71: LED 25W GE EVOLVE LUMINAIRE (CAT P4/P5) WOOD POLE 2 | H71: 3950 | J71: 3950 | K71: LED 25W GE EVOLVE LUMINAIRE (CAT P4/P5) | L71: WOOD POLE | M71: 2 | P71: 650 | Q71: 7206.05.26 | S71: HPS0170-ST | X71: FLU0250-ST | Y71: FLU0130 | Z71: 2x80 | AA71: P | AB71: 2 | AC71: 1
A72: HPS0210 | B72: High Pressure Sodium 600 (Internal Ignitor) | D72: 600 (Internal Ignitor) | E72: 650 | G72: LED 25W GE EVOLVE LUMINAIRE (CAT P4/P5) WOOD POLE 3 | H72: 3960 | J72: 3960 | K72: LED 25W GE EVOLVE LUMINAIRE (CAT P4/P5) | L72: WOOD POLE | M72: 3 | P72: 660 | Q72: COMPMV80W | S72: HPS0170-TA | T72: 0070 | U72: 7206.05.21 | X72: MVA0260-ST | Y72: HPS0170 | Z72: 700 | AA72: V | AB72: 1 | AC72: 1
A73: HPS0220 | B73: High Pressure Sodium 2x600 | D73: 2x600 | E73: 1300 | G73: LED 25W GE EVOLVE LUMINAIRE (CAT P4/P5) WOOD POLE 4 | H73: 3970 | J73: 3970 | K73: LED 25W GE EVOLVE LUMINAIRE (CAT P4/P5) | L73: WOOD POLE | M73: 4 | P73: 670 | Q73: 7206.05.18 | S73: HPS0170-TA | T73: 0620 | U73: COMPMV80W | X73: FLU0020-ST | Y73: FLU0060 | Z73: 11 | AA73: P | AB73: 1 | AC73: 0
A74: HPS0230 | B74: High Pressure Sodium 4x600 | D74: 4x600 | E74: 2600 | G74: LED 25W GE EVOLVE LUMINAIRE (CAT P4/P5) STEEL POLE 1 | H74: 3980 | J74: 3980 | K74: LED 25W GE EVOLVE LUMINAIRE (CAT P4/P5) | L74: STEEL POLE | M74: 1 | P74: 680 | Q74: COMPMV80W | S74: HPS0180-ST | T74: 1490 | U74: 7206.05.26 | X74: FLU0030-ST | Y74: FLU0060 | Z74: 13 | AA74: P | AB74: 1 | AC74: 0
A75: HPS0240 | B75: High Pressure Sodium 6x600 | D75: 6x600 | E75: 3900 | G75: LED 25W GE EVOLVE LUMINAIRE (CAT P4/P5) STEEL POLE 2 | H75: 3990 | J75: 3990 | K75: LED 25W GE EVOLVE LUMINAIRE (CAT P4/P5) | L75: STEEL POLE | M75: 2 | P75: 690 | Q75: COMPHPS150W | S75: HPS0180-TA | T75: 1490 | U75: 7206.05.26 | X75: FLU0090-ST | Y75: FLU0060 | Z75: 6x20 | AA75: P | AB75: 6 | AC75: 0
A76: HPS0250 | B76: High Pressure Sodium 1000 | D76: 1000 | E76: 1064 | G76: LED 25W GE EVOLVE LUMINAIRE (CAT P4/P5) STEEL POLE 3 | H76: 4000 | J76: 4000 | K76: LED 25W GE EVOLVE LUMINAIRE (CAT P4/P5) | L76: STEEL POLE | M76: 3 | P76: 700 | Q76: HPS600HM | S76: HPS0190-ST | T76: 1470 | U76: 7206.05.26 | X76: FLU0110-ST | Y76: FLU0060 | Z76: 2x26 | AA76: P | AB76: 2 | AC76: 0
A77: HPS0260 | B77: High Pressure Sodium 4x1000 | D77: 4x1000 | E77: 4256 | G77: LED 25W GE EVOLVE LUMINAIRE (CAT P4/P5) STEEL POLE 4 | H77: 4010 | J77: 4010 | K77: LED 25W GE EVOLVE LUMINAIRE (CAT P4/P5) | L77: STEEL POLE | M77: 4 | P77: 710 | Q77: COMPHPS150W | S77: HPS0200-ST | T77: 1470 | U77: 7206.05.26 | X77: FLU0120-ST | Y77: FLU0060 | Z77: 6x36 | AA77: P | AB77: 2 | AC77: 0
A78: INC0010 | B78: Incandescent 30 | D78: 30 | E78: 30 | G78: LED 35W PECAN LUMINAIRE (CAT P3) SHARED OR NO POLE 1 | H78: 4020 | J78: 4020 | K78: LED 35W PECAN LUMINAIRE (CAT P3) | L78: SHARED OR NO POLE | M78: 1 | P78: 720 | Q78: COMPHPS150W | S78: HPS0210-ST | T78: 0190 | U78: HPS600HM | X78: FLU0170-ST | Y78: FLU0130 | Z78: 6x40 | AA78: P | AB78: 6 | AC78: 0
A79: INC0020 | B79: Incandescent 40 | D79: 40 | E79: 40 | G79: LED 35W PECAN LUMINAIRE (CAT P3) SHARED OR NO POLE 2 | H79: 4030 | J79: 4030 | K79: LED 35W PECAN LUMINAIRE (CAT P3) | L79: SHARED OR NO POLE | M79: 2 | P79: 730 | Q79: COMPHPS70W | S79: HPS0220-ST | T79: 0190 | U79: HPS600HM | X79: FLU0180-ST | Y79: FLU0130 | Z79: 58 | AA79: P | AB79: 1 | AC79: 0
A80: INC0030 | B80: Incandescent 60 | D80: 60 | E80: 60 | G80: LED 35W PECAN LUMINAIRE (CAT P3) SHARED OR NO POLE 3 | H80: 4040 | J80: 4040 | K80: LED 35W PECAN LUMINAIRE (CAT P3) | L80: SHARED OR NO POLE | M80: 3 | P80: 740 | Q80: COMPMV80W | S80: HPS0230-ST | T80: 0190 | U80: HPS600HM | X80: FLU0200-ST | Y80: FLU0130 | Z80: 4x58 | AA80: P | AB80: 4 | AC80: 0
A81: INC0040 | B81: Incandescent 75 | D81: 75 | E81: 75 | G81: LED 35W PECAN LUMINAIRE (CAT P3) SHARED OR NO POLE 4 | H81: 4050 | J81: 4050 | K81: LED 35W PECAN LUMINAIRE (CAT P3) | L81: SHARED OR NO POLE | M81: 4 | P81: 750 | Q81: COMPHPS70W | S81: HPS0240-ST | T81: 0190 | U81: HPS600HM | X81: FLU0210-ST | Y81: FLU0130 | Z81: 5x58 | AA81: P | AB81: 4 | AC81: 0
A82: INC0050 | B82: Incandescent 100 | D82: 100 | E82: 100 | G82: LED 35W PECAN LUMINAIRE (CAT P3) WOOD POLE 1 | H82: 4060 | J82: 4060 | K82: LED 35W PECAN LUMINAIRE (CAT P3) | L82: WOOD POLE | M82: 1 | P82: 760 | Q82: COMPHPS250W | S82: HPS0250-ST | T82: 0120 | U82: 7107.09.50 | X82: FLU0230-ST | Y82: FLU0130 | Z82: 5x65 | AA82: P | AB82: 5 | AC82: 0
A83: INC0060 | B83: Incandescent 3x100 | D83: 3x100 | E83: 300 | G83: LED 35W PECAN LUMINAIRE (CAT P3) WOOD POLE 2 | H83: 4070 | J83: 4070 | K83: LED 35W PECAN LUMINAIRE (CAT P3) | L83: WOOD POLE | M83: 2 | P83: 770 | Q83: 7206.05.21 | S83: HPS0260-ST | T83: 0120 | U83: 7107.09.50 | X83: FLU0260-ST | Y83: FLU0130 | Z83: 3x80 | AA83: P | AB83: 3 | AC83: 0
A84: INC0070 | B84: Incandescent 130 | D84: 130 | E84: 130 | G84: LED 35W PECAN LUMINAIRE (CAT P3) WOOD POLE 3 | H84: 4080 | J84: 4080 | K84: LED 35W PECAN LUMINAIRE (CAT P3) | L84: WOOD POLE | M84: 3 | P84: 780 | Q84: REPMV250WHPS150W | S84: INC0010-ST | T84: 0010 | U84: COMPMV80W | X84: FLU0270-ST | Y84: FLU0130 | Z84: 4x80 | AA84: P | AB84: 4 | AC84: 0
A85: INC0080 | B85: Incandescent 150 | D85: 150 | E85: 150 | G85: LED 35W PECAN LUMINAIRE (CAT P3) WOOD POLE 4 | H85: 4090 | J85: 4090 | K85: LED 35W PECAN LUMINAIRE (CAT P3) | L85: WOOD POLE | M85: 4 | P85: 790 | Q85: REPMV400WHPS250W | S85: INC0020-ST | T85: 0010 | U85: COMPMV80W | X85: FLU0280-ST | Y85: FLU0130 | Z85: 5x80 | AA85: P | AB85: 5 | AC85: 0
A86: INC0090 | B86: Incandescent 200 | D86: 200 | E86: 200 | G86: LED 35W PECAN LUMINAIRE (CAT P3) STEEL POLE 1 | H86: 4100 | J86: 4100 | K86: LED 35W PECAN LUMINAIRE (CAT P3) | L86: STEEL POLE | M86: 1 | P86: 800 | Q86: HPS600HM | S86: INC0030-ST | T86: 0010 | U86: COMPMV80W | X86: FLU0290-ST | Y86: FLU0130 | Z86: 6x80 | AA86: P | AB86: 6 | AC86: 0
A87: INC0100 | B87: Incandescent 300 | D87: 300 | E87: 300 | G87: LED 35W PECAN LUMINAIRE (CAT P3) STEEL POLE 2 | H87: 4110 | J87: 4110 | K87: LED 35W PECAN LUMINAIRE (CAT P3) | L87: STEEL POLE | M87: 2 | P87: 810 | Q87: COMPMV80W | S87: INC0040-ST | T87: 0010 | U87: COMPMV80W | X87: FLU0300-ST | Y87: FLU0130 | Z87: 2x125 | AA87: P | AB87: 2 | AC87: 0
A88: INC0110 | B88: Incandescent 500 | D88: 500 | E88: 500 | G88: LED 35W PECAN LUMINAIRE (CAT P3) STEEL POLE 3 | H88: 4120 | J88: 4120 | K88: LED 35W PECAN LUMINAIRE (CAT P3) | L88: STEEL POLE | M88: 3 | P88: 820 | Q88: COMPMV80W | S88: INC0050-ST | T88: 0010 | U88: COMPMV80W | X88: FLU0310-ST | Y88: FLU0130 | Z88: 176 | AA88: V | AB88: 1 | AC88: 0
A89: INC0120 | B89: Incandescent 750 | D89: 750 | E89: 750 | G89: LED 35W PECAN LUMINAIRE (CAT P3) STEEL POLE 4 | H89: 4130 | J89: 4130 | K89: LED 35W PECAN LUMINAIRE (CAT P3) | L89: STEEL POLE | M89: 4 | P89: 830 | Q89: COMPMV80W | S89: INC0060-ST | T89: 0010 | U89: COMPMV80W | X89: FLU0320-ST | Y89: FLU0130 | Z89: 236 | AA89: V | AB89: 1 | AC89: 0
A90: INC0130 | B90: Incandescent 800 | D90: 800 | E90: 800 | G90: LED 29W PECAN LUMINAIRE (CAT P3) - AEROSCREEN SHARED OR NO POLE 1 | H90: 4140 | J90: 4140 | K90: LED 29W PECAN LUMINAIRE (CAT P3) - AEROSCREEN | L90: SHARED OR NO POLE | M90: 1 | P90: 840 | Q90: 7206.05.26 | S90: INC0070-ST | T90: 0010 | U90: COMPMV80W | X90: FLU0355-ST | Y90: FLU0355 | Z90: 32 | AA90: P | AB90: 1 | AC90: 0
A91: INC0140 | B91: Incandescent 1000 | D91: 1000 | E91: 1000 | G91: LED 29W PECAN LUMINAIRE (CAT P3) - AEROSCREEN SHARED OR NO POLE 2 | H91: 4150 | J91: 4150 | K91: LED 29W PECAN LUMINAIRE (CAT P3) - AEROSCREEN | L91: SHARED OR NO POLE | M91: 2 | P91: 850 | Q91: 7206.05.26 | S91: INC0080-ST | T91: 0010 | U91: COMPMV80W | X91: FLU0360-ST | Y91: FLU0360 | Z91: 2x14 | AA91: P | AB91: 2 | AC91: 0
A92: INC0150 | B92: Incandescent 1440 | D92: 1440 | E92: 1440 | G92: LED 29W PECAN LUMINAIRE (CAT P3) - AEROSCREEN SHARED OR NO POLE 3 | H92: 4160 | J92: 4160 | K92: LED 29W PECAN LUMINAIRE (CAT P3) - AEROSCREEN | L92: SHARED OR NO POLE | M92: 3 | P92: 860 | Q92: 7206.05.26 | S92: INC0090-ST | T92: 0010 | U92: COMPMV80W | X92: FLU0370-ST | Y92: FLU0370 | Z92: 2x24 | AA92: P | AB92: 2 | AC92: 0
A93: INC0160 | B93: Incandescent 1500 | D93: 1500 | E93: 1500 | G93: LED 29W PECAN LUMINAIRE (CAT P3) - AEROSCREEN SHARED OR NO POLE 4 | H93: 4170 | J93: 4170 | K93: LED 29W PECAN LUMINAIRE (CAT P3) - AEROSCREEN | L93: SHARED OR NO POLE | M93: 4 | P93: 870 | Q93: 7206.05.26 | S93: INC0100-ST | T93: 0010 | U93: COMPMV80W | X93: HPS0010-INT | Y93: HPS0010 | Z93: 50 | AA93: P | AB93: 1 | AC93: 0
A94: INC0170 | B94: Incandescent 2880 | D94: 2880 | E94: 2880 | G94: LED 29W PECAN LUMINAIRE (CAT P3) - AEROSCREEN WOOD POLE 1 | H94: 4180 | J94: 4180 | K94: LED 29W PECAN LUMINAIRE (CAT P3) - AEROSCREEN | L94: WOOD POLE | M94: 1 | P94: 880 | Q94: COMPHPS70W | S94: INC0110-ST | X94: HPS0030-ST | Y94: HPS0020 | Z94: 2x70 | AA94: P | AB94: 2 | AC94: 0
A95: LPS0010 | B95: Low Pressure Sodium 18 | D95: 18 | E95: 29 | G95: LED 29W PECAN LUMINAIRE (CAT P3) - AEROSCREEN WOOD POLE 2 | H95: 4190 | J95: 4190 | K95: LED 29W PECAN LUMINAIRE (CAT P3) - AEROSCREEN | L95: WOOD POLE | M95: 2 | P95: 890 | Q95: COMPHPS70W | S95: INC0110-ST | T95: 0010 | U95: COMPMV80W | X95: HPS0040-ST | Y95: HPS0020 | Z95: 3x70 | AA95: P | AB95: 3 | AC95: 0
A96: LPS0020 | B96: Low Pressure Sodium 35 | D96: 35 | E96: 60 | G96: LED 29W PECAN LUMINAIRE (CAT P3) - AEROSCREEN WOOD POLE 3 | H96: 4200 | J96: 4200 | K96: LED 29W PECAN LUMINAIRE (CAT P3) - AEROSCREEN | L96: WOOD POLE | M96: 3 | P96: 900 | Q96: 7206.05.26 | S96: INC0120-ST | T96: 0010 | U96: COMPMV80W | X96: HPS0050-ST | Y96: HPS0020 | Z96: 4x70 | AA96: P | AB96: 4 | AC96: 0
A97: LPS0030 | B97: Low Pressure Sodium 55 | D97: 55 | E97: 80 | G97: LED 29W PECAN LUMINAIRE (CAT P3) - AEROSCREEN WOOD POLE 4 | H97: 4210 | J97: 4210 | K97: LED 29W PECAN LUMINAIRE (CAT P3) - AEROSCREEN | L97: WOOD POLE | M97: 4 | P97: 910 | Q97: COMPHPS70W | S97: INC0130-ST | T97: 0010 | U97: COMPMV80W | X97: HPS0060-ST | Y97: HPS0020 | Z97: 8x70 | AA97: P | AB97: 8 | AC97: 0
A98: LPS0040 | B98: Low Pressure Sodium 90/100 | D98: 90/100 | E98: 120 | G98: LED 29W PECAN LUMINAIRE (CAT P3) - AEROSCREEN STEEL POLE 1 | H98: 4220 | J98: 4220 | K98: LED 29W PECAN LUMINAIRE (CAT P3) - AEROSCREEN | L98: STEEL POLE | M98: 1 | P98: 920 | Q98: COMPHPS70W | S98: INC0140-ST | T98: OBSO | X98: HPS0130-ST | Y98: HPS0110 | Z98: 4x250 | AA98: V | AB98: 4 | AC98: 0
A99: LPS0050 | B99: Low Pressure Sodium 135 | D99: 135 | E99: 170 | G99: LED 29W PECAN LUMINAIRE (CAT P3) - AEROSCREEN STEEL POLE 2 | H99: 4230 | J99: 4230 | K99: LED 29W PECAN LUMINAIRE (CAT P3) - AEROSCREEN | L99: STEEL POLE | M99: 2 | P99: 930 | Q99: COMPHPS250W | S99: INC0150-ST | T99: OBSO | X99: HPS0150-ST | Y99: HPS0110 | Z99: 2x310 | AA99: V | AB99: 2 | AC99: 0
A100: LPS0060 | B100: Low Pressure Sodium 150 | D100: 150 | E100: 186 | G100: LED 29W PECAN LUMINAIRE (CAT P3) - AEROSCREEN STEEL POLE 3 | H100: 4240 | J100: 4240 | K100: LED 29W PECAN LUMINAIRE (CAT P3) - AEROSCREEN | L100: STEEL POLE | M100: 3 | P100: 940 | Q100: REPMV250WHPS150W | S100: INC0160-ST | T100: 0620 | U100: COMPMV80W | X100: HPS0200-ST | Y100: HPS0170 | Z100: 4x400 | AA100: V | AB100: 4 | AC100: 0
A101: LPS0070 | B101: Low Pressure Sodium 160 | D101: 160 | E101: 194 | G101: LED 29W PECAN LUMINAIRE (CAT P3) - AEROSCREEN STEEL POLE 4 | H101: 4250 | J101: 4250 | K101: LED 29W PECAN LUMINAIRE (CAT P3) - AEROSCREEN | L101: STEEL POLE | M101: 4 | P101: 950 | Q101: REPMV400WHPS250W | S101: INC0170-ST | T101: 0620 | U101: COMPMV80W | X101: HPS0210-ST | Y101: HPS0210 | Z101: 600 (Internal Ignitor) | AA101: V | AB101: 1 | AC101: 0
A102: LPS0080 | B102: Low Pressure Sodium 180 | D102: 180 | E102: 212 | G102: LED 42W Pecan Luminaire (Cat V5) SHARED OR NO POLE 1 | H102: 4260 | J102: 4260 | K102: LED 42W Pecan Luminaire (Cat V5) | L102: SHARED OR NO POLE | M102: 1 | P102: 960 | Q102: COMPHPS250W | S102: LPS0010-ST | T102: 0040 | U102: COMPHPS70W | X102: HPS0220-ST | Y102: HPS0210 | Z102: 2x600 | AA102: V | AB102: 2 | AC102: 0
A103: LPS0090 | B103: Low Pressure Sodium 310 | D103: 310 | E103: 340 | G103: LED 42W Pecan Luminaire (Cat V5) SHARED OR NO POLE 2 | H103: 4270 | J103: 4270 | K103: LED 42W Pecan Luminaire (Cat V5) | L103: SHARED OR NO POLE | M103: 2 | P103: 970 | Q103: COMPHPS250W | S103: LPS0020-ST | T103: 0040 | U103: COMPHPS70W | X103: HPS0230-ST | Y103: HPS0210 | Z103: 4x600 | AA103: V | AB103: 4 | AC103: 0
A104: MHC0010 | B104: Metal Hallide (Constant Control Gear) 150 | D104: 150 | E104: 173 | G104: LED 42W Pecan Luminaire (Cat V5) SHARED OR NO POLE 3 | H104: 4280 | J104: 4280 | K104: LED 42W Pecan Luminaire (Cat V5) | L104: SHARED OR NO POLE | M104: 3 | P104: 980 | Q104: COMPHPS150W | S104: LPS0030-ST | T104: 0040 | U104: COMPHPS70W | X104: HPS0240-ST | Y104: HPS0210 | Z104: 6x600 | AA104: V | AB104: 6 | AC104: 0
A105: MHC0020 | B105: Metal Hallide (Constant Control Gear) 250 | D105: 250 | E105: 286 | G105: LED 42W Pecan Luminaire (Cat V5) SHARED OR NO POLE 4 | H105: 4290 | J105: 4290 | K105: LED 42W Pecan Luminaire (Cat V5) | L105: SHARED OR NO POLE | M105: 4 | P105: 990 | Q105: COMPMV80W | S105: LPS0040-ST | T105: 0050 | U105: COMPHPS150W | X105: HPS0260-ST | Y105: MHR0100 | Z105: 4x1000 | AA105: V | AB105: 1 | AC105: 0
A106: MHC0030 | B106: Metal Hallide (Constant Control Gear) 400 | D106: 400 | E106: 449 | G106: LED 42W Pecan Luminaire (Cat V5) WOOD POLE 1 | H106: 4300 | J106: 4300 | K106: LED 42W Pecan Luminaire (Cat V5) | L106: WOOD POLE | M106: 1 | P106: 1000 | Q106: COMPMV80W | S106: LPS0050-ST | T106: 0060 | U106: COMPHPS250W | X106: HPS0030-TA | Y106: HPS0020-TA | Z106: 2x70 | AA106: P | AB106: 2 | AC106: 0
A107: MHR0010 | B107: Metal Hallide (Reactor Control Gear) 70 | D107: 70 | E107: 81.5 | G107: LED 42W Pecan Luminaire (Cat V5) WOOD POLE 2 | H107: 4310 | J107: 4310 | K107: LED 42W Pecan Luminaire (Cat V5) | L107: WOOD POLE | M107: 2 | P107: 1010 | Q107: COMPHPS150W | S107: LPS0060-ST | T107: 0060 | U107: COMPHPS250W | X107: HPS0040-TA | Y107: HPS0020-TA | Z107: 3x70 | AA107: P | AB107: 3 | AC107: 0
A108: MHR0020 | B108: Metal Hallide (Reactor Control Gear) 100 | D108: 100 | E108: 110 | G108: LED 42W Pecan Luminaire (Cat V5) WOOD POLE 3 | H108: 4320 | J108: 4320 | K108: LED 42W Pecan Luminaire (Cat V5) | L108: WOOD POLE | M108: 3 | P108: 1020 | Q108: COMPHPS250W | S108: LPS0070-ST | T108: 0060 | U108: COMPHPS250W | X108: HPS0050-TA | Y108: HPS0020-TA | Z108: 4x70 | AA108: P | AB108: 4 | AC108: 0
A109: MHR0030 | B109: Metal Hallide (Reactor Control Gear) 150 | D109: 150 | E109: 168 | G109: LED 42W Pecan Luminaire (Cat V5) WOOD POLE 4 | H109: 4330 | J109: 4330 | K109: LED 42W Pecan Luminaire (Cat V5) | L109: WOOD POLE | M109: 4 | P109: 1030 | Q109: 7206.05.21 | S109: LPS0080-ST | T109: 0060 | U109: COMPHPS250W | X109: HPS0060-TA | Y109: HPS0020-TA | Z109: 8x70 | AA109: P | AB109: 8 | AC109: 0
A110: MHR0040 | B110: Metal Hallide (Reactor Control Gear) 4x150 | D110: 4x150 | E110: 672 | G110: LED 42W Pecan Luminaire (Cat V5) STEEL POLE 1 | H110: 4340 | J110: 4340 | K110: LED 42W Pecan Luminaire (Cat V5) | L110: STEEL POLE | M110: 1 | P110: 1040 | Q110: 7206.05.26 | S110: LPS0090-ST | T110: 0070 | U110: 7206.05.21 | X110: HPS0070-TA | Y110: HPS0020-TA | Z110: 100 | AA110: P | AB110: 1 | AC110: 0
A111: MHR0050 | B111: Metal Hallide (Reactor Control Gear) 175 | D111: 175 | E111: 191 | G111: LED 42W Pecan Luminaire (Cat V5) STEEL POLE 2 | H111: 4350 | J111: 4350 | K111: LED 42W Pecan Luminaire (Cat V5) | L111: STEEL POLE | M111: 2 | P111: 1050 | Q111: 7206.05.26 | S111: MHC0010-ST | T111: 0040 | U111: COMPHPS70W | X111: HPS0080-TA | Y111: HPS0090-TA | Z111: 120 | AA111: P | AB111: 1 | AC111: 0
A112: MHR0060 | B112: Metal Hallide (Reactor Control Gear) 250 | D112: 250 | E112: 268 | G112: LED 42W Pecan Luminaire (Cat V5) STEEL POLE 3 | H112: 4360 | J112: 4360 | K112: LED 42W Pecan Luminaire (Cat V5) | L112: STEEL POLE | M112: 3 | P112: 1060 | Q112: 7206.05.21 | S112: MHC0020-ST | T112: 0040 | U112: COMPHPS70W | X112: HPS0100-TA | Y112: HPS0110-TA | Z112: 220 | AA112: V | AB112: 1 | AC112: 0
A113: MHR0070 | B113: Metal Hallide (Reactor Control Gear) 400 | D113: 400 | E113: 425 | G113: LED 42W Pecan Luminaire (Cat V5) STEEL POLE 4 | H113: 4370 | J113: 4370 | K113: LED 42W Pecan Luminaire (Cat V5) | L113: STEEL POLE | M113: 4 | P113: 1070 | Q113: 7206.05.18 | S113: MHC0030-ST | T113: 0040 | U113: COMPHPS70W | X113: HPS0120-TA | Y113: HPS0110-TA | Z113: 2x250 | AA113: V | AB113: 2 | AC113: 0
A114: MHR0080 | B114: Metal Hallide (Reactor Control Gear) 2x400 | D114: 2x400 | E114: 850 | G114: LED 42W Pecan Luminaire (Cat V5) R/BOUT COLUMN 2 | H114: 4380 | J114: 4380 | K114: LED 42W Pecan Luminaire (Cat V5) | L114: R/BOUT COLUMN | M114: 2 | P114: 1080 | Q114: 7206.05.26 | S114: MHR0010-ST | T114: 0040 | U114: COMPHPS70W | X114: HPS0130-TA | Y114: HPS0110-TA | Z114: 4x250 | AA114: V | AB114: 4 | AC114: 0
A115: MHR0090 | B115: Metal Hallide (Reactor Control Gear) 500 | D115: 500 | E115: 525 | G115: LED 42W Pecan Luminaire (Cat V5) R/BOUT COLUMN 3 | H115: 4390 | J115: 4390 | K115: LED 42W Pecan Luminaire (Cat V5) | L115: R/BOUT COLUMN | M115: 3 | P115: 1100 | Q115: 7206.05.26 | S115: MHR0020-ST | T115: 0040 | U115: COMPHPS70W | X115: HPS0150-TA | Y115: HPS0110-TA | Z115: 2x310 | AA115: V | AB115: 2 | AC115: 0
A116: MHR0100 | B116: Metal Hallide (Reactor Control Gear) 1000 | D116: 1000 | E116: 1040 | G116: LED 42W Pecan Luminaire (Cat V5) R/BOUT COLUMN 4 | H116: 4400 | J116: 4400 | K116: LED 42W Pecan Luminaire (Cat V5) | L116: R/BOUT COLUMN | M116: 4 | P116: 1110 | Q116: 7107.09.50 | S116: MHR0030-ST | T116: 0050 | U116: COMPHPS150W | X116: HPS0160-TA | Y116: HPS0170-TA | Z116: 360 | AA116: V | AB116: 1 | AC116: 0
A117: MHR0110 | B117: Metal Hallide (Reactor Control Gear) 1500 | D117: 1500 | E117: 1560 | G117: LED 36W Pecan Luminaire (Cat V5) - Aeroscreen SHARED OR NO POLE 1 | H117: 4410 | J117: 4410 | K117: LED 36W Pecan Luminaire (Cat V5) - Aeroscreen | L117: SHARED OR NO POLE | M117: 1 | P117: 1120 | Q117: 7206.05.18 | S117: MHR0040-ST | T117: 0050 | U117: COMPHPS150W | X117: HPS0180-TA | Y117: HPS0170-TA | Z117: 2x400 | AA117: V | AB117: 2 | AC117: 0
A118: MHR0120 | B118: Metal Hallide (Reactor Control Gear) 2000 | D118: 2000 | E118: 2070 | G118: LED 36W Pecan Luminaire (Cat V5) - Aeroscreen SHARED OR NO POLE 2 | H118: 4420 | J118: 4420 | K118: LED 36W Pecan Luminaire (Cat V5) - Aeroscreen | L118: SHARED OR NO POLE | M118: 2 | P118: 1130 | Q118: 7206.05.26 | S118: MHR0050-ST | T118: 0050 | U118: COMPHPS150W | X118: HPS0200-TA | Y118: HPS0170-TA | Z118: 4x400 | AA118: V | AB118: 4 | AC118: 0
A119: MHR0130 | B119: Metal Hallide (Reactor Control Gear) 3745 | D119: 3745 | E119: 3745 | G119: LED 36W Pecan Luminaire (Cat V5) - Aeroscreen SHARED OR NO POLE 3 | H119: 4430 | J119: 4430 | K119: LED 36W Pecan Luminaire (Cat V5) - Aeroscreen | L119: SHARED OR NO POLE | M119: 3 | P119: 1140 | Q119: 7206.05.18 | S119: MHR0060-ST | T119: 0060 | U119: COMPHPS250W | X119: INC0020-ST | Y119: INC0030 | Z119: 40 | AA119: P | AB119: 1 | AC119: 0
A120: MVA0010 | B120: Mercury Vapour 50 | D120: 50 | E120: 65 | G120: LED 36W Pecan Luminaire (Cat V5) - Aeroscreen SHARED OR NO POLE 4 | H120: 4440 | J120: 4440 | K120: LED 36W Pecan Luminaire (Cat V5) - Aeroscreen | L120: SHARED OR NO POLE | M120: 4 | P120: 1150 | Q120: 7206.05.18 | S120: MHR0060-ST | X120: INC0060-ST | Y120: INC0030 | Z120: 3x100 | AA120: P | AB120: 3 | AC120: 0
A121: MVA0020 | B121: Mercury Vapour 80 | D121: 80 | E121: 95.8 | G121: LED 36W Pecan Luminaire (Cat V5) - Aeroscreen WOOD POLE 1 | H121: 4450 | J121: 4450 | K121: LED 36W Pecan Luminaire (Cat V5) - Aeroscreen | L121: WOOD POLE | M121: 1 | P121: 1160 | Q121: 7206.05.18 | S121: MHR0060-ST | T121: 0610 | U121: 7206.05.18 | X121: INC0070-ST | Y121: INC0030 | Z121: 130 | AA121: P | AB121: 1 | AC121: 0
A122: MVA0030 | B122: Mercury Vapour 2x80 | D122: 2x80 | E122: 191.6 | G122: LED 36W Pecan Luminaire (Cat V5) - Aeroscreen WOOD POLE 2 | H122: 4460 | J122: 4460 | K122: LED 36W Pecan Luminaire (Cat V5) - Aeroscreen | L122: WOOD POLE | M122: 2 | P122: 1170 | Q122: 7206.05.26 | S122: MHR0070-ST | T122: 0060 | U122: COMPHPS250W | X122: INC0120-ST | Y122: INC0030 | Z122: 750 | AA122: V | AB122: 1 | AC122: 0
A123: MVA0040 | B123: Mercury Vapour 3x80 | D123: 3x80 | E123: 287.4 | G123: LED 36W Pecan Luminaire (Cat V5) - Aeroscreen WOOD POLE 3 | H123: 4470 | J123: 4470 | K123: LED 36W Pecan Luminaire (Cat V5) - Aeroscreen | L123: WOOD POLE | M123: 3 | P123: 1180 | Q123: 7107.09.30 | S123: MHR0070-ST | T123: 0620 | U123: COMPMV80W | X123: INC0130-ST | Y123: INC0030 | Z123: 800 | AA123: V | AB123: 1 | AC123: 0
A124: MVA0050 | B124: Mercury Vapour 4x80 | D124: 4x80 | E124: 383.2 | G124: LED 36W Pecan Luminaire (Cat V5) - Aeroscreen WOOD POLE 4 | H124: 4480 | J124: 4480 | K124: LED 36W Pecan Luminaire (Cat V5) - Aeroscreen | L124: WOOD POLE | M124: 4 | P124: 1190 | Q124: 7107.09.30 | S124: MHR0080-ST | T124: OBSO | X124: INC0140-ST | Y124: INC0030 | Z124: 1000 | AA124: V | AB124: 1 | AC124: 0
A125: MVA0060 | B125: Mercury Vapour 6x80 | D125: 6x80 | E125: 574.8 | G125: LED 36W Pecan Luminaire (Cat V5) - Aeroscreen STEEL POLE 1 | H125: 4490 | J125: 4490 | K125: LED 36W Pecan Luminaire (Cat V5) - Aeroscreen | L125: STEEL POLE | M125: 1 | P125: 1200 | Q125: 7107.09.30 | S125: MHR0090-ST | T125: OBSO | X125: INC0150-ST | Y125: INC0030 | Z125: 1440 | AA125: V | AB125: 1 | AC125: 0
A126: MVA0070 | B126: Mercury Vapour 7x80 | D126: 7x80 | E126: 670.6 | G126: LED 36W Pecan Luminaire (Cat V5) - Aeroscreen STEEL POLE 2 | H126: 4500 | J126: 4500 | K126: LED 36W Pecan Luminaire (Cat V5) - Aeroscreen | L126: STEEL POLE | M126: 2 | P126: 1210 | Q126: 7107.09.30 | S126: MHR0100-ST | T126: 0120 | U126: 7107.09.50 | X126: INC0170-ST | Y126: INC0030 | Z126: 2880 | AA126: V | AB126: 1 | AC126: 0
A127: MVA0080 | B127: Mercury Vapour 125 | D127: 125 | E127: 142 | G127: LED 36W Pecan Luminaire (Cat V5) - Aeroscreen STEEL POLE 3 | H127: 4510 | J127: 4510 | K127: LED 36W Pecan Luminaire (Cat V5) - Aeroscreen | L127: STEEL POLE | M127: 3 | P127: 1220 | Q127: 7107.09.30 | S127: MHR0110-ST | T127: 0120 | U127: 7107.09.50 | X127: LPS0010-ST | Y127: LPS0030 | Z127: 18 | AA127: P | AB127: 1 | AC127: 0
A128: MVA0090 | B128: Mercury Vapour 2x125 | D128: 2x125 | E128: 284 | G128: LED 36W Pecan Luminaire (Cat V5) - Aeroscreen STEEL POLE 4 | H128: 4520 | J128: 4520 | K128: LED 36W Pecan Luminaire (Cat V5) - Aeroscreen | L128: STEEL POLE | M128: 4 | P128: 1230 | Q128: 7107.09.30 | S128: MHR0120-ST | T128: 0120 | U128: 7107.09.50 | X128: LPS0020-ST | Y128: LPS0030 | Z128: 35 | AA128: P | AB128: 1 | AC128: 0
A129: MVA0100 | B129: Mercury Vapour 3x125 | D129: 3x125 | E129: 426 | G129: LED 36W Pecan Luminaire (Cat V5) - Aeroscreen R/BOUT COLUMN 2 | H129: 4530 | J129: 4530 | K129: LED 36W Pecan Luminaire (Cat V5) - Aeroscreen | L129: R/BOUT COLUMN | M129: 2 | P129: 1240 | Q129: 7107.09.30 | S129: MHR0130-ST | T129: 0120 | U129: 7107.09.50 | X129: LPS0070-ST | Y129: LPS0050 | Z129: 160 | AA129: V | AB129: 1 | AC129: 0
A130: MVA0110 | B130: Mercury Vapour 6x125 | D130: 6x125 | E130: 852 | G130: LED 36W Pecan Luminaire (Cat V5) - Aeroscreen R/BOUT COLUMN 3 | H130: 4540 | J130: 4540 | K130: LED 36W Pecan Luminaire (Cat V5) - Aeroscreen | L130: R/BOUT COLUMN | M130: 3 | P130: 1250 | Q130: 7206.05.26 | S130: MVA0010-ST | T130: 0010 | U130: COMPMV80W | X130: LPS0080-ST | Y130: LPS0050 | Z130: 180 | AA130: V | AB130: 1 | AC130: 0
A131: MVA0120 | B131: Mercury Vapour 160 | D131: 160 | E131: 175 | G131: LED 36W Pecan Luminaire (Cat V5) - Aeroscreen R/BOUT COLUMN 4 | H131: 4550 | J131: 4550 | K131: LED 36W Pecan Luminaire (Cat V5) - Aeroscreen | L131: R/BOUT COLUMN | M131: 4 | P131: 1260 | Q131: COMPMV80W | S131: MVA0020-ST | T131: 0010 | U131: COMPMV80W | X131: MHC0010-ST | Y131: MHR0060 | Z131: 150 | AA131: V | AB131: 1 | AC131: 0
A132: MVA0130 | B132: Mercury Vapour 2x160 | D132: 2x160 | E132: 350 | G132: LED 105W Aldridge Luminaire (Cat V3) SHARED OR NO POLE 1 | H132: 4560 | J132: 4560 | K132: LED 105W Aldridge Luminaire (Cat V3) | L132: SHARED OR NO POLE | M132: 1 | P132: 1270 | Q132: 7206.05.15 | S132: MVA0030-ST | T132: 0010 | U132: COMPMV80W | X132: MHC0030-ST | Y132: MHR0070 | Z132: 400 | AA132: V | AB132: 1 | AC132: 0
A133: MVA0140 | B133: Mercury Vapour 3x160 | D133: 3x160 | E133: 525 | G133: LED 105W Aldridge Luminaire (Cat V3) SHARED OR NO POLE 2 | H133: 4570 | J133: 4570 | K133: LED 105W Aldridge Luminaire (Cat V3) | L133: SHARED OR NO POLE | M133: 2 | P133: 1280 | Q133: 7206.05.15 | S133: MVA0040-ST | T133: 0010 | U133: COMPMV80W | X133: MHR0040-ST | Y133: MHR0060 | Z133: 4x150 | AA133: V | AB133: 4 | AC133: 0
A134: MVA0150 | B134: Mercury Vapour 6x160 | D134: 6x160 | E134: 1050 | G134: LED 105W Aldridge Luminaire (Cat V3) SHARED OR NO POLE 3 | H134: 4580 | J134: 4580 | K134: LED 105W Aldridge Luminaire (Cat V3) | L134: SHARED OR NO POLE | M134: 3 | P134: 1290 | Q134: 7206.05.15 | S134: MVA0050-ST | T134: 0010 | U134: COMPMV80W | X134: MHR0080-ST | Y134: MHR0070 | Z134: 2x400 | AA134: V | AB134: 2 | AC134: 0
A135: MVA0160 | B135: Mercury Vapour 9x160 | D135: 9x160 | E135: 1575 | G135: LED 105W Aldridge Luminaire (Cat V3) SHARED OR NO POLE 4 | H135: 4590 | J135: 4590 | K135: LED 105W Aldridge Luminaire (Cat V3) | L135: SHARED OR NO POLE | M135: 4 | P135: 1300 | Q135: 7206.05.15 | S135: MVA0060-ST | T135: 0010 | U135: COMPMV80W | X135: MHR0090-ST | Y135: MHR0070 | Z135: 500 | AA135: V | AB135: 1 | AC135: 0
A136: MVA0170 | B136: Mercury Vapour 175 | D136: 175 | E136: 195 | G136: LED 105W Aldridge Luminaire (Cat V3) WOOD POLE 1 | H136: 4600 | J136: 4600 | K136: LED 105W Aldridge Luminaire (Cat V3) | L136: WOOD POLE | M136: 1 | P136: 1310 | Q136: 7206.05.15 | S136: MVA0070-ST | T136: 0010 | U136: COMPMV80W | X136: MHR0110-ST | Y136: MHR0100 | Z136: 1500 | AA136: V | AB136: 1 | AC136: 0
A137: MVA0180 | B137: Mercury Vapour 2x175 | D137: 2x175 | E137: 390 | G137: LED 105W Aldridge Luminaire (Cat V3) WOOD POLE 2 | H137: 4610 | J137: 4610 | K137: LED 105W Aldridge Luminaire (Cat V3) | L137: WOOD POLE | M137: 2 | P137: 1320 | Q137: 7206.05.15 | S137: MVA0080-ST | T137: 0010 | U137: COMPMV80W | X137: MHR0120-ST | Y137: MHR0100 | Z137: 2000 | AA137: V | AB137: 1 | AC137: 0
A138: MVA0190 | B138: Mercury Vapour 250 | D138: 250 | E138: 270 | G138: LED 105W Aldridge Luminaire (Cat V3) WOOD POLE 3 | H138: 4620 | J138: 4620 | K138: LED 105W Aldridge Luminaire (Cat V3) | L138: WOOD POLE | M138: 3 | P138: 1330 | Q138: 7206.05.15 | S138: MVA0090-ST | T138: 0010 | U138: COMPMV80W | X138: MHR0130-ST | Y138: MHR0100 | Z138: 3745 | AA138: V | AB138: 1 | AC138: 0
A139: MVA0200 | B139: Mercury Vapour 2x250 | D139: 2x250 | E139: 540 | G139: LED 105W Aldridge Luminaire (Cat V3) WOOD POLE 4 | H139: 4630 | J139: 4630 | K139: LED 105W Aldridge Luminaire (Cat V3) | L139: WOOD POLE | M139: 4 | P139: 1340 | Q139: 7206.05.15 | S139: MVA0100-ST | T139: 0010 | U139: COMPMV80W | X139: MVA0030-ST | Y139: MVA0020 | Z139: 2x80 | AA139: P | AB139: 2 | AC139: 0
A140: MVA0210 | B140: Mercury Vapour 3x250 | D140: 3x250 | E140: 810 | G140: LED 105W Aldridge Luminaire (Cat V3) STEEL POLE 1 | H140: 4640 | J140: 4640 | K140: LED 105W Aldridge Luminaire (Cat V3) | L140: STEEL POLE | M140: 1 | P140: 1350 | Q140: 7206.05.15 | S140: MVA0110-ST | T140: 0010 | U140: COMPMV80W | X140: MVA0040-ST | Y140: MVA0020 | Z140: 3x80 | AA140: P | AB140: 3 | AC140: 0
A141: MVA0220 | B141: Mercury Vapour 400 | D141: 400 | E141: 430 | G141: LED 105W Aldridge Luminaire (Cat V3) STEEL POLE 2 | H141: 4650 | J141: 4650 | K141: LED 105W Aldridge Luminaire (Cat V3) | L141: STEEL POLE | M141: 2 | P141: 1360 | Q141: COMPHPS150W | S141: MVA0120-ST | T141: 0010 | U141: COMPMV80W | X141: MVA0050-ST | Y141: MVA0020 | Z141: 4x80 | AA141: P | AB141: 3 | AC141: 0
A142: MVA0230 | B142: Mercury Vapour 2x400 | D142: 2x400 | E142: 860 | G142: LED 105W Aldridge Luminaire (Cat V3) STEEL POLE 3 | H142: 4660 | J142: 4660 | K142: LED 105W Aldridge Luminaire (Cat V3) | L142: STEEL POLE | M142: 3 | P142: 1370 | Q142: COMPHPS150W | S142: MVA0130-ST | T142: 0010 | U142: COMPMV80W | X142: MVA0060-ST | Y142: MVA0020 | Z142: 6x80 | AA142: P | AB142: 6 | AC142: 0
A143: MVA0240 | B143: Mercury Vapour 3x400 | D143: 3x400 | E143: 1290 | G143: LED 105W Aldridge Luminaire (Cat V3) STEEL POLE 4 | H143: 4670 | J143: 4670 | K143: LED 105W Aldridge Luminaire (Cat V3) | L143: STEEL POLE | M143: 4 | P143: 1380 | Q143: 7206.05.18 | S143: MVA0140-ST | T143: 0010 | U143: COMPMV80W | X143: MVA0070-ST | Y143: MVA0020 | Z143: 7x80 | AA143: P | AB143: 7 | AC143: 0
A144: MVA0250 | B144: Mercury Vapour 500 | D144: 500 | E144: 530 | G144: LED 105W Aldridge Luminaire (Cat V3) R/BOUT COLUMN 2 | H144: 4680 | J144: 4680 | K144: LED 105W Aldridge Luminaire (Cat V3) | L144: R/BOUT COLUMN | M144: 2 | P144: 1390 | Q144: COMPMV80W | S144: MVA0150-ST | T144: 0010 | U144: COMPMV80W | X144: MVA0090-ST | Y144: MVA0080 | Z144: 2x125 | AA144: P | AB144: 2 | AC144: 0
A145: MVA0260 | B145: Mercury Vapour 700 | D145: 700 | E145: 740 | G145: LED 105W Aldridge Luminaire (Cat V3) R/BOUT COLUMN 3 | H145: 4690 | J145: 4690 | K145: LED 105W Aldridge Luminaire (Cat V3) | L145: R/BOUT COLUMN | M145: 3 | P145: 1395 | Q145: COMPMV80W | S145: MVA0160-ST | T145: 0010 | U145: COMPMV80W | X145: MVA0100-ST | Y145: MVA0080 | Z145: 3x125 | AA145: P | AB145: 3 | AC145: 0
A146: MVA0270 | B146: Mercury Vapour 2x700 | D146: 2x700 | E146: 1480 | G146: LED 105W Aldridge Luminaire (Cat V3) R/BOUT COLUMN 4 | H146: 4700 | J146: 4700 | K146: LED 105W Aldridge Luminaire (Cat V3) | L146: R/BOUT COLUMN | M146: 4 | P146: 1400 | Q146: COMPMV80W | S146: MVA0170-ST | T146: 0020 | U146: REPMV250WHPS150W | X146: MVA0110-ST | Y146: MVA0080 | Z146: 6x125 | AA146: P | AB146: 6 | AC146: 0
A147: MVA0280 | B147: Mercury Vapour 800 | D147: 800 | E147: 850 | G147: LED 198W Aldridge Luminaire (Cat V1) - Standard Dist. SHARED OR NO POLE 1 | H147: 4710 | J147: 4710 | K147: LED 198W Aldridge Luminaire (Cat V1) - Standard Dist. | L147: SHARED OR NO POLE | M147: 1 | P147: 1410 | Q147: COMPMV80W | S147: MVA0180-ST | T147: 0020 | U147: REPMV250WHPS150W | X147: MVA0130-ST | Y147: MVA0080 | Z147: 2x160 | AA147: V | AB147: 2 | AC147: 0
A148: MVA0290 | B148: Mercury Vapour 1000 | D148: 1000 | E148: 1040 | G148: LED 198W Aldridge Luminaire (Cat V1) - Standard Dist. SHARED OR NO POLE 2 | H148: 4720 | J148: 4720 | K148: LED 198W Aldridge Luminaire (Cat V1) - Standard Dist. | L148: SHARED OR NO POLE | M148: 2 | P148: 1420 | Q148: COMPMV80W | S148: MVA0190-ST | T148: 0020 | U148: REPMV250WHPS150W | X148: MVA0140-ST | Y148: MVA0080 | Z148: 3x160 | AA148: V | AB148: 3 | AC148: 0
A149: MVA0300 | B149: Mercury Vapour 4x1000 | D149: 4x1000 | E149: 4160 | G149: LED 198W Aldridge Luminaire (Cat V1) - Standard Dist. SHARED OR NO POLE 3 | H149: 4730 | J149: 4730 | K149: LED 198W Aldridge Luminaire (Cat V1) - Standard Dist. | L149: SHARED OR NO POLE | M149: 3 | P149: 1430 | Q149: COMPMV80W | S149: MVA0220-ST | T149: 0030 | U149: REPMV400WHPS250W | X149: MVA0150-ST | Y149: MVA0080 | Z149: 6x160 | AA149: V | AB149: 6 | AC149: 0
A150: MVA0310 | B150: Mercury Vapour 6x1000 | D150: 6x1000 | E150: 6240 | G150: LED 198W Aldridge Luminaire (Cat V1) - Standard Dist. SHARED OR NO POLE 4 | H150: 4740 | J150: 4740 | K150: LED 198W Aldridge Luminaire (Cat V1) - Standard Dist. | L150: SHARED OR NO POLE | M150: 4 | P150: 1440 | Q150: COMPMV80W | S150: MVA0220-ST | T150: 0030 | U150: REPMV400WHPS250W | X150: MVA0160-ST | Y150: MVA0080 | Z150: 9x160 | AA150: V | AB150: 1 | AC150: 0
A151: MVA0320 | B151: Mercury Vapour 1625 | D151: 1625 | E151: 1690 | G151: LED 198W Aldridge Luminaire (Cat V1) - Standard Dist. WOOD POLE 1 | H151: 4750 | J151: 4750 | K151: LED 198W Aldridge Luminaire (Cat V1) - Standard Dist. | L151: WOOD POLE | M151: 1 | P151: 1445 | Q151: COMPMV80W | S151: MVA0230-ST | T151: 0030 | U151: REPMV400WHPS250W | X151: MVA0180-ST | Y151: MVA0080 | Z151: 2x175 | AA151: V | AB151: 2 | AC151: 0
A152: FLU0350 | B152: Compact Fluorescent 1x42 | D152: 42 | E152: 46.4 | G152: LED 198W Aldridge Luminaire (Cat V1) - Standard Dist. WOOD POLE 2 | H152: 4760 | J152: 4760 | K152: LED 198W Aldridge Luminaire (Cat V1) - Standard Dist. | L152: WOOD POLE | M152: 2 | P152: 1450 | Q152: 7206.05.18 | S152: MVA0240-ST | T152: 0030 | U152: REPMV400WHPS250W | X152: MVA0200-ST | Y152: MVA0190 | Z152: 2x250 | AA152: V | AB152: 2 | AC152: 0
A153: FLU0355 | B153: Compact Fluorescent 1x32 | D153: 32 | E153: 36.6 | G153: LED 198W Aldridge Luminaire (Cat V1) - Standard Dist. WOOD POLE 3 | H153: 4770 | J153: 4770 | K153: LED 198W Aldridge Luminaire (Cat V1) - Standard Dist. | L153: WOOD POLE | M153: 3 | P153: 1460 | Q153: 7206.05.1 | S153: MVA0250-ST | T153: 0030 | U153: REPMV400WHPS250W | X153: MVA0210-ST | Y153: MVA0190 | Z153: 3x250 | AA153: V | AB153: 3 | AC153: 0
A154: FLU0360 | B154: T5 2x14W | D154: 2x14 | E154: 30.2 | G154: LED 198W Aldridge Luminaire (Cat V1) - Standard Dist. WOOD POLE 4 | H154: 4780 | J154: 4780 | K154: LED 198W Aldridge Luminaire (Cat V1) - Standard Dist. | L154: WOOD POLE | M154: 4 | P154: 1470 | Q154: 7206.05.26 | S154: MVA0270-ST | T154: 0030 | U154: REPMV400WHPS250W | X154: MVA0230-ST | Y154: MVA0230 | Z154: 2x400 | AA154: V | AB154: 2 | AC154: 0
A155: FLU0370 | B155: T5 2x24W | D155: 2x24 | E155: 47 | G155: LED 198W Aldridge Luminaire (Cat V1) - Standard Dist. STEEL POLE 1 | H155: 4790 | J155: 4790 | K155: LED 198W Aldridge Luminaire (Cat V1) - Standard Dist. | L155: STEEL POLE | M155: 1 | P155: 1480 | Q155: 7206.05.26 | S155: MVA0280-ST | T155: 0030 | U155: REPMV400WHPS250W | X155: MVA0240-ST | Y155: MVA0230 | Z155: 3x400 | AA155: V | AB155: 3 | AC155: 0
G156: LED 198W Aldridge Luminaire (Cat V1) - Standard Dist. STEEL POLE 2 | H156: 4800 | J156: 4800 | K156: LED 198W Aldridge Luminaire (Cat V1) - Standard Dist. | L156: STEEL POLE | M156: 2 | P156: 1490 | Q156: 7206.05.26 | S156: MVA0260-ST | T156: 0190 | U156: HPS600HM | X156: MVA0270-ST | Y156: HPS0170 | Z156: 2x700 | AA156: V | AB156: 2 | AC156: 0
G157: LED 198W Aldridge Luminaire (Cat V1) - Standard Dist. STEEL POLE 3 | H157: 4810 | J157: 4810 | K157: LED 198W Aldridge Luminaire (Cat V1) - Standard Dist. | L157: STEEL POLE | M157: 3 | P157: 1500 | Q157: COMPMV80W | S157: MVA0290-ST | T157: 0120 | U157: 7107.09.50 | X157: MVA0280-ST | Y157: HPS0170 | Z157: 800 | AA157: V | AB157: 1 | AC157: 0
B158: Hand-calculated construction codes | G158: LED 198W Aldridge Luminaire (Cat V1) - Standard Dist. STEEL POLE 4 | H158: 4820 | J158: 4820 | K158: LED 198W Aldridge Luminaire (Cat V1) - Standard Dist. | L158: STEEL POLE | M158: 4 | P158: 1510 | Q158: COMPMV80W | S158: MVA0300-ST | T158: 0120 | U158: 7107.09.50 | X158: MVA0300-ST | Y158: HPS0210 | Z158: 4x1000 | AA158: V | AB158: 4 | AC158: 0
G159: LED 198W Aldridge Luminaire (Cat V1) - Standard Dist. R/BOUT COLUMN 2 | H159: 4830 | J159: 4830 | K159: LED 198W Aldridge Luminaire (Cat V1) - Standard Dist. | L159: R/BOUT COLUMN | M159: 2 | P159: 1520 | Q159: COMPMV80W | S159: MVA0310-ST | T159: 0120 | U159: 7107.09.50 | X159: MVA0310-ST | Y159: HPS0210 | Z159: 6x1000 | AA159: V | AB159: 6 | AC159: 0
A160: FLU0355 | B160: FLU0355 - Compact Fluorescent 32 | G160: LED 198W Aldridge Luminaire (Cat V1) - Standard Dist. R/BOUT COLUMN 3 | H160: 4840 | J160: 4840 | K160: LED 198W Aldridge Luminaire (Cat V1) - Standard Dist. | L160: R/BOUT COLUMN | M160: 3 | P160: 1530 | Q160: COMPMV80W | S160: MVA0320-ST | T160: 0120 | U160: 7107.09.50 | X160: MVA0320-ST | Y160: HPS0210 | Z160: 1625 | AA160: V | AB160: 1 | AC160: 0
A161: LED0090 | B161: LED0090 - LED90 | G161: LED 198W Aldridge Luminaire (Cat V1) - Standard Dist. R/BOUT COLUMN 4 | H161: 4850 | J161: 4850 | K161: LED 198W Aldridge Luminaire (Cat V1) - Standard Dist. | L161: R/BOUT COLUMN | M161: 4 | P161: 1600 | Q161: 7206.08.1 | S161: FLU0350-ST | T161: 1620 | U161: 7206.05.40
A162: LED0090 | B162: LED0090 - LED90 | G162: LED 198W Aldridge Luminaire (Cat V1) - Forward Dist. SHARED OR NO POLE 1 | H162: 4860 | J162: 4860 | K162: LED 198W Aldridge Luminaire (Cat V1) - Forward Dist. | L162: SHARED OR NO POLE | M162: 1 | P162: 1610 | Q162: 7206.09.1 | S162: FLU0360-ST | T162: 1740 | U162: T5_2x14W | X162: ADDED LEDS:
A163: LED0090 | B163: LED0090 - LED90 | G163: LED 198W Aldridge Luminaire (Cat V1) - Forward Dist. SHARED OR NO POLE 2 | H163: 4870 | J163: 4870 | K163: LED 198W Aldridge Luminaire (Cat V1) - Forward Dist. | L163: SHARED OR NO POLE | M163: 2 | P163: 1620 | Q163: CFL42 | S163: FLU0370-ST | T163: 1860 | U163: T5_2x24W
A164: LED0025 | B164: LED0025 - EvolveLED 25w | G164: LED 198W Aldridge Luminaire (Cat V1) - Forward Dist. SHARED OR NO POLE 3 | H164: 4880 | J164: 4880 | K164: LED 198W Aldridge Luminaire (Cat V1) - Forward Dist. | L164: SHARED OR NO POLE | M164: 3 | P164: 1620 | Q164: 7206.05.40 | X164: LED0025-ST | Y164: LED0006 | Z164: 25 | AA164: P | AB164: ? | AC164: ?
A165: LED0025 | B165: LED0025 - EvolveLED 25w | G165: LED 198W Aldridge Luminaire (Cat V1) - Forward Dist. SHARED OR NO POLE 4 | H165: 4890 | J165: 4890 | K165: LED 198W Aldridge Luminaire (Cat V1) - Forward Dist. | L165: SHARED OR NO POLE | M165: 4 | P165: 1630 | Q165: CFL42 | S165: ADDED LEDS: | X165: LED0018-ST | Y165: LED0003 | Z165: 18 | AA165: P | AB165: ? | AC165: ?
A166: LED0025 | B166: LED0025 - EvolveLED 25w | G166: LED 198W Aldridge Luminaire (Cat V1) - Forward Dist. WOOD POLE 1 | H166: 4900 | J166: 4900 | K166: LED 198W Aldridge Luminaire (Cat V1) - Forward Dist. | L166: WOOD POLE | M166: 1 | P166: 1630 | Q166: 7206.05.40 | X166: LED0001-ST | Y166: LED0001 | Z166: 42 | AA166: P | AB166: ? | AC166: ?
A167: LED0025 | B167: LED0025 - EvolveLED 25w | G167: LED 198W Aldridge Luminaire (Cat V1) - Forward Dist. WOOD POLE 2 | H167: 4910 | J167: 4910 | K167: LED 198W Aldridge Luminaire (Cat V1) - Forward Dist. | L167: WOOD POLE | M167: 2 | P167: 1640 | Q167: CFL42 | X167: LED0003-ST | Y167: LED0003 | Z167: 17 | AA167: P | AB167: ? | AC167: ?
A168: LED0025 | B168: LED0025 - EvolveLED 25w | G168: LED 198W Aldridge Luminaire (Cat V1) - Forward Dist. WOOD POLE 3 | H168: 4920 | J168: 4920 | K168: LED 198W Aldridge Luminaire (Cat V1) - Forward Dist. | L168: WOOD POLE | M168: 3 | P168: 1640 | Q168: 7206.05.40 | S168: LED0025-ST | T168: 0001 | U168: 7206.05.85 | X168: LED0005-ST | Y168: LED0005 | Z168: 3 | AA168: P | AB168: ? | AC168: ?
A169: LED0025 | B169: LED0025 - EvolveLED 25w | G169: LED 198W Aldridge Luminaire (Cat V1) - Forward Dist. WOOD POLE 4 | H169: 4930 | J169: 4930 | K169: LED 198W Aldridge Luminaire (Cat V1) - Forward Dist. | L169: WOOD POLE | M169: 4 | P169: 1650 | Q169: CFL42 | S169: LED0025-ST | T169: 3060 | U169: 7206.05.85 | X169: LED0006-ST | Y169: LED0006 | Z169: 25 | AA169: P | AB169: ? | AC169: ?
A170: LED0018 | B170: LED0018 - StreetLED 18w | G170: LED 198W Aldridge Luminaire (Cat V1) - Forward Dist. STEEL POLE 1 | H170: 4940 | J170: 4940 | K170: LED 198W Aldridge Luminaire (Cat V1) - Forward Dist. | L170: STEEL POLE | M170: 1 | P170: 1650 | Q170: 7206.05.40 | S170: LED0025-ST | T170: 3060 | U170: 7206.05.85 | X170: LED0012-ST | Y170: LED0012 | AA170: V
A171: LED0018 | B171: LED0018 - StreetLED 18w | G171: LED 198W Aldridge Luminaire (Cat V1) - Forward Dist. STEEL POLE 2 | H171: 4950 | J171: 4950 | K171: LED 198W Aldridge Luminaire (Cat V1) - Forward Dist. | L171: STEEL POLE | M171: 2 | P171: 1660 | Q171: CFL42 | S171: LED0025-ST | T171: 3060 | U171: 7206.05.85
A172: LED0018 | B172: LED0018 - StreetLED 18w | G172: LED 198W Aldridge Luminaire (Cat V1) - Forward Dist. STEEL POLE 3 | H172: 4960 | J172: 4960 | K172: LED 198W Aldridge Luminaire (Cat V1) - Forward Dist. | L172: STEEL POLE | M172: 3 | P172: 1660 | Q172: 7206.05.40 | S172: LED0025-ST | T172: 3070 | U172: 7206.05.85 | X172: TEMPORARY MAPPINGS FOR CATEGORY INFORMATION FOR TRAFFIC CALCULATIONS ETC:
A173: LED0018 | B173: LED0018 - StreetLED 18w | G173: LED 198W Aldridge Luminaire (Cat V1) - Forward Dist. STEEL POLE 4 | H173: 4970 | J173: 4970 | K173: LED 198W Aldridge Luminaire (Cat V1) - Forward Dist. | L173: STEEL POLE | M173: 4 | P173: 1670 | Q173: CFL42 | S173: LED0025-ST | T173: 3100 | U173: 7206.05.85 | Y173: LED0002 | AA173: P
A174: LED0018 | B174: LED0018 - StreetLED 18w | G174: LED 198W Aldridge Luminaire (Cat V1) - Forward Dist. R/BOUT COLUMN 2 | H174: 4980 | J174: 4980 | K174: LED 198W Aldridge Luminaire (Cat V1) - Forward Dist. | L174: R/BOUT COLUMN | M174: 2 | P174: 1670 | Q174: 7206.05.40 | S174: LED0025-ST | T174: 3100 | U174: 7206.05.85 | Y174: LED0004 | AA174: P
A175: LED0012 | B175: LED0012 - Aldridge LED 198W - Std Distribution | G175: LED 198W Aldridge Luminaire (Cat V1) - Forward Dist. R/BOUT COLUMN 3 | H175: 4990 | J175: 4990 | K175: LED 198W Aldridge Luminaire (Cat V1) - Forward Dist. | L175: R/BOUT COLUMN | M175: 3 | P175: 1680 | Q175: CFL42 | S175: LED0025-ST | T175: 3110 | U175: 7206.05.85 | Y175: LED0007 | AA175: P
A176: LED0040 | B176: LED 36W Gerard Luminaire (Cat P3) | G176: LED 198W Aldridge Luminaire (Cat V1) - Forward Dist. R/BOUT COLUMN 4 | H176: 5000 | J176: 5000 | K176: LED 198W Aldridge Luminaire (Cat V1) - Forward Dist. | L176: R/BOUT COLUMN | M176: 4 | P176: 1680 | Q176: 7206.05.40 | S176: LED0025-ST | T176: 3140 | U176: 7206.05.85 | Y176: LED0008 | AA176: P
A177: LED0020 | B177: LED 18W Gerard Luminaire (Cat P4/P5) | G177: LED 298W Aldrige Luminaire (Cat V1) - Standard Dist. SHARED OR NO POLE 1 | H177: 5010 | J177: 5010 | K177: LED 298W Aldrige Luminaire (Cat V1) - Standard Dist. | L177: SHARED OR NO POLE | M177: 1 | P177: 1690 | Q177: CFL42 | S177: LED0025-ST | T177: 3140 | U177: 7206.05.85 | Y177: LED0009 | AA177: V
A178: LED9999 | B178: LED 298W Aldrige Luminaire (Cat V1) - Standard Dist. | G178: LED 298W Aldrige Luminaire (Cat V1) - Standard Dist. SHARED OR NO POLE 2 | H178: 5020 | J178: 5020 | K178: LED 298W Aldrige Luminaire (Cat V1) - Standard Dist. | L178: SHARED OR NO POLE | M178: 2 | P178: 1690 | Q178: 7206.05.40 | S178: LED0025-ST | T178: 3150 | U178: 7206.05.85 | Y178: LED0010 | AA178: V
A179: Additional New Assemblies From Sam Peake: | G179: LED 298W Aldrige Luminaire (Cat V1) - Standard Dist. SHARED OR NO POLE 3 | H179: 5030 | J179: 5030 | K179: LED 298W Aldrige Luminaire (Cat V1) - Standard Dist. | L179: SHARED OR NO POLE | M179: 3 | P179: 1700 | Q179: CFL42 | S179: LED0018-ST | T179: 3180 | U179: 7206.05.82 | Y179: LED0011 | AA179: V
A180: 7107.09.11 | B180: 250W HPS Roadster Lantern | D180: 250 | G180: LED 298W Aldrige Luminaire (Cat V1) - Standard Dist. SHARED OR NO POLE 4 | H180: 5040 | J180: 5040 | K180: LED 298W Aldrige Luminaire (Cat V1) - Standard Dist. | L180: SHARED OR NO POLE | M180: 4 | P180: 1700 | Q180: 7206.05.40 | S180: LED0018-ST | T180: 3180 | U180: 7206.05.82 | Y180: LED0013 | AA180: V
A181: 7107.09.13 | B181: 250W HPS Aeroscreen Roadster Lantern | D181: 250 | G181: LED 298W Aldrige Luminaire (Cat V1) - Standard Dist. WOOD POLE 1 | H181: 5050 | J181: 5050 | K181: LED 298W Aldrige Luminaire (Cat V1) - Standard Dist. | L181: WOOD POLE | M181: 1 | P181: 1710 | Q181: CFL42 | S181: LED0018-ST | T181: 3190 | U181: 7206.05.82 | Y181: LED0014 | AA181: V
A182: 7107.09.18 | B182: 250W HPS Sylflood Asymetric Streetlight | D182: 250 | G182: LED 298W Aldrige Luminaire (Cat V1) - Standard Dist. WOOD POLE 2 | H182: 5060 | J182: 5060 | K182: LED 298W Aldrige Luminaire (Cat V1) - Standard Dist. | L182: WOOD POLE | M182: 2 | P182: 1710 | Q182: 7206.05.40 | S182: LED0018-ST | T182: 3200 | U182: 7206.05.82 | Y182: LED0015 | AA182: V
A183: 7107.09.19 | B183: 250W M/Halide Sylflood Asymetric Floodlight | D183: 250 | G183: LED 298W Aldrige Luminaire (Cat V1) - Standard Dist. WOOD POLE 3 | H183: 5070 | J183: 5070 | K183: LED 298W Aldrige Luminaire (Cat V1) - Standard Dist. | L183: WOOD POLE | M183: 3 | P183: 1720 | Q183: CFL42 | S183: LED0018-ST | T183: 3220 | U183: 7206.05.82 | Y183: LED0016 | AA183: V
A184: 7107.09.21 | B184: 400W HPS Roadster Lantern | D184: 400 | G184: LED 298W Aldrige Luminaire (Cat V1) - Standard Dist. WOOD POLE 4 | H184: 5080 | J184: 5080 | K184: LED 298W Aldrige Luminaire (Cat V1) - Standard Dist. | L184: WOOD POLE | M184: 4 | P184: 1720 | Q184: 7206.05.40 | S184: LED0018-ST | T184: 3260 | U184: 7206.05.82 | Y184: LED0017 | AA184: V
A185: 7107.09.23 | B185: 400W M/Halide Roadster Lantern | D185: 400 | G185: LED 298W Aldrige Luminaire (Cat V1) - Standard Dist. STEEL POLE 1 | H185: 5090 | J185: 5090 | K185: LED 298W Aldrige Luminaire (Cat V1) - Standard Dist. | L185: STEEL POLE | M185: 1 | P185: 1730 | Q185: CFL42 | S185: LED0001-ST | T185: 3300 | U185: 7206.05.88
A186: 7107.09.24 | B186: 400W HPS Twin arc Roadster Lantern - COFFS HBR ONLY | D186: 400 | G186: LED 298W Aldrige Luminaire (Cat V1) - Standard Dist. STEEL POLE 2 | H186: 5100 | J186: 5100 | K186: LED 298W Aldrige Luminaire (Cat V1) - Standard Dist. | L186: STEEL POLE | M186: 2 | P186: 1730 | Q186: 7206.05.40 | S186: LED0001-ST | T186: 3340 | U186: 7206.05.88 | X186: LED0090-ST | Y186: LED0011
A187: 7107.09.25 | B187: 400W M/Halide Sylflood Asymetric Streetlight | D187: 400 | G187: LED 298W Aldrige Luminaire (Cat V1) - Standard Dist. STEEL POLE 3 | H187: 5110 | J187: 5110 | K187: LED 298W Aldrige Luminaire (Cat V1) - Standard Dist. | L187: STEEL POLE | M187: 3 | P187: 1740 | Q187: T5_2x14W | S187: LED0001-ST | T187: 3350 | U187: 7206.05.88 | X187: LED0040-ST | Y187: LED0001
A188: 7107.09.26 | B188: 400W HPS Sylflood Asymetric Streetlight | D188: 400 | G188: LED 298W Aldrige Luminaire (Cat V1) - Standard Dist. STEEL POLE 4 | H188: 5120 | J188: 5120 | K188: LED 298W Aldrige Luminaire (Cat V1) - Standard Dist. | L188: STEEL POLE | M188: 4 | P188: 1750 | Q188: T5_2x14W | S188: LED0001-ST | T188: 3380 | U188: 7206.05.88 | X188: LED9999-ST | Y188: LED0014
A189: 7107.09.27 | B189: 400W M/Halide Sylflood Asymetric Floodlight | D189: 400 | G189: LED 298W Aldrige Luminaire (Cat V1) - Standard Dist. R/BOUT COLUMN 2 | H189: 5130 | J189: 5130 | K189: LED 298W Aldrige Luminaire (Cat V1) - Standard Dist. | L189: R/BOUT COLUMN | M189: 2 | P189: 1760 | Q189: T5_2x14W | S189: LED0003-ST | T189: 3540 | U189: 7206.05.82 | X189: LED0020-ST | Y189: LED0003
A190: 7107.09.28 | B190: 400W HPS Sylflood Asymetric Floodlight | D190: 400 | G190: LED 298W Aldrige Luminaire (Cat V1) - Standard Dist. R/BOUT COLUMN 3 | H190: 5140 | J190: 5140 | K190: LED 298W Aldrige Luminaire (Cat V1) - Standard Dist. | L190: R/BOUT COLUMN | M190: 3 | P190: 1770 | Q190: T5_2x14W | S190: LED0003-ST | T190: 3540 | U190: 7206.05.82
A191: 7107.09.3 | B191: 70W HPS Suburban S1 | D191: 70 | G191: LED 298W Aldrige Luminaire (Cat V1) - Standard Dist. R/BOUT COLUMN 4 | H191: 5150 | J191: 5150 | K191: LED 298W Aldrige Luminaire (Cat V1) - Standard Dist. | L191: R/BOUT COLUMN | M191: 4 | P191: 1780 | Q191: T5_2x14W | S191: LED0003-ST | T191: 3550 | U191: 7206.05.82
A192: 7107.09.30 | B192: 50W HPS Twin-arc Urban. Coffs Hbr only. | D192: 50 | G192: NO CAPITALNO CAPITAL1 | H192: 1 | J192: 1 | K192: NO CAPITAL | L192: NO CAPITAL | M192: 1 | P192: 1790 | Q192: T5_2x14W | S192: LED0003-ST | T192: 3580 | U192: 7206.05.82
A193: 7107.09.39 | B193: 250W HPS Twin arc Roadster Aero - COFFS HBR ONLY | D193: 250 | G193: MAINTENANCE COMPONENTNO CAPITAL1 | H193: 5 | J193: 5 | K193: MAINTENANCE COMPONENT | L193: NO CAPITAL | M193: 1 | P193: 1800 | Q193: T5_2x14W | S193: LED0003-ST | T193: 3590 | U193: 7206.05.82 | X193: For New Assemblies (Not In Current Asset DB) The Mapping Codes Are CAPEX Assembly Codes
A194: 7107.09.4 | B194: 70W HPS Urban Aeroscreen Lantern | D194: 70 | G194: MERCURY VAPOUR 80WSHARED OR NO POLE1 | H194: 10 | J194: 10 | K194: MERCURY VAPOUR 80W | L194: SHARED OR NO POLE | M194: 1 | P194: 1810 | Q194: T5_2x14W | S194: LED0003-ST | T194: 3620 | U194: 7206.05.82 | X194: 7107.09.11 | Y194: HPS0110 | Z194: 250 | AA194: V
A195: 7107.09.41 | B195: 150W HPS Twin arc Roadster - COFFS HBR ONLY | D195: 70 | G195: MERCURY VAPOUR 250W SHARED OR NO POLE1 | H195: 20 | J195: 20 | K195: MERCURY VAPOUR 250W | L195: SHARED OR NO POLE | M195: 1 | P195: 1820 | Q195: T5_2x14W | S195: LED0003-ST | T195: 3630 | U195: 7206.05.82 | X195: 7107.09.13 | Y195: HPS0110 | Z195: 250 | AA195: V
A196: 7107.09.42 | B196: 50W HPS Twin-arc Urban Aero. Coffs Hbr only. | D196: 50 | G196: MERCURY VAPOUR 400WSHARED OR NO POLE1 | H196: 30 | J196: 30 | K196: MERCURY VAPOUR 400W | L196: SHARED OR NO POLE | M196: 1 | P196: 1830 | Q196: T5_2x14W | X196: 7107.09.18 | Y196: HPS0110 | Z196: 250 | AA196: V
A197: 7107.09.43 | B197: 42W C/F Suburban Eco Lantern | D197: 42 | G197: HIGH PRESSURE SODIUM 70W (100)SHARED OR NO POLE1 | H197: 40 | J197: 40 | K197: HIGH PRESSURE SODIUM 70W (100) | L197: SHARED OR NO POLE | M197: 1 | P197: 1840 | Q197: T5_2x14W | S197: LED0006-ST | T197: 3940 | U197: 7206.05.85 | X197: 7107.09.19 | Y197: MHR0060 | Z197: 250 | AA197: V
A198: 7107.09.44 | B198: 70W HPS Twin Arc Urban Aeroscreen Lantern - COFFS HBR ONLY | D198: 70 | G198: HIGH PRESSURE SODIUM 150WSHARED OR NO POLE1 | H198: 50 | J198: 50 | K198: HIGH PRESSURE SODIUM 150W | L198: SHARED OR NO POLE | M198: 1 | P198: 1850 | Q198: T5_2x14W | S198: LED0012-ST | T198: 4710 | U198: 7206.05.91 | X198: 7107.09.21 | Y198: HPS0170 | Z198: 400 | AA198: V
A199: 7107.09.47 | B199: 42W C/F Suburban Eco Aeroscreen Lantern | D199: 42 | G199: HIGH PRESSURE SODIUM 250W (210/220)SHARED OR NO POLE1 | H199: 60 | J199: 60 | K199: HIGH PRESSURE SODIUM 250W (210/220) | L199: SHARED OR NO POLE | M199: 1 | P199: 1860 | Q199: T5_2x24W | X199: 7107.09.23 | Y199: MHR0070 | Z199: 400 | AA199: V
A200: 7107.09.50 | B200: Floodlight sentry 1000W Metal/Halide (CENTRAL) | D200: 1000 | G200: HIGH PRESSURE SODIUM 400W (310/360)SHARED OR NO POLE1 | H200: 70 | J200: 70 | K200: HIGH PRESSURE SODIUM 400W (310/360) | L200: SHARED OR NO POLE | M200: 1 | P200: 1870 | Q200: T5_2x24W | S200: Handmade | X200: 7107.09.24 | Y200: HPS0170-TA | Z200: 400 | AA200: V
A201: 7107.09.51 | B201: Lantern Sentry 1000W Metal/Halide (CENTRAL) | D201: 1000 | G201: HIGH PRESSURE SODIUM 50W TWIN ARCSHARED OR NO POLE1 | H201: 80 | J201: 80 | K201: HIGH PRESSURE SODIUM 50W TWIN ARC | L201: SHARED OR NO POLE | M201: 1 | P201: 1880 | Q201: T5_2x24W | S201: FLU0355-ST | T201: 1980 | U201: Compact_Fluro_32W | X201: 7107.09.25 | Y201: MHR0070 | Z201: 400 | AA201: V
A202: 7107.09.52 | B202: 400W M/Halide Roadster Aeroscreen | D202: 400 | G202: HIGH PRESSURE SODIUM 70W TWIN ARCSHARED OR NO POLE1 | H202: 90 | J202: 90 | K202: HIGH PRESSURE SODIUM 70W TWIN ARC | L202: SHARED OR NO POLE | M202: 1 | P202: 1890 | Q202: T5_2x24W | S202: INC0110-ST | U202: COMPMV80W | X202: 7107.09.26 | Y202: HPS0170 | Z202: 400 | AA202: V
... 211 more rows

Sheet New Component SLUOS
B2: Final Pricing | F2: Internal Use Only
B3: Cumulative CPI rate Nominal to 18/19 | C3: 1.032518923
B5: Support Type | C5: CAPEX | D5: OPEX | F5: - | G5: CAPEX Lookup | H5: OPEX Lookup | I5: Name From Model | J5: Prefered Name
B6: 7.5m Steel Column Single Outreach | C6: 207.3654412 | D6: 13.15850441 | G6: 7.5_Single | H6: STEEL POLE | I6: 7.5m Steel Column Single Outreach
B7: 7.5m Steel Column Double Outreach | C7: 214.7025264 | D7: 13.15850441 | G7: 7.5_Double | H7: STEEL POLE | I7: 7.5m Steel Column Double Outreach
B8: 9.0m Steel Column Single Outreach | C8: 279.0686405 | D8: 13.15850441 | G8: 9.0_Single | H8: STEEL POLE | I8: 9.0m Steel Column Single Outreach
B9: 9.0m Steel Column Double Outreach | C9: 314.8650332 | D9: 13.15850441 | G9: 9.0_Double | H9: STEEL POLE | I9: 9.0m Steel Column Double Outreach
B10: 10.5m Steel Column Single Outreach | C10: 333.5810866 | D10: 13.15850441 | G10: 10.5_Single | H10: STEEL POLE | I10: 10.5m Steel Column Single Outreach
B11: 10.5m Steel Column Double Outreach | C11: 385.5165302 | D11: 13.15850441 | G11: 10.5_Double | H11: STEEL POLE | I11: 10.5m Steel Column Double Outreach
B12: 12.0m Steel Column Single Outreach | C12: 379.6759147 | D12: 13.15850441 | G12: 12.0_Single | H12: STEEL POLE | I12: 12.0m Steel Column Single Outreach
B13: 12.0m Steel Column Double Outreach | C13: 387.8868118 | D13: 13.15850441 | G13: 12.0_Double | H13: STEEL POLE | I13: 12.0m Steel Column Double Outreach
B14: 12m Roundabout Column | C14: 514.643603 | D14: 13.15850441 | G14: 7206.10.73 | H14: R/BOUT COLUMN | I14: Column Stl Seesaw 12m B/M ground service | J14: 12m Roundabout Column
B15: 15m Roundabout Column | C15: 442.7250111 | D15: 13.15850441 | G15: 7206.10.74 | H15: R/BOUT COLUMN | I15: Column Stl Seesaw 15m B/M ground service | J15: 15m Roundabout Column
B16: 18m Roundabout Column | C16: 763.0122512 | D16: 13.15850441 | G16: 7206.10.75 | H16: R/BOUT COLUMN | I16: Column Stl Seesaw 18m B/M ground service | J16: 18m Roundabout Column
B17: 9.5m Timber Pole | C17: 109.7070546 | D17: 15.25904432 | G17: 9.5m_Timber_Pole | H17: WOOD POLE | I17: 9.5m Timber Pole
B18: 11m Timber Pole | C18: 154.0645454 | D18: 15.25904432 | G18: 11m_Timber_Pole | H18: WOOD POLE | I18: 11m Timber Pole
B19: 12.5m Timber Pole | C19: 169.3923905 | D19: 15.25904432 | G19: 12.5m_Timber_Pole | H19: WOOD POLE | I19: 12.5m Timber Pole
B20: 14m Timber Pole | C20: 179.7724211 | D20: 15.25904432 | G20: 14m_Timber_Pole | H20: WOOD POLE | I20: 14m Timber Pole
B21: 15.5m Timber Pole | C21: 190.8808748 | D21: 15.25904432 | G21: 15.5m_Timber_Pole | H21: WOOD POLE | I21: 15.5m Timber Pole
B22: Decorative Category P Column | C22: 234.0091715 | D22: 13.15850441 | G22: 7206.10.71 | H22: STEEL POLE | I22: Column Stl Style 5 4.5m Prestige | J22: Decorative Category P Column
B23: Suspended | C23: 0 | D23: 30.51808865 | G23: NO_CAPEX | H23: SUSPENDED | I23: No Capex | J23: Suspended
B24: SHARED OR NO POLE | C24: 0 | D24: 0 | G24: Shared_No_Pole | H24: SHARED OR NO POLE | I24: Shared or No Pole
B26: Night Patrol | C26: CAPEX | D26: OPEX | F26: - | G26: CAPEX Lookup | H26: OPEX Lookup | I26: Name From Model | J26: Prefered Name
B27: Night Patrol Per Asset Inspection | C27: 0 | D27: 15.16210546 | G27: NO_CAPEX | H27: Street Patrol | I27: No Capex
B29: Bracket Type | C29: CAPEX | D29: OPEX | F29: - | G29: CAPEX Lookup | H29: OPEX Lookup | J29: Prefered Name
B30: Streetlight Bracket Category P | C30: 50.88557688 | D30: 0 | G30: Cat_P_Bracket | I30: Streetlight Bracket Category P
B31: Streetlight Bracket Category V | C31: 84.38942075 | D31: 0 | G31: Cat_V_Bracket | I31: Streetlight Bracket Category V
B33: Traditional Luminaire Type | C33: CAPEX | D33: OPEX | F33: Lamp Code | G33: CAPEX Lookup | H33: OPEX Lookup | I33: New Code | J33: Prefered Naming | K33: Count All Tariffs (Inc. 6 & Metered) | L33: CAPEX Recovery (Tariff 5) | M33: Concessional CAPEX (Tariff 3) | N33: OPEX Recovery (Tariff 1-5)
B34: Tubular Flourescent <40W | C34: 0 | D34: 56.23363125 | F34: FLU0010-ST | G34: NO_CAPEX | H34: FLU0060 | I34: FLU<40 | J34: Tubular Flourescent <40W | K34: 46 | L34: 0 | M34: 0 | N34: 19
B35: Tubular Flourescent >40W | C35: 24.35877305 | D35: 55.98864085 | F35: FLU0130-ST | G35: 7206.05.1 | H35: FLU0130 | I35: FLU>40 | J35: Tubular Flourescent >40W | K35: 1156 | L35: 0 | M35: 5 | N35: 1110
B36: 42W CFL Standard | C36: 32.2880527 | D36: 64.08777795 | F36: FLU0350-ST | G36: 7107.09.43 | H36: FLU0350 | I36: CFL42S | J36: 42W CFL Standard | K36: 58943 | L36: 931 | M36: 3638 | N36: 58903
B37: 42W CFL Decorative | C37: 90.55809762 | D37: 64.08777795 | F37: FLU0350-ST | G37: 7206.05.53 | H37: FLU0350 | I37: CFL42D | J37: 42W CFL Decorative
B38: 32W Compact Flourescent | C38: 87.0814955 | D38: 66.44328023 | F38: FLU0355-ST | G38: Compact_Fluro_32W | H38: FLU0355 | I38: CFL32S | J38: 32W Compact Flourescent | K38: 9 | L38: 0 | M38: 5 | N38: 9
B39: 2x14W T5 Fluoro | C39: 0 | D39: 68.78425512 | F39: FLU0360-ST | G39: NO_CAPEX | H39: FLU0360 | I39: FLU14 | J39: 2x14W T5 Fluoro | K39: 3 | L39: 0 | M39: 0 | N39: 3
B40: 50W High Pressure Sodium | C40: 0 | D40: 98.8724736 | F40: HPS0010-ST | G40: NO_CAPEX | H40: HPS0010 | I40: HPS50 | J40: 50W High Pressure Sodium | K40: 516 | L40: 0 | M40: 0 | N40: 514
B41: 50W High Pressure Sodium - Twin Arc | C41: 30.67718727 | D41: 65.11106413 | F41: HPS0010-TA | G41: 7107.09.30 | H41: HPS0010-TA | I41: HPS50TA | J41: 50W High Pressure Sodium - Twin Arc | K41: 2240 | L41: 25 | M41: 77 | N41: 2240
B42: 70W High Pressure Sodium | C42: 30.05836711 | D42: 96.9367088 | F42: HPS0020-ST | G42: 7107.09.3 | H42: HPS0020 | I42: HPS70 | J42: 70W High Pressure Sodium | K42: 28463 | L42: 632 | M42: 2048 | N42: 28131
B43: 70W High Pressure Sodium - Twin Arc | C43: 30.67718727 | D43: 60.17129169 | F43: HPS0020-TA | G43: 7107.09.30 | H43: HPS0020-TA | I43: HPS70TA | J43: 70W High Pressure Sodium - Twin Arc | K43: 1148 | L43: 14 | M43: 73 | N43: 1142
B44: 100W High Pressure Sodium | C44: 0 | D44: 96.9367088 | F44: HPS0070-ST | G44: NO_CAPEX | H44: HPS0020 | I44: HPS100 | J44: 100W High Pressure Sodium | K44: 102 | L44: 0 | M44: 0 | N44: 76
B45: 120W High Pressure Sodium | C45: 0 | D45: 86.89415529 | F45: HPS0080-ST | G45: NO_CAPEX | H45: HPS0090 | I45: HPS120 | J45: 120W High Pressure Sodium | K45: 67 | L45: 0 | M45: 0 | N45: 6
B46: 150W High Pressure Sodium | C46: 66.41348577 | D46: 86.89415529 | F46: HPS0090-ST | G46: 7107.09.7 | H46: HPS0090 | I46: HPS150 | J46: 150W High Pressure Sodium | K46: 10158 | L46: 127 | M46: 390 | N46: 9940
B47: 150W High Pressure Sodium - Twin Arc | C47: 68.1420683 | D47: 73.07579415 | F47: HPS0090-TA | G47: 7107.09.41 | H47: HPS0090-TA | I47: HPS150TA | J47: 150W High Pressure Sodium - Twin Arc | K47: 228 | L47: 4 | M47: 7 | N47: 228
B48: 220W High Pressure Sodium | C48: 0 | D48: 87.68695693 | F48: HPS0100-ST | G48: NO_CAPEX | H48: HPS0110 | I48: HPS220 | J48: 220W High Pressure Sodium | K48: 66 | L48: 0 | M48: 0 | N48: 66
B49: 250W High Pressure Sodium | C49: 66.41348577 | D49: 87.68695693 | F49: HPS0110-ST | G49: 7107.09.11 | H49: HPS0110 | I49: HPS250 | J49: 250W High Pressure Sodium | K49: 23592 | L49: 405 | M49: 989 | N49: 23313
B50: 250W High Pressure Sodium - Twin Arc | C50: 74.08987914 | D50: 83.83665414 | F50: HPS0110-TA | G50: 7107.09.39 | H50: HPS0110-TA | I50: HPS250TA | J50: 250W High Pressure Sodium - Twin Arc | K50: 627 | L50: 9 | M50: 26 | N50: 627
B51: 2x250W High Presure Sodium | C51: 0 | D51: 87.68695693 | F51: HPS0120-ST | G51: NO_CAPEX | H51: HPS0110 | I51: HPS2x250 | J51: 2x250W High Presure Sodium | K51: 9 | L51: 0 | M51: 0 | N51: 9
B52: 310W High Pressure Sodium | C52: 0 | D52: 87.68695693 | F52: HPS0140-ST | G52: NO_CAPEX | H52: HPS0110 | I52: HPS310 | J52: 310W High Pressure Sodium | K52: 100 | L52: 1 | M52: 0 | N52: 100
B53: 360W High Pressure Sodium | C53: 76.74904623 | D53: 95.43855134 | F53: HPS0160-ST | G53: 7107.09.21 | H53: HPS0170 | I53: HPS360 | J53: 360W High Pressure Sodium | K53: 169 | L53: 0 | M53: 0 | N53: 169
B54: 400W High Pressure Sodium | C54: 76.74904623 | D54: 95.43855134 | F54: HPS0170-ST | G54: 7107.09.21 | H54: HPS0170 | I54: HPS400 | J54: 400W High Pressure Sodium | K54: 2446 | L54: 87 | M54: 100 | N54: 2395
B55: 400W High Pressure Sodium - Twin Arc | C55: 79.91377725 | D55: 74.54412146 | F55: HPS0170-TA | G55: 7107.09.24 | H55: HPS0170-TA | I55: HPS400TA | J55: 400W High Pressure Sodium - Twin Arc | K55: 36 | L55: 1 | M55: 1 | N55: 36
B56: 2x400W High Pressure Sodium | C56: 0 | D56: 95.43855134 | F56: HPS0180-ST | G56: NO_CAPEX | H56: HPS0170 | I56: HPS2x400 | J56: 2x400W High Pressure Sodium | K56: 45 | L56: 0 | M56: 0 | N56: 45
B57: 3x400W High Pressure Sodium | C57: 0 | D57: 95.43855134 | F57: HPS0190-ST | G57: NO_CAPEX | H57: HPS0170 | I57: HPS3x400 | J57: 3x400W High Pressure Sodium | K57: 3 | L57: 0 | M57: 0 | N57: 2
B58: 1000W High Pressure Sodium | C58: 0 | D58: 291.9729983 | F58: HPS0250-ST | G58: NO_CAPEX | H58: MHR0100 | I58: HPS1000 | J58: 1000W High Pressure Sodium | K58: 34 | L58: 0 | M58: 0 | N58: 34
B59: Incandescent 60 | C59: 0 | D59: 57.56033898 | F59: INC0030-ST | G59: NO_CAPEX | H59: INC0030 | I59: INC60 | J59: Incandescent 60 | K59: 105 | L59: 0 | M59: 0 | N59: 81
B60: Incandescent 75 | C60: 0 | D60: 57.56033898 | F60: INC0040-ST | G60: NO_CAPEX | H60: INC0030 | I60: INC75 | J60: Incandescent 75 | K60: 31 | L60: 0 | M60: 0 | N60: 27
B61: Incandescent 100 | C61: 0 | D61: 57.56033898 | F61: INC0050-ST | G61: NO_CAPEX | H61: INC0030 | I61: INC100 | J61: Incandescent 100 | K61: 28 | L61: 0 | M61: 0 | N61: 18
B62: Incandescent 150 | C62: 0 | D62: 57.56033898 | F62: INC0080-ST | G62: NO_CAPEX | H62: INC0030 | I62: INC150 | J62: Incandescent 150 | K62: 18 | L62: 0 | M62: 0 | N62: 2
B63: Incandescent 200 | C63: 0 | D63: 57.56033898 | F63: INC0090-ST | G63: NO_CAPEX | H63: INC0030 | I63: INC200 | J63: Incandescent 200 | K63: 2 | L63: 0 | M63: 0 | N63: 2
B64: Incandescent 300 | C64: 0 | D64: 57.56033898 | F64: INC0100-ST | G64: NO_CAPEX | H64: INC0030 | I64: INC300 | J64: Incandescent 300 | K64: 4 | L64: 0 | M64: 0 | N64: 3
B65: Incandescent 500 | C65: 0 | D65: 57.56033898 | F65: INC0110-ST | G65: NO_CAPEX | H65: INC0030 | I65: INC500 | J65: Incandescent 500 | K65: 4 | L65: 0 | M65: 0 | N65: 1
B66: Incandescent 1500 | C66: 0 | D66: 57.56033898 | F66: INC0160-ST | G66: NO_CAPEX | H66: INC0030 | I66: INC1500 | J66: Incandescent 1500 | K66: 2 | L66: 0 | M66: 0 | N66: 2
B67: 55W Low Pressure Sodium | C67: 66.41348577 | D67: 128.4534614 | F67: LPS0030-ST | G67: 7107.09.7 | H67: LPS0030 | I67: LPS55 | J67: 55W Low Pressure Sodium | K67: 262 | L67: 2 | M67: 0 | N67: 262
B68: 100W Low Pressure Sodium | C68: 66.41348577 | D68: 128.9461619 | F68: LPS0040-ST | G68: 7107.09.7 | H68: LPS0040 | I68: LPS100 | J68: 100W Low Pressure Sodium | K68: 201 | L68: 0 | M68: 2 | N68: 198
B69: 135W Low Pressure Sodium | C69: 0 | D69: 163.5058657 | F69: LPS0050-ST | G69: NO_CAPEX | H69: LPS0050 | I69: LPS135 | J69: 135W Low Pressure Sodium | K69: 27 | L69: 0 | M69: 0 | N69: 27
B70: 150W Low Pressure Sodium | C70: 0 | D70: 163.5058657 | F70: LPS0060-ST | G70: NO_CAPEX | H70: LPS0050 | I70: LPS150 | J70: 150W Low Pressure Sodium | K70: 116 | L70: 0 | M70: 0 | N70: 116
B71: 310W Low Pressure Sodium | C71: 0 | D71: 163.5058657 | F71: LPS0090-ST | G71: NO_CAPEX | H71: LPS0050 | I71: LPS310 | J71: 310W Low Pressure Sodium | K71: 1 | L71: 0 | M71: 0 | N71: 1
B72: 70W Metal Hallide | C72: 0 | D72: 139.2345526 | F72: MHR0010-ST | G72: NO_CAPEX | H72: MHR0060 | I72: MHD70 | J72: 70W Metal Hallide | K72: 254 | L72: 0 | M72: 0 | N72: 246
B73: 150W Metal Hallide | C73: 0 | D73: 139.2345526 | F73: MHR0030-ST | G73: NO_CAPEX | H73: MHR0060 | I73: MHD150 | J73: 150W Metal Hallide | K73: 295 | L73: 0 | M73: 0 | N73: 261
B74: 250W Metal Hallide | C74: 66.41348577 | D74: 139.2345526 | F74: MHR0060-ST | G74: 7107.09.11 | H74: MHR0060 | I74: MHD400 | J74: 250W Metal Hallide | K74: 195 | L74: 1 | M74: 18 | N74: 195
B75: 400W Metal Hallide | C75: 66.41348577 | D75: 145.8866011 | F75: MHR0070-ST | G75: 7107.09.11 | H75: MHR0070 | I75: MHD400 | J75: 400W Metal Hallide | K75: 172 | L75: 3 | M75: 8 | N75: 154
B76: 1000W Metal Hallide | C76: 149.9472288 | D76: 291.9729983 | F76: MHR0100-ST | G76: 7107.09.50 | H76: MHR0100 | I76: MHD1000 | J76: 1000W Metal Hallide | K76: 10 | L76: 0 | M76: 1 | N76: 3
B77: 50W Mercury Vapour | C77: 24.35877305 | D77: 80.73243966 | F77: MVA0010-ST | G77: 7206.05.1 | H77: MVA0010 | I77: MVA50 | J77: 50W Mercury Vapour | K77: 1089 | L77: 0 | M77: 9 | N77: 1058
B78: 80W Mercury Vapour | C78: 24.35877305 | D78: 68.44896066 | F78: MVA0020-ST | G78: 7206.05.1 | H78: MVA0020 | I78: MVA80 | J78: 80W Mercury Vapour | K78: 16132 | L78: 29 | M78: 267 | N78: 15716
B79: 125W Mercury Vapour | C79: 0 | D79: 76.58571831 | F79: MVA0080-ST | G79: NO_CAPEX | H79: MVA0080 | I79: MVA125 | J79: 125W Mercury Vapour | K79: 573 | L79: 0 | M79: 0 | N79: 381
B80: 250W Mercury Vapour | C80: 66.41348577 | D80: 131.7555153 | F80: MVA0190-ST | G80: 7107.09.7 | H80: MVA0190 | I80: MVA250 | J80: 250W Mercury Vapour | K80: 642 | L80: 5 | M80: 25 | N80: 635
B81: 400W Mercury Vapour | C81: 66.41348577 | D81: 149.0190797 | F81: MVA0220-ST | G81: 7107.09.7 | H81: MVA0220 | I81: MVA400 | J81: 400W Mercury Vapour | K81: 759 | L81: 0 | M81: 10 | N81: 720
B82: 250W HPS Nightwatch | C82: 85.79963172 | D82: 87.68695693 | F82: 7107.09.18 | G82: 7107.09.18 | H82: HPS0110 | I82: HPSFL250 | J82: 250W HPS Nightwatch
B83: 400W HPS Nightwatch | C83: 87.76984406 | D83: 95.43855134 | F83: 7107.09.28 | G83: 7107.09.26 | H83: HPS0170 | I83: HPSFL400 | J83: 400W HPS Nightwatch
B84: 250W MH Nightwatch | C84: 225.2012318 | D84: 87.68695693 | F84: 7107.09.19 | G84: 250W_NW | H84: HPS0110 | I84: HPSFL250 | J84: 250W MH Nightwatch
B85: 400W MH Nightwatch | C85: 228.4776348 | D85: 95.43855134 | F85: 7107.09.25 | G85: 400W_NW | H85: HPS0170 | I85: HPSFL400 | J85: 400W MH Nightwatch
B87: LED Luminaire Type | C87: CAPEX | D87: OPEX | F87: Lamp Code | G87: CAPEX Lookup | H87: OPEX Lookup | J87: Prefered Naming | K87: Count All Tariffs (Inc. 6 & Metered) | L87: CAPEX Recovery (Tariff 5) | M87: Concessional CAPEX (Tariff 3) | N87: OPEX Recovery (Tariff 1-5)
B88: 23W LED Gerard StreetLED | C88: 68.22149378 | D88: 39.67728761 | G88: 7206.05.81 | H88: LED0002 | I88: LED23GER2017 | J88: 23W LED Gerard StreetLED | L88: 0 | M88: 0 | N88: 0
B89: 17W LED Gerard StreetLED | C89: 70.14676351 | D89: 39.67728761 | F89: LED0003-ST | G89: 7206.05.82 | H89: LED0003 | I89: LED17GER2017 | J89: 17W LED Gerard StreetLED | K89: 2318 | L89: 2 | M89: 0 | N89: 2318
B90: 17W LED Gerard StreetLED Aeroscreen | C90: 72.15252475 | D90: 39.67728761 | G90: 7206.05.83 | H90: LED0004 | I90: LED17GER2017-AERO | J90: 17W LED Gerard StreetLED Aeroscreen | L90: 0 | M90: 0 | N90: 0
B91: 17W LED Gerard StreetLED Louvred | C91: 72.15252475 | D91: 39.67728761 | G91: 7206.05.84 | H91: LED0005 | I91: LED17GER2017-LOUVRE | J91: 17W LED Gerard StreetLED Louvred | L91: 0 | M91: 0 | N91: 0
B92: 22W LED Gerard StreetLED | C92: 70.14676351 | D92: 39.67728761 | G92: 7206.05.82 | H92: LED0003 | I92: LED22GER2015 | J92: 22W LED Gerard StreetLED
B93: 25W LED GE Evolve | C93: 50.97401379 | D93: 46.65968523 | F93: LED0006-ST | G93: 7206.05.85 | H93: LED0006 | I93: LED25GE2015 | J93: 25W LED GE Evolve | K93: 1 | L93: 0 | M93: 0 | N93: 1
B94: 35W LED Pecan Luminaire | C94: 85.1899728 | D94: 39.08211114 | G94: 7206.05.86 | H94: LED0007 | I94: LED35WPEC2017 | J94: 35W LED Pecan Luminaire | L94: 0 | M94: 0 | N94: 0
B95: 29W LED Pecan Luminaire - Aeroscreen | C95: 85.1899728 | D95: 38.82203271 | G95: 7206.05.87 | H95: LED0008 | I95: LED29WPEC2017-AERO | J95: 29W LED Pecan Luminaire - Aeroscreen | L95: 0 | M95: 0 | N95: 0
B96: 42W LED Gerard StreetLED | C96: 138.3887215 | D96: 39.67728761 | F96: LED0001-ST | G96: 7206.05.88 | H96: LED0001 | I96: LED42GER2017 | J96: 42W LED Gerard StreetLED | K96: 141 | L96: 0 | M96: 0 | N96: 141
B97: 42W LED Pecan Luminaire | C97: 138.3887215 | D97: 44.32964361 | G97: 7206.05.88 | H97: LED0009 | I97: LED42WPEC2017 | J97: 42W LED Pecan Luminaire | L97: 0 | M97: 0 | N97: 0
B98: 36W LED Pecan Luminaire - Aeroscreen | C98: 138.3887215 | D98: 44.32964361 | G98: 7206.05.89 | H98: LED0010 | I98: LED36WPEC2017-AERO | J98: 36W LED Pecan Luminaire - Aeroscreen | L98: 0 | M98: 0 | N98: 0
B99: 105W LED Aldridge Luminaire | C99: 221.2952355 | D99: 44.32964361 | F99: LED0090-ST | G99: 7206.05.90 | H99: LED0011 | I99: LED105ALD2017 | J99: 105W LED Aldridge Luminaire | K99: 7 | L99: 0 | M99: 7 | N99: 7
B100: 198W LED Aldridge Standard Distribution | C100: 234.2306793 | D100: 47.09268695 | F100: LED0012-ST | G100: 7206.05.91 | H100: LED0012 | I100: LED198ALD2017-Std_Dist | J100: 198W LED Aldridge Standard Distribution | K100: 1 | L100: 0 | M100: 0 | N100: 1
B101: 198W LED Aldridge Forward Distribution | C101: 231.7791934 | D101: 47.09268695 | G101: 7206.05.92 | H101: LED0013 | I101: LED198ALD201-_Fwd_Dist | J101: 198W LED Aldridge Forward Distribution | L101: 0 | M101: 0 | N101: 0
B102: 298W LED Aldridge Luminaire | C102: 260.9741625 | D102: 47.09268695 | G102: 7206.05.93 | H102: LED0014 | I102: LED298ALD201-_Fwd_Dist | J102: 298W LED Aldridge Luminaire
B103: 100W LED Aldridge Luminaire | C103: 233.2380314 | D103: 47.09268695 | G103: LED0015 | H103: LED0015 | I103: LED100ALD2017 | J103: 100W LED Aldridge Luminaire
B104: 200W LED Aldridge Luminaire | C104: 233.2380314 | D104: 47.09268695 | G104: LED0016 | H104: LED0016 | I104: LED200ALD2017 | J104: 200W LED Aldridge Luminaire
B105: 300W LED Aldridge Luminaire | C105: 259.8268162 | D105: 47.09268695 | G105: LED0017 | H105: LED0017 | I105: LED300ALD2017 | J105: 300W LED Aldridge Luminaire
